Workbook

Sheet pivot_ellenorzes
B2: =MAX(B4:B21) -> 2 | C2: <--ha ez az érték 1-nél nagyobb, akkor ismétlődő monogrammokról van szó…
A3: Sorcímkék | B3: Mennyiség / nev_pivot
A4: BE | B4: 1
A5: BT | B5: 1
A6: FF | B6: 2
A7: FK | B7: 1
A8: HM | B8: 1
A9: JI | B9: 1
A10: KK | B10: 1
A11: KP | B11: 1
A12: NN | B12: 1
A13: PD | B13: 1
A14: RB | B14: 1
A15: RD | B15: 1
A16: RF | B16: 1
A17: RT | B17: 1
A18: SB | B18: 1
A19: SV | B19: 1
A20: SZ | B20: 1
A21: TK | B21: 1
A22: Végösszeg | B22: 19

Sheet jatekosok
A1: FEHÉRVÁR FC csapattársak | B1: https://adatbank.mlsz.hu/player/586105.html | H1: hogyan ellenőrizzük a monogrammokat? | I1: hogyan képezzünk monogramot? | M1: hogyan képezzünk ellenőrző értéket?
A2: Név | B2: Kor | D2: Név | G2: nev1 | H2: nev2 | I2: nev | J2: forras | L2: Kor | M2: kor | O2: nev_pivot
A3: BÉKEFI ENIKŐ | B3: 21 éves | D3: BÉKEFI | E3: ENIKŐ | G3: =LEFT(D3,1) -> B | H3: =LEFT(E3,1) -> E | I3: =G3&H3 -> BE | J3: https://adatbank.mlsz.hu/player/526424.html | L3: 21 éves | M3: =LEFT(L3,2) -> 21 | O3: =I3 -> BE
A4: BORS TÍMEA | B4: 16 éves | D4: BORS | E4: TÍMEA | G4: =LEFT(D4,1) -> B | H4: =LEFT(E4,1) -> T | I4: =G4&H4 -> BT | J4: https://adatbank.mlsz.hu/player/509537.html | L4: 16 éves | M4: =LEFT(L4,2) -> 16 | O4: =I4 -> BT
A5: FORRÓ KATA BARBARA | B5: 16 éves | D5: FORRÓ | E5: KATA | F5: BARBARA | G5: F | H5: K | I5: FK | J5: https://adatbank.mlsz.hu/player/776177.html | L5: 16 éves | M5: 16 | O5: FK
A6: FÖLDESI FRUZSINA | B6: 19 éves | D6: FÖLDESI | E6: FRUZSINA | G6: F | H6: F | I6: FF | J6: https://adatbank.mlsz.hu/player/703200.html | L6: 19 éves | M6: 19 | O6: FF
A7: FÖLDVÁRI FANNI ILDIKÓ | B7: 19 éves | D7: FÖLDVÁRI | E7: FANNI | F7: ILDIKÓ | G7: F | H7: =LEFT(F7,1) -> I | I7: FI | J7: https://adatbank.mlsz.hu/player/831147.html | L7: 19 éves | M7: 19 | O7: FF
A8: HORVÁTH MIMI EMMA | B8: 16 éves | D8: HORVÁTH | E8: MIMI | F8: EMMA | G8: H | H8: M | I8: HM | J8: https://adatbank.mlsz.hu/player/753736.html | L8: 16 éves | M8: 16 | O8: HM
A9: JANUS IZABELLA | B9: 19 éves | D9: JANUS | E9: IZABELLA | G9: J | H9: I | I9: JI | J9: https://adatbank.mlsz.hu/player/584336.html | L9: 19 éves | M9: 19 | O9: JI
A10: KÁNTOR KRISZTINA | B10: 20 éves | D10: KÁNTOR | E10: KRISZTINA | G10: K | H10: K | I10: KK | J10: https://adatbank.mlsz.hu/player/586110.html | L10: 20 éves | M10: 20 | O10: KK
A11: KOLLÁR PANNA | B11: 23 éves | D11: KOLLÁR | E11: PANNA | G11: K | H11: P | I11: KP | J11: https://adatbank.mlsz.hu/player/526408.html | L11: 23 éves | M11: 23 | O11: KP
A12: NÉMETH NOÉMI | B12: 18 éves | D12: NÉMETH | E12: NOÉMI | G12: N | H12: N | I12: NN | J12: https://adatbank.mlsz.hu/player/628910.html | L12: 18 éves | M12: 18 | O12: NN
A13: PÉCSI DÓRA | B13: 18 éves | D13: PÉCSI | E13: DÓRA | G13: P | H13: D | I13: PD | J13: https://adatbank.mlsz.hu/player/773970.html | L13: 18 éves | M13: 18 | O13: PD
A14: RAJZINGER DÓRA | B14: 18 éves | D14: RAJZINGER | E14: DÓRA | G14: R | H14: D | I14: RD | J14: https://adatbank.mlsz.hu/player/344253.html | L14: 18 éves | M14: 18 | O14: RD
A15: RAJZINGER FANNI | B15: 18 éves | D15: RAJZINGER | E15: FANNI | G15: R | H15: F | I15: RF | J15: https://adatbank.mlsz.hu/player/344254.html | L15: 18 éves | M15: 18 | O15: RF
A16: REGŐCI BOGLÁRKA | B16: 18 éves | D16: REGŐCI | E16: BOGLÁRKA | G16: R | H16: B | I16: RB | J16: https://adatbank.mlsz.hu/player/773485.html | L16: 18 éves | M16: 18 | O16: RB
A17: RÉTHALMI TÍMEA | B17: 17 éves | D17: RÉTHALMI | E17: TÍMEA | G17: R | H17: T | I17: RT | J17: https://adatbank.mlsz.hu/player/512468.html | L17: 17 éves | M17: 17 | O17: RT
A18: SZABÓ BERNADETT | B18: 19 éves | D18: SZABÓ | E18: BERNADETT | G18: S | H18: B | I18: SB | J18: https://adatbank.mlsz.hu/player/587172.html | L18: 19 éves | M18: 19 | O18: SB
A19: SZEHOFNER VIVIEN | B19: 21 éves | D19: SZEHOFNER | E19: VIVIEN | G19: S | H19: V | I19: SV | J19: https://adatbank.mlsz.hu/player/465361.html | L19: 21 éves | M19: 21 | O19: SV
A20: SZÉKELY ZSUZSANNA | B20: 17 éves | D20: SZÉKELY | E20: ZSUZSANNA | G20: S | H20: Z | I20: SZ | J20: https://adatbank.mlsz.hu/player/648772.html | L20: 17 éves | M20: 17 | O20: SZ
A21: TRAMPLER KINGA | B21: 21 éves | D21: TRAMPLER | E21: KINGA | G21: T | H21: K | I21: TK | J21: https://adatbank.mlsz.hu/player/569010.html | L21: 21 éves | M21: 21 | O21: TK

Sheet db
A1: id | B1: nev | C1: diktalas (google-translate-HU) | D1: kor | E1: meccs | F1: gol | G1: ongol | H1: sarga | I1: piros | J1: kezdo | K1: csere | L1: kispad | M1: ellenorzes1 | N1: ellenorzes2 | O1: forras
A2: 1 | B2: GM | C2: 21 x 173 x 8 x 0 x 1 x 0 x 130 x 21 x 22 | D2: 21 | E2: 173 | F2: 8 | G2: 0 | H2: 1 | I2: 0 | J2: 130 | K2: 21 | L2: 22 | M2: =E2-J2-K2-L2 -> 0 | N2: … | O2: https://adatbank.mlsz.hu/player/586105.html
A3: 2 | B3: =jatekosok!I3 -> BE | C3: 21 x 173 x 19 x 0 x 4 x 0 x 119 x 39 x 15 | D3: 21 | E3: 173 | F3: 19 | G3: 0 | H3: 4 | I3: 0 | J3: 119 | K3: 39 | L3: 15 | M3: =E3-J3-K3-L3 -> 0 | N3: =jatekosok!M3-D3 -> 0 | O3: =jatekosok!J3 -> https://adatbank.mlsz.hu/player/526424.html
A4: 3 | B4: =jatekosok!I4 -> BT | C4: 16 x 90 x 81 x 0 x 0 x 0 x 56 x 28 x 6 | D4: 16 | E4: 90 | F4: 81 | G4: 0 | H4: 0 | I4: 0 | J4: 56 | K4: 28 | L4: 6 | M4: =E4-J4-K4-L4 -> 0 | N4: =jatekosok!M4-D4 -> 0 | O4: =jatekosok!J4 -> https://adatbank.mlsz.hu/player/509537.html
A5: 4 | B5: =jatekosok!I5 -> FK | C5: 16 x 120 x 65 x 0 x 3 x 0 x 60 x 30 x 30 | D5: 16 | E5: 120 | F5: 65 | G5: 0 | H5: 3 | I5: 0 | J5: 60 | K5: 30 | L5: 30 | M5: 0 | N5: =jatekosok!M5-D5 -> 0 | O5: =jatekosok!J5 -> https://adatbank.mlsz.hu/player/776177.html
A6: 5 | B6: =jatekosok!I6 -> FF | C6: 19 x 202 x 20 x 1 x 12 x 0 x 163 x 28 x 11 | D6: 19 | E6: 202 | F6: 20 | G6: 1 | H6: 12 | I6: 0 | J6: 163 | K6: 28 | L6: 11 | M6: 0 | N6: =jatekosok!M6-D6 -> 0 | O6: =jatekosok!J6 -> https://adatbank.mlsz.hu/player/703200.html
A7: 6 | B7: =jatekosok!I7 -> FI | C7: 19 x 103 x83 x 0 x 0 x 0 x 81 x 19 x 3 | D7: 19 | E7: 103 | F7: 83 | G7: 0 | H7: 0 | I7: 0 | J7: 81 | K7: 19 | L7: 3 | M7: 0 | N7: =jatekosok!M7-D7 -> 0 | O7: =jatekosok!J7 -> https://adatbank.mlsz.hu/player/831147.html
A8: 7 | B8: =jatekosok!I8 -> HM | C8: 16 x 78 x 9 x 0 x 0 x 0 x 52 x 18 x 8 | D8: 16 | E8: 78 | F8: 9 | G8: 0 | H8: 0 | I8: 0 | J8: 52 | K8: 18 | L8: 8 | M8: 0 | N8: =jatekosok!M8-D8 -> 0 | O8: =jatekosok!J8 -> https://adatbank.mlsz.hu/player/753736.html
A9: 8 | B9: =jatekosok!I9 -> JI | C9: 19 x 282 x 75 x 0 x 2 x 2 x 218 x 38 x 26 | D9: 19 | E9: 282 | F9: 75 | G9: 0 | H9: 2 | I9: 2 | J9: 218 | K9: 38 | L9: 26 | M9: 0 | N9: =jatekosok!M9-D9 -> 0 | O9: =jatekosok!J9 -> https://adatbank.mlsz.hu/player/584336.html
A10: 9 | B10: =jatekosok!I10 -> KK | C10: direkt-adatrogzites | D10: 20 | E10: 235 | F10: 17 | G10: 0 | H10: 12 | I10: 1 | J10: 200 | K10: 20 | L10: 15 | M10: 0 | N10: =jatekosok!M10-D10 -> 0 | O10: =jatekosok!J10 -> https://adatbank.mlsz.hu/player/586110.html
A11: 10 | B11: =jatekosok!I11 -> KP | C11: =C10 -> direkt-adatrogzites | D11: 23 | E11: 196 | F11: 8 | G11: 1 | H11: 0 | I11: 0 | J11: 138 | K11: 15 | L11: 43 | M11: 0 | N11: =jatekosok!M11-D11 -> 0 | O11: =jatekosok!J11 -> https://adatbank.mlsz.hu/player/526408.html
A12: 11 | B12: =jatekosok!I12 -> NN | C12: =C11 -> direkt-adatrogzites | D12: 18 | E12: 210 | F12: 1 | G12: 0 | H12: 2 | I12: 1 | J12: 169 | K12: 13 | L12: 28 | M12: 0 | N12: =jatekosok!M12-D12 -> 0 | O12: =jatekosok!J12 -> https://adatbank.mlsz.hu/player/628910.html
A13: 12 | B13: =jatekosok!I13 -> PD | C13: direkt-adatrogzites | D13: 18 | E13: 141 | F13: 93 | G13: 0 | H13: 2 | I13: 0 | J13: 116 | K13: 17 | L13: 8 | M13: 0 | N13: =jatekosok!M13-D13 -> 0 | O13: =jatekosok!J13 -> https://adatbank.mlsz.hu/player/773970.html
A14: 13 | B14: =jatekosok!I14 -> RD | C14: direkt-adatrogzites | D14: 18 | E14: 198 | F14: 56 | G14: 0 | H14: 4 | I14: 1 | J14: 162 | K14: 22 | L14: 14 | M14: 0 | N14: =jatekosok!M14-D14 -> 0 | O14: =jatekosok!J14 -> https://adatbank.mlsz.hu/player/344253.html
A15: 14 | B15: =jatekosok!I15 -> RF | C15: direkt-adatrogzites | D15: 18 | E15: 195 | F15: 28 | G15: 0 | H15: 4 | I15: 1 | J15: 120 | K15: 49 | L15: 26 | M15: 0 | N15: =jatekosok!M15-D15 -> 0 | O15: =jatekosok!J15 -> https://adatbank.mlsz.hu/player/344254.html
A16: 15 | B16: =jatekosok!I16 -> RB | C16: direkt-adatrogzites | D16: 18 | E16: 103 | F16: 27 | G16: 0 | H16: 0 | I16: 0 | J16: 74 | K16: 24 | L16: 5 | M16: 0 | N16: =jatekosok!M16-D16 -> 0 | O16: =jatekosok!J16 -> https://adatbank.mlsz.hu/player/773485.html
A17: 16 | B17: =jatekosok!I17 -> RT | C17: direkt-adatrogzites | D17: 17 | E17: 98 | F17: 5 | G17: 1 | H17: 1 | I17: 0 | J17: 67 | K17: 16 | L17: 15 | M17: 0 | N17: =jatekosok!M17-D17 -> 0 | O17: =jatekosok!J17 -> https://adatbank.mlsz.hu/player/512468.html
A18: 17 | B18: =jatekosok!I18 -> SB | C18: direkt-adatrogzites | D18: 19 | E18: 261 | F18: 161 | G18: 0 | H18: 4 | I18: 0 | J18: 230 | K18: 13 | L18: 18 | M18: 0 | N18: =jatekosok!M18-D18 -> 0 | O18: =jatekosok!J18 -> https://adatbank.mlsz.hu/player/587172.html
A19: 18 | B19: =jatekosok!I19 -> SV | C19: direkt-adatrogzites | D19: 21 | E19: 159 | F19: 79 | G19: 1 | H19: 9 | I19: 0 | J19: 121 | K19: 20 | L19: 18 | M19: 0 | N19: =jatekosok!M19-D19 -> 0 | O19: =jatekosok!J19 -> https://adatbank.mlsz.hu/player/465361.html
A20: 19 | B20: =jatekosok!I20 -> SZ | C20: direkt-adatrogzites | D20: 17 | E20: 152 | F20: 37 | G20: 0 | H20: 1 | I20: 0 | J20: 129 | K20: 7 | L20: 16 | M20: 0 | N20: =jatekosok!M20-D20 -> 0 | O20: =jatekosok!J20 -> https://adatbank.mlsz.hu/player/648772.html
A21: 20 | B21: =jatekosok!I21 -> TK | C21: direkt-adatrogzites | D21: 21 | E21: 215 | F21: 218 | G21: 0 | H21: 9 | I21: 0 | J21: 203 | K21: 7 | L21: 5 | M21: 0 | N21: =jatekosok!M21-D21 -> 0 | O21: =jatekosok!J21 -> https://adatbank.mlsz.hu/player/569010.html
C23: min | D23: =MIN(D2:D21) -> 16 | E23: =MIN(E2:E21) -> 78 | F23: 1 | G23: 0 | H23: 0 | I23: 0 | J23: 52 | K23: 7 | L23: 3
C24: max | D24: =MAX(D2:D21) -> 23 | E24: =MAX(E2:E21) -> 282 | F24: 218 | G24: 1 | H24: 12 | I24: 2 | J24: 230 | K24: 49 | L24: 43
C25: átlag | D25: =AVERAGE(D2:D21) -> 18.75 | E25: =AVERAGE(E2:E21) -> 169.2 | F25: 54.5 | G25: 0.2 | H25: 3.5 | I25: 0.3 | J25: 130.4 | K25: 22.2 | L25: 16.6
C26: medián | D26: =MEDIAN(D2:D21) -> 18.5 | E26: =MEDIAN(E2:E21) -> 173 | F26: 32.5 | G26: 0 | H26: 2 | I26: 0 | J26: 125 | K26: 20 | L26: 15

Sheet OAM1 (STD)
A1: jelleg | B1: X | C1: X | D1: X | E1: X | F1: X | G1: Y | H1: X | I1: X | J1: X | K1: X | M1: jelleg | N1: X | O1: X | P1: X | Q1: X | R1: X | S1: X | T1: X | U1: X | V1: X | W1: Y
A2: mértékegység | B2: db/év | C2: db/db | D2: db/db | E2: db/db | F2: db/db | G2: % | H2: % | I2: % | J2: db/db | K2: db/db | M2: mértékegység | N2: db/év | O2: db/db | P2: db/db | Q2: db/db | R2: db/db | S2: % | T2: % | U2: db/db | V2: db/db | W2: %
A3: OAM | B3: egy életévre jutó meccsek száma | C3: egy meccsre jutó gólok száma | D3: egy meccsre jutó öngólok száma | E3: egy meccsre jutó sárgalapok száma | F3: egy meccsre jutó piroslapok száma | G3: hány százalékban kezdő? | H3: hány százalékban csere? | I3: hány százalékban kispad? | J3: egy gólra jutó sárgalapok száma? | K3: egy gólra jutó piroslapok száma? | M3: OAM | N3: egy életévre jutó meccsek száma | O3: egy meccsre jutó gólok száma | P3: egy meccsre jutó öngólok száma | Q3: egy meccsre jutó sárgalapok száma | R3: egy meccsre jutó piroslapok száma | S3: hány százalékban csere? | T3: hány százalékban kispad? | U3: egy gólra jutó sárgalapok száma? | V3: egy gólra jutó piroslapok száma? | W3: hány százalékban kezdő? | Z3: ellenőrzés
A4: =db!B2 -> GM | B4: =db!E2/db!D2 -> 8.238095238 | C4: =db!F2/db!E2 -> 0.04624277457 | D4: =db!G2/db!E2 -> 0 | E4: =db!H2/db!E2 -> 0.005780346821 | F4: =db!I2/db!E2 -> 0 | G4: =db!J2/db!E2 -> 0.7514450867 | H4: =db!K2/db!E2 -> 0.1213872832 | I4: =db!L2/db!E2 -> 0.1271676301 | J4: =db!H2/db!F2 -> 0.125 | K4: =db!I2/db!F2 -> 0 | M4: =A4 -> GM | N4: =B4 -> 8.238095238 | O4: 0.04624277457 | P4: 0 | Q4: 0.005780346821 | R4: 0 | S4: =H4 -> 0.1213872832 | T4: =I4 -> 0.1271676301 | U4: =J4 -> 0.125 | V4: =K4 -> 0 | W4: =G4 -> 0.7514450867 | Z4: =SUM(G4:I4) -> 1
A5: =db!B3 -> BE | B5: =db!E3/db!D3 -> 8.238095238 | C5: =db!F3/db!E3 -> 0.1098265896 | D5: =db!G3/db!E3 -> 0 | E5: =db!H3/db!E3 -> 0.02312138728 | F5: =db!I3/db!E3 -> 0 | G5: =db!J3/db!E3 -> 0.6878612717 | H5: =db!K3/db!E3 -> 0.225433526 | I5: =db!L3/db!E3 -> 0.08670520231 | J5: =db!H3/db!F3 -> 0.2105263158 | K5: =db!I3/db!F3 -> 0 | M5: =A5 -> BE | N5: 8.238095238 | O5: 0.1098265896 | P5: 0 | Q5: 0.02312138728 | R5: 0 | S5: 0.225433526 | T5: 0.08670520231 | U5: 0.2105263158 | V5: 0 | W5: 0.6878612717 | Z5: =SUM(G5:I5) -> 1 | AK5: Azonos�t�: | AL5: 1484399 | AM5: Objektumok: | AN5: 20 | AO5: Attrib�tumok: | AP5: 18 | AQ5: Lepcs�k: | AR5: 20 | AS5: Eltol�s: | AT5: 0 | AU5: Le�r�s: | AV5: COCO STD: 1484399
A6: =db!B4 -> BT | B6: =db!E4/db!D4 -> 5.625 | C6: =db!F4/db!E4 -> 0.9 | D6: =db!G4/db!E4 -> 0 | E6: =db!H4/db!E4 -> 0 | F6: =db!I4/db!E4 -> 0 | G6: =db!J4/db!E4 -> 0.6222222222 | H6: =db!K4/db!E4 -> 0.3111111111 | I6: =db!L4/db!E4 -> 0.06666666667 | J6: =db!H4/db!F4 -> 0 | K6: =db!I4/db!F4 -> 0 | M6: BT | N6: 5.625 | O6: 0.9 | P6: 0 | Q6: 0 | R6: 0 | S6: 0.3111111111 | T6: 0.06666666667 | U6: 0 | V6: 0 | W6: 0.6222222222 | Z6: 1
A7: =db!B5 -> FK | B7: =db!E5/db!D5 -> 7.5 | C7: =db!F5/db!E5 -> 0.5416666667 | D7: =db!G5/db!E5 -> 0 | E7: =db!H5/db!E5 -> 0.025 | F7: =db!I5/db!E5 -> 0 | G7: =db!J5/db!E5 -> 0.5 | H7: =db!K5/db!E5 -> 0.25 | I7: =db!L5/db!E5 -> 0.25 | J7: =db!H5/db!F5 -> 0.04615384615 | K7: =db!I5/db!F5 -> 0 | M7: FK | N7: 7.5 | O7: 0.5416666667 | P7: 0 | Q7: 0.025 | R7: 0 | S7: 0.25 | T7: 0.25 | U7: 0.04615384615 | V7: 0 | W7: 0.5 | Z7: 1 | AK7: Rangsor | AL7: X(A1) | AM7: X(A2) | AN7: X(A3) | AO7: X(A4) | AP7: X(A5) | AQ7: X(A6) | AR7: X(A7) | AS7: X(A8) | AT7: X(A9) | AU7: X(A10) | AV7: X(A11) | AW7: X(A12) | AX7: X(A13) | AY7: X(A14) | AZ7: X(A15) | BA7: X(A16) | BB7: X(A17) | BC7: X(A18) | BD7: Y(A19)
A8: =db!B6 -> FF | B8: =db!E6/db!D6 -> 10.63157895 | C8: =db!F6/db!E6 -> 0.09900990099 | D8: =db!G6/db!E6 -> 0.00495049505 | E8: =db!H6/db!E6 -> 0.05940594059 | F8: =db!I6/db!E6 -> 0 | G8: =db!J6/db!E6 -> 0.8069306931 | H8: =db!K6/db!E6 -> 0.1386138614 | I8: =db!L6/db!E6 -> 0.05445544554 | J8: =db!H6/db!F6 -> 0.6 | K8: =db!I6/db!F6 -> 0 | M8: FF | N8: 10.63157895 | O8: 0.09900990099 | P8: 0.00495049505 | Q8: 0.05940594059 | R8: 0 | S8: 0.1386138614 | T8: 0.05445544554 | U8: 0.6 | V8: 0 | W8: 0.8069306931 | Z8: 1 | AK8: O1 | AL8: 11 | AM8: 18 | AN8: 5 | AO8: 15 | AP8: 6 | AQ8: 12 | AR8: 6 | AS8: 7 | AT8: 6 | AU8: 10 | AV8: 3 | AW8: 16 | AX8: 6 | AY8: 15 | AZ8: 9 | BA8: 15 | BB8: 14 | BC8: 15 | BD8: 7514
A9: =db!B7 -> FI | B9: =db!E7/db!D7 -> 5.421052632 | C9: =db!F7/db!E7 -> 0.8058252427 | D9: =db!G7/db!E7 -> 0 | E9: =db!H7/db!E7 -> 0 | F9: =db!I7/db!E7 -> 0 | G9: =db!J7/db!E7 -> 0.786407767 | H9: =db!K7/db!E7 -> 0.1844660194 | I9: =db!L7/db!E7 -> 0.02912621359 | J9: =db!H7/db!F7 -> 0 | K9: =db!I7/db!F7 -> 0 | M9: FI | N9: 5.421052632 | O9: 0.8058252427 | P9: 0 | Q9: 0 | R9: 0 | S9: 0.1844660194 | T9: 0.02912621359 | U9: 0 | V9: 0 | W9: 0.786407767 | Z9: 1 | AK9: O2 | AL9: 11 | AM9: 14 | AN9: 5 | AO9: 6 | AP9: 6 | AQ9: 6 | AR9: 11 | AS9: 4 | AT9: 6 | AU9: 10 | AV9: 7 | AW9: 16 | AX9: 15 | AY9: 15 | AZ9: 15 | BA9: 10 | BB9: 17 | BC9: 15 | BD9: 6878
A10: =db!B8 -> HM | B10: =db!E8/db!D8 -> 4.875 | C10: =db!F8/db!E8 -> 0.1153846154 | D10: =db!G8/db!E8 -> 0 | E10: =db!H8/db!E8 -> 0 | F10: =db!I8/db!E8 -> 0 | G10: =db!J8/db!E8 -> 0.6666666667 | H10: =db!K8/db!E8 -> 0.2307692308 | I10: =db!L8/db!E8 -> 0.1025641026 | J10: =db!H8/db!F8 -> 0 | K10: =db!I8/db!F8 -> 0 | M10: HM | N10: 4.875 | O10: 0.1153846154 | P10: 0 | Q10: 0 | R10: 0 | S10: 0.2307692308 | T10: 0.1025641026 | U10: 0 | V10: 0 | W10: 0.6666666667 | Z10: 1 | AK10: O3 | AL10: 18 | AM10: 2 | AN10: 5 | AO10: 16 | AP10: 6 | AQ10: 1 | AR10: 14 | AS10: 16 | AT10: 6 | AU10: 3 | AV10: 19 | AW10: 16 | AX10: 5 | AY10: 15 | AZ10: 20 | BA10: 7 | BB10: 5 | BC10: 15 | BD10: 6222
A11: =db!B9 -> JI | B11: =db!E9/db!D9 -> 14.84210526 | C11: =db!F9/db!E9 -> 0.2659574468 | D11: =db!G9/db!E9 -> 0 | E11: =db!H9/db!E9 -> 0.007092198582 | F11: =db!I9/db!E9 -> 0.007092198582 | G11: =db!J9/db!E9 -> 0.7730496454 | H11: =db!K9/db!E9 -> 0.134751773 | I11: =db!L9/db!E9 -> 0.09219858156 | J11: =db!H9/db!F9 -> 0.02666666667 | K11: =db!I9/db!F9 -> 0.02666666667 | M11: JI | N11: 14.84210526 | O11: 0.2659574468 | P11: 0 | Q11: 0.007092198582 | R11: 0.007092198582 | S11: 0.134751773 | T11: 0.09219858156 | U11: 0.02666666667 | V11: 0.02666666667 | W11: 0.7730496454 | Z11: 1 | AK11: O4 | AL11: 15 | AM11: 6 | AN11: 5 | AO11: 5 | AP11: 6 | AQ11: 3 | AR11: 1 | AS11: 10 | AT11: 6 | AU11: 6 | AV11: 15 | AW11: 16 | AX11: 16 | AY11: 15 | AZ11: 18 | BA11: 20 | BB11: 11 | BC11: 15 | BD11: 5000
A12: =db!B10 -> KK | B12: =db!E10/db!D10 -> 11.75 | C12: =db!F10/db!E10 -> 0.07234042553 | D12: =db!G10/db!E10 -> 0 | E12: =db!H10/db!E10 -> 0.05106382979 | F12: =db!I10/db!E10 -> 0.004255319149 | G12: =db!J10/db!E10 -> 0.8510638298 | H12: =db!K10/db!E10 -> 0.08510638298 | I12: =db!L10/db!E10 -> 0.06382978723 | J12: =db!H10/db!F10 -> 0.7058823529 | K12: =db!I10/db!F10 -> 0.05882352941 | M12: KK | N12: 11.75 | O12: 0.07234042553 | P12: 0 | Q12: 0.05106382979 | R12: 0.004255319149 | S12: 0.08510638298 | T12: 0.06382978723 | U12: 0.7058823529 | V12: 0.05882352941 | W12: 0.8510638298 | Z12: 1 | AK12: O5 | AL12: 7 | AM12: 15 | AN12: 4 | AO12: 1 | AP12: 6 | AQ12: 9 | AR12: 17 | AS12: 3 | AT12: 6 | AU12: 14 | AV12: 6 | AW12: 17 | AX12: 20 | AY12: 15 | AZ12: 12 | BA12: 4 | BB12: 18 | BC12: 15 | BD12: 8069
A13: =db!B11 -> KP | B13: =db!E11/db!D11 -> 8.52173913 | C13: =db!F11/db!E11 -> 0.04081632653 | D13: =db!G11/db!E11 -> 0.005102040816 | E13: =db!H11/db!E11 -> 0 | F13: =db!I11/db!E11 -> 0 | G13: =db!J11/db!E11 -> 0.7040816327 | H13: =db!K11/db!E11 -> 0.07653061224 | I13: =db!L11/db!E11 -> 0.2193877551 | J13: =db!H11/db!F11 -> 0 | K13: =db!I11/db!F11 -> 0 | M13: KP | N13: 8.52173913 | O13: 0.04081632653 | P13: 0.005102040816 | Q13: 0 | R13: 0 | S13: 0.07653061224 | T13: 0.2193877551 | U13: 0 | V13: 0 | W13: 0.7040816327 | Z13: 1 | AK13: O6 | AL13: 19 | AM13: 3 | AN13: 5 | AO13: 16 | AP13: 6 | AQ13: 7 | AR13: 19 | AS13: 16 | AT13: 6 | AU13: 2 | AV13: 18 | AW13: 16 | AX13: 5 | AY13: 15 | AZ13: 14 | BA13: 2 | BB13: 5 | BC13: 15 | BD13: 7864
A14: =db!B12 -> NN | B14: =db!E12/db!D12 -> 11.66666667 | C14: =db!F12/db!E12 -> 0.004761904762 | D14: =db!G12/db!E12 -> 0 | E14: =db!H12/db!E12 -> 0.009523809524 | F14: =db!I12/db!E12 -> 0.004761904762 | G14: =db!J12/db!E12 -> 0.8047619048 | H14: =db!K12/db!E12 -> 0.0619047619 | I14: =db!L12/db!E12 -> 0.1333333333 | J14: =db!H12/db!F12 -> 2 | K14: =db!I12/db!F12 -> 1 | M14: NN | N14: 11.66666667 | O14: 0.004761904762 | P14: 0 | Q14: 0.009523809524 | R14: 0.004761904762 | S14: 0.0619047619 | T14: 0.1333333333 | U14: 2 | V14: 1 | W14: 0.8047619048 | Z14: 1 | AK14: O7 | AL14: 20 | AM14: 13 | AN14: 5 | AO14: 16 | AP14: 6 | AQ14: 5 | AR14: 9 | AS14: 16 | AT14: 6 | AU14: 1 | AV14: 8 | AW14: 16 | AX14: 5 | AY14: 15 | AZ14: 16 | BA14: 12 | BB14: 5 | BC14: 15 | BD14: 6666
A15: =db!B13 -> PD | B15: =db!E13/db!D13 -> 7.833333333 | C15: =db!F13/db!E13 -> 0.6595744681 | D15: =db!G13/db!E13 -> 0 | E15: =db!H13/db!E13 -> 0.01418439716 | F15: =db!I13/db!E13 -> 0 | G15: =db!J13/db!E13 -> 0.8226950355 | H15: =db!K13/db!E13 -> 0.1205673759 | I15: =db!L13/db!E13 -> 0.05673758865 | J15: =db!H13/db!F13 -> 0.02150537634 | K15: =db!I13/db!F13 -> 0 | M15: PD | N15: 7.833333333 | O15: 0.6595744681 | P15: 0 | Q15: 0.01418439716 | R15: 0 | S15: 0.1205673759 | T15: 0.05673758865 | U15: 0.02150537634 | V15: 0 | W15: 0.8226950355 | Z15: 1 | AK15: O8 | AL15: 1 | AM15: 9 | AN15: 5 | AO15: 13 | AP15: 1 | AQ15: 10 | AR15: 10 | AS15: 13 | AT15: 4 | AU15: 20 | AV15: 12 | AW15: 16 | AX15: 8 | AY15: 20 | AZ15: 11 | BA15: 11 | BB15: 8 | BC15: 17 | BD15: 7730
A16: =db!B14 -> RD | B16: =db!E14/db!D14 -> 11 | C16: =db!F14/db!E14 -> 0.2828282828 | D16: =db!G14/db!E14 -> 0 | E16: =db!H14/db!E14 -> 0.0202020202 | F16: =db!I14/db!E14 -> 0.005050505051 | G16: =db!J14/db!E14 -> 0.8181818182 | H16: =db!K14/db!E14 -> 0.1111111111 | I16: =db!L14/db!E14 -> 0.07070707071 | J16: =db!H14/db!F14 -> 0.07142857143 | K16: =db!I14/db!F14 -> 0.01785714286 | M16: RD | N16: 11 | O16: 0.2828282828 | P16: 0 | Q16: 0.0202020202 | R16: 0.005050505051 | S16: 0.1111111111 | T16: 0.07070707071 | U16: 0.07142857143 | V16: 0.01785714286 | W16: 0.8181818182 | Z16: 1 | AK16: O9 | AL16: 3 | AM16: 16 | AN16: 5 | AO16: 3 | AP16: 5 | AQ16: 15 | AR16: 15 | AS16: 2 | AT16: 2 | AU16: 18 | AV16: 5 | AW16: 16 | AX16: 18 | AY16: 16 | AZ16: 6 | BA16: 6 | BB16: 19 | BC16: 19 | BD16: 8510
A17: =db!B15 -> RF | B17: =db!E15/db!D15 -> 10.83333333 | C17: =db!F15/db!E15 -> 0.1435897436 | D17: =db!G15/db!E15 -> 0 | E17: =db!H15/db!E15 -> 0.02051282051 | F17: =db!I15/db!E15 -> 0.005128205128 | G17: =db!J15/db!E15 -> 0.6153846154 | H17: =db!K15/db!E15 -> 0.2512820513 | I17: =db!L15/db!E15 -> 0.1333333333 | J17: =db!H15/db!F15 -> 0.1428571429 | K17: =db!I15/db!F15 -> 0.03571428571 | M17: RF | N17: 10.83333333 | O17: 0.1435897436 | P17: 0 | Q17: 0.02051282051 | R17: 0.005128205128 | S17: 0.2512820513 | T17: 0.1333333333 | U17: 0.1428571429 | V17: 0.03571428571 | W17: 0.6153846154 | Z17: 1 | AK17: O10 | AL17: 10 | AM17: 19 | AN17: 3 | AO17: 16 | AP17: 6 | AQ17: 16 | AR17: 2 | AS17: 16 | AT17: 6 | AU17: 11 | AV17: 2 | AW17: 18 | AX17: 5 | AY17: 15 | AZ17: 5 | BA17: 19 | BB17: 5 | BC17: 15 | BD17: 7040
A18: =db!B16 -> RB | B18: =db!E16/db!D16 -> 5.722222222 | C18: =db!F16/db!E16 -> 0.2621359223 | D18: =db!G16/db!E16 -> 0 | E18: =db!H16/db!E16 -> 0 | F18: =db!I16/db!E16 -> 0 | G18: =db!J16/db!E16 -> 0.7184466019 | H18: =db!K16/db!E16 -> 0.2330097087 | I18: =db!L16/db!E16 -> 0.04854368932 | J18: =db!H16/db!F16 -> 0 | K18: =db!I16/db!F16 -> 0 | M18: RB | N18: 5.722222222 | O18: 0.2621359223 | P18: 0 | Q18: 0 | R18: 0 | S18: 0.2330097087 | T18: 0.04854368932 | U18: 0 | V18: 0 | W18: 0.7184466019 | Z18: 1 | AK18: O11 | AL18: 4 | AM18: 20 | AN18: 5 | AO18: 12 | AP18: 4 | AQ18: 17 | AR18: 4 | AS18: 1 | AT18: 1 | AU18: 17 | AV18: 1 | AW18: 16 | AX18: 9 | AY18: 17 | AZ18: 4 | BA18: 17 | BB18: 20 | BC18: 20 | BD18: 8047
A19: =db!B17 -> RT | B19: =db!E17/db!D17 -> 5.764705882 | C19: =db!F17/db!E17 -> 0.05102040816 | D19: =db!G17/db!E17 -> 0.01020408163 | E19: =db!H17/db!E17 -> 0.01020408163 | F19: =db!I17/db!E17 -> 0 | G19: =db!J17/db!E17 -> 0.6836734694 | H19: =db!K17/db!E17 -> 0.1632653061 | I19: =db!L17/db!E17 -> 0.1530612245 | J19: =db!H17/db!F17 -> 0.2 | K19: =db!I17/db!F17 -> 0 | M19: RT | N19: 5.764705882 | O19: 0.05102040816 | P19: 0.01020408163 | Q19: 0.01020408163 | R19: 0 | S19: 0.1632653061 | T19: 0.1530612245 | U19: 0.2 | V19: 0 | W19: 0.6836734694 | Z19: 1 | AK19: O12 | AL19: 13 | AM19: 4 | AN19: 5 | AO19: 10 | AP19: 6 | AQ19: 13 | AR19: 16 | AS19: 15 | AT19: 6 | AU19: 8 | AV19: 17 | AW19: 16 | AX19: 11 | AY19: 15 | AZ19: 8 | BA19: 5 | BB19: 6 | BC19: 15 | BD19: 8226
A20: =db!B18 -> SB | B20: =db!E18/db!D18 -> 13.73684211 | C20: =db!F18/db!E18 -> 0.6168582375 | D20: =db!G18/db!E18 -> 0 | E20: =db!H18/db!E18 -> 0.0153256705 | F20: =db!I18/db!E18 -> 0 | G20: =db!J18/db!E18 -> 0.8812260536 | H20: =db!K18/db!E18 -> 0.04980842912 | I20: =db!L18/db!E18 -> 0.06896551724 | J20: =db!H18/db!F18 -> 0.0248447205 | K20: =db!I18/db!F18 -> 0 | M20: SB | N20: =B20 -> 13.73684211 | O20: =C20 -> 0.6168582375 | P20: =D20 -> 0 | Q20: =E20 -> 0.0153256705 | R20: =F20 -> 0 | S20: =H20 -> 0.04980842912 | T20: =I20 -> 0.06896551724 | U20: =J20 -> 0.0248447205 | V20: =K20 -> 0 | W20: 0.8812260536 | Z20: 1 | AK20: O13 | AL20: 5 | AM20: 8 | AN20: 5 | AO20: 8 | AP20: 3 | AQ20: 14 | AR20: 12 | AS20: 9 | AT20: 5 | AU20: 16 | AV20: 13 | AW20: 16 | AX20: 13 | AY20: 18 | AZ20: 7 | BA20: 9 | BB20: 12 | BC20: 16 | BD20: 8181
A21: =db!B19 -> SV | B21: =db!E19/db!D19 -> 7.571428571 | C21: =db!F19/db!E19 -> 0.4968553459 | D21: =db!G19/db!E19 -> 0.006289308176 | E21: =db!H19/db!E19 -> 0.05660377358 | F21: =db!I19/db!E19 -> 0 | G21: =db!J19/db!E19 -> 0.7610062893 | H21: =db!K19/db!E19 -> 0.1257861635 | I21: =db!L19/db!E19 -> 0.1132075472 | J21: =db!H19/db!F19 -> 0.1139240506 | K21: =db!I19/db!F19 -> 0 | M21: SV | N21: 7.571428571 | O21: 0.4968553459 | P21: 0.006289308176 | Q21: 0.05660377358 | R21: 0 | S21: 0.1257861635 | T21: 0.1132075472 | U21: 0.1139240506 | V21: 0 | W21: 0.7610062893 | Z21: 1 | AK21: O14 | AL21: 6 | AM21: 12 | AN21: 5 | AO21: 7 | AP21: 2 | AQ21: 2 | AR21: 4 | AS21: 6 | AT21: 3 | AU21: 15 | AV21: 9 | AW21: 16 | AX21: 14 | AY21: 19 | AZ21: 19 | BA21: 17 | BB21: 15 | BC21: 18 | BD21: 6153
A22: =db!B20 -> SZ | B22: =db!E20/db!D20 -> 8.941176471 | C22: =db!F20/db!E20 -> 0.2434210526 | D22: =db!G20/db!E20 -> 0 | E22: =db!H20/db!E20 -> 0.006578947368 | F22: =db!I20/db!E20 -> 0 | G22: =db!J20/db!E20 -> 0.8486842105 | H22: =db!K20/db!E20 -> 0.04605263158 | I22: =db!L20/db!E20 -> 0.1052631579 | J22: =db!H20/db!F20 -> 0.02702702703 | K22: =db!I20/db!F20 -> 0 | M22: SZ | N22: 8.941176471 | O22: 0.2434210526 | P22: 0 | Q22: 0.006578947368 | R22: 0 | S22: 0.04605263158 | T22: 0.1052631579 | U22: 0.02702702703 | V22: 0 | W22: 0.8486842105 | Z22: 1 | AK22: O15 | AL22: 17 | AM22: 10 | AN22: 5 | AO22: 16 | AP22: 6 | AQ22: 4 | AR22: 18 | AS22: 16 | AT22: 6 | AU22: 4 | AV22: 11 | AW22: 16 | AX22: 5 | AY22: 15 | AZ22: 17 | BA22: 3 | BB22: 5 | BC22: 15 | BD22: 7184
A23: =db!B21 -> TK | B23: =db!E21/db!D21 -> 10.23809524 | C23: =db!F21/db!E21 -> 1.013953488 | D23: =db!G21/db!E21 -> 0 | E23: =db!H21/db!E21 -> 0.04186046512 | F23: =db!I21/db!E21 -> 0 | G23: =db!J21/db!E21 -> 0.9441860465 | H23: =db!K21/db!E21 -> 0.03255813953 | I23: =db!L21/db!E21 -> 0.02325581395 | J23: =db!H21/db!F21 -> 0.04128440367 | K23: =db!I21/db!F21 -> 0 | M23: TK | N23: 10.23809524 | O23: 1.013953488 | P23: 0 | Q23: 0.04186046512 | R23: 0 | S23: 0.03255813953 | T23: 0.02325581395 | U23: 0.04128440367 | V23: 0 | W23: 0.9441860465 | Z23: 1 | AK23: O16 | AL23: 16 | AM23: 17 | AN23: 1 | AO23: 11 | AP23: 6 | AQ23: 8 | AR23: 3 | AS23: 5 | AT23: 6 | AU23: 5 | AV23: 4 | AW23: 20 | AX23: 10 | AY23: 15 | AZ23: 13 | BA23: 18 | BB23: 16 | BC23: 15 | BD23: 6836
AK24: O17 | AL24: 2 | AM24: 5 | AN24: 5 | AO24: 9 | AP24: 6 | AQ24: 18 | AR24: 13 | AS24: 14 | AT24: 6 | AU24: 19 | AV24: 16 | AW24: 16 | AX24: 12 | AY24: 15 | AZ24: 3 | BA24: 8 | BB24: 7 | BC24: 15 | BD24: 8812
AK25: O18 | AL25: 14 | AM25: 7 | AN25: 2 | AO25: 2 | AP25: 6 | AQ25: 11 | AR25: 7 | AS25: 8 | AT25: 6 | AU25: 7 | AV25: 14 | AW25: 19 | AX25: 19 | AY25: 15 | AZ25: 10 | BA25: 14 | BB25: 13 | BC25: 15 | BD25: 7610
AK26: O19 | AL26: 9 | AM26: 11 | AN26: 5 | AO26: 14 | AP26: 6 | AQ26: 19 | AR26: 8 | AS26: 12 | AT26: 6 | AU26: 12 | AV26: 10 | AW26: 16 | AX26: 7 | AY26: 15 | AZ26: 2 | BA26: 13 | BB26: 9 | BC26: 15 | BD26: 8486
M27: jelleg | N27: direkt | O27: direkt | P27: direkt | Q27: direkt | R27: direkt | S27: direkt | T27: direkt | U27: direkt | V27: direkt | W27: inverz | X27: inverz | Y27: inverz | Z27: inverz | AA27: inverz | AB27: inverz | AC27: inverz | AD27: inverz | AE27: inverz | AF27: *10000&int | AG27: =CORREL(AF29:AF48,AG29:AG48) -> 0.9999999148 | AH27: <--korreláció | AK27: O20 | AL27: 8 | AM27: 1 | AN27: 5 | AO27: 4 | AP27: 6 | AQ27: 20 | AR27: 20 | AS27: 11 | AT27: 6 | AU27: 13 | AV27: 20 | AW27: 16 | AX27: 17 | AY27: 15 | AZ27: 1 | BA27: 1 | BB27: 10 | BC27: 15 | BD27: 9441
M28: =M3 -> OAM | N28: =N3 -> egy életévre jutó meccsek száma | O28: egy meccsre jutó gólok száma | P28: egy meccsre jutó öngólok száma | Q28: egy meccsre jutó sárgalapok száma | R28: egy meccsre jutó piroslapok száma | S28: hány százalékban csere? | T28: hány százalékban kispad? | U28: egy gólra jutó sárgalapok száma? | V28: egy gólra jutó piroslapok száma? | W28: =N28 -> egy életévre jutó meccsek száma | X28: =O28 -> egy meccsre jutó gólok száma | Y28: egy meccsre jutó öngólok száma | Z28: egy meccsre jutó sárgalapok száma | AA28: egy meccsre jutó piroslapok száma | AB28: hány százalékban csere? | AC28: hány százalékban kispad? | AD28: egy gólra jutó sárgalapok száma? | AE28: egy gólra jutó piroslapok száma? | AF28: =W3 -> hány százalékban kezdő? | AG28: becslés
M29: =M4 -> GM | N29: =RANK(N4,N$4:N$23,0) -> 11 | O29: =RANK(O4,O$4:O$23,0) -> 18 | P29: 5 | Q29: 15 | R29: 6 | S29: 12 | T29: 6 | U29: 7 | V29: 6 | W29: =21-N29 -> 10 | X29: =21-O29 -> 3 | Y29: =21-P29 -> 16 | Z29: =21-Q29 -> 6 | AA29: =21-R29 -> 15 | AB29: =21-S29 -> 9 | AC29: =21-T29 -> 15 | AD29: =21-U29 -> 14 | AE29: =21-V29 -> 15 | AF29: =INT(W4*10000) -> 7514 | AG29: =BD76 -> 7514 | AK29: L�pcs�k(1) | AL29: X(A1) | AM29: X(A2) | AN29: X(A3) | AO29: X(A4) | AP29: X(A5) | AQ29: X(A6) | AR29: X(A7) | AS29: X(A8) | AT29: X(A9) | AU29: X(A10) | AV29: X(A11) | AW29: X(A12) | AX29: X(A13) | AY29: X(A14) | AZ29: X(A15) | BA29: X(A16) | BB29: X(A17) | BC29: X(A18)
M30: BE | N30: =RANK(N5,N$4:N$23,0) -> 11 | O30: 14 | P30: 5 | Q30: 6 | R30: 6 | S30: 6 | T30: 11 | U30: 4 | V30: 6 | W30: =21-N30 -> 10 | X30: 7 | Y30: 16 | Z30: 15 | AA30: 15 | AB30: 15 | AC30: 10 | AD30: 17 | AE30: 15 | AF30: =INT(W5*10000) -> 6878 | AG30: =BD77 -> 6878 | AK30: S1 | AL30: (0+1831)/(1)=1831 | AM30: (0+243)/(1)=243 | AN30: (0+2090)/(1)=2090 | AO30: (0+4171)/(1)=4171 | AP30: (0+5656)/(1)=5656 | AQ30: (0+245)/(1)=245 | AR30: (0+264)/(1)=264 | AS30: (0+2438)/(1)=2438 | AT30: (0+0)/(1)=0 | AU30: (0+6414)/(1)=6414 | AV30: (0+3326)/(1)=3326 | AW30: (0+0)/(1)=0 | AX30: (0+0)/(1)=0 | AY30: (0+0)/(1)=0 | AZ30: (0+7991)/(1)=7991 | BA30: (0+1207)/(1)=1207 | BB30: (0+0)/(1)=0 | BC30: (0+0)/(1)=0
M31: BT | N31: =RANK(N6,N$4:N$23,0) -> 18 | O31: 2 | P31: 5 | Q31: 16 | R31: 6 | S31: 1 | T31: 14 | U31: 16 | V31: 6 | W31: 3 | X31: 19 | Y31: 16 | Z31: 5 | AA31: 15 | AB31: 20 | AC31: 7 | AD31: 5 | AE31: 15 | AF31: 6222 | AG31: 6222 | AK31: S2 | AL31: (0+1831)/(1)=1831 | AM31: (0+243)/(1)=243 | AN31: (0+1168)/(1)=1168 | AO31: (0+1706)/(1)=1706 | AP31: (0+5656)/(1)=5656 | AQ31: (0+245)/(1)=245 | AR31: (0+264)/(1)=264 | AS31: (0+2438)/(1)=2438 | AT31: (0+0)/(1)=0 | AU31: (0+6414)/(1)=6414 | AV31: (0+3326)/(1)=3326 | AW31: (0+0)/(1)=0 | AX31: (0+0)/(1)=0 | AY31: (0+0)/(1)=0 | AZ31: (0+7991)/(1)=7991 | BA31: (0+1207)/(1)=1207 | BB31: (0+0)/(1)=0 | BC31: (0+0)/(1)=0
M32: FK | N32: =RANK(N7,N$4:N$23,0) -> 15 | O32: 6 | P32: 5 | Q32: 5 | R32: 6 | S32: 3 | T32: 1 | U32: 10 | V32: 6 | W32: 6 | X32: 15 | Y32: 16 | Z32: 16 | AA32: 15 | AB32: 18 | AC32: 20 | AD32: 11 | AE32: 15 | AF32: 5000 | AG32: 5000 | AK32: S3 | AL32: (0+1831)/(1)=1831 | AM32: (0+243)/(1)=243 | AN32: (0+1168)/(1)=1168 | AO32: (0+1706)/(1)=1706 | AP32: (0+5656)/(1)=5656 | AQ32: (0+0)/(1)=0 | AR32: (0+0)/(1)=0 | AS32: (0+2438)/(1)=2438 | AT32: (0+0)/(1)=0 | AU32: (0+5734)/(1)=5734 | AV32: (0+3326)/(1)=3326 | AW32: (0+0)/(1)=0 | AX32: (0+0)/(1)=0 | AY32: (0+0)/(1)=0 | AZ32: (0+6738)/(1)=6738 | BA32: (0+1207)/(1)=1207 | BB32: (0+0)/(1)=0 | BC32: (0+0)/(1)=0
M33: FF | N33: =RANK(N8,N$4:N$23,0) -> 7 | O33: 15 | P33: 4 | Q33: 1 | R33: 6 | S33: 9 | T33: 17 | U33: 3 | V33: 6 | W33: 14 | X33: 6 | Y33: 17 | Z33: 20 | AA33: 15 | AB33: 12 | AC33: 4 | AD33: 18 | AE33: 15 | AF33: 8069 | AG33: 8068 | AK33: S4 | AL33: (0+0)/(1)=0 | AM33: (0+243)/(1)=243 | AN33: (0+0)/(1)=0 | AO33: (0+0)/(1)=0 | AP33: (0+0)/(1)=0 | AQ33: (0+0)/(1)=0 | AR33: (0+0)/(1)=0 | AS33: (0+2438)/(1)=2438 | AT33: (0+0)/(1)=0 | AU33: (0+5734)/(1)=5734 | AV33: (0+252)/(1)=252 | AW33: (0+0)/(1)=0 | AX33: (0+0)/(1)=0 | AY33: (0+0)/(1)=0 | AZ33: (0+2282)/(1)=2282 | BA33: (0+1207)/(1)=1207 | BB33: (0+0)/(1)=0 | BC33: (0+0)/(1)=0
M34: FI | N34: =RANK(N9,N$4:N$23,0) -> 19 | O34: 3 | P34: 5 | Q34: 16 | R34: 6 | S34: 7 | T34: 19 | U34: 16 | V34: 6 | W34: 2 | X34: 18 | Y34: 16 | Z34: 5 | AA34: 15 | AB34: 14 | AC34: 2 | AD34: 5 | AE34: 15 | AF34: 7864 | AG34: 7864 | AK34: S5 | AL34: (0+0)/(1)=0 | AM34: (0+243)/(1)=243 | AN34: (0+0)/(1)=0 | AO34: (0+0)/(1)=0 | AP34: (0+0)/(1)=0 | AQ34: (0+0)/(1)=0 | AR34: (0+0)/(1)=0 | AS34: (0+0)/(1)=0 | AT34: (0+0)/(1)=0 | AU34: (0+4493)/(1)=4493 | AV34: (0+252)/(1)=252 | AW34: (0+0)/(1)=0 | AX34: (0+0)/(1)=0 | AY34: (0+0)/(1)=0 | AZ34: (0+2282)/(1)=2282 | BA34: (0+1207)/(1)=1207 | BB34: (0+0)/(1)=0 | BC34: (0+0)/(1)=0
M35: HM | N35: =RANK(N10,N$4:N$23,0) -> 20 | O35: 13 | P35: 5 | Q35: 16 | R35: 6 | S35: 5 | T35: 9 | U35: 16 | V35: 6 | W35: 1 | X35: 8 | Y35: 16 | Z35: 5 | AA35: 15 | AB35: 16 | AC35: 12 | AD35: 5 | AE35: 15 | AF35: 6666 | AG35: 6666 | AK35: S6 | AL35: (0+0)/(1)=0 | AM35: (0+243)/(1)=243 | AN35: (0+0)/(1)=0 | AO35: (0+0)/(1)=0 | AP35: (0+0)/(1)=0 | AQ35: (0+0)/(1)=0 | AR35: (0+0)/(1)=0 | AS35: (0+0)/(1)=0 | AT35: (0+0)/(1)=0 | AU35: (0+4493)/(1)=4493 | AV35: (0+252)/(1)=252 | AW35: (0+0)/(1)=0 | AX35: (0+0)/(1)=0 | AY35: (0+0)/(1)=0 | AZ35: (0+2282)/(1)=2282 | BA35: (0+0)/(1)=0 | BB35: (0+0)/(1)=0 | BC35: (0+0)/(1)=0
M36: JI | N36: =RANK(N11,N$4:N$23,0) -> 1 | O36: 9 | P36: 5 | Q36: 13 | R36: 1 | S36: 10 | T36: 10 | U36: 13 | V36: 4 | W36: 20 | X36: 12 | Y36: 16 | Z36: 8 | AA36: 20 | AB36: 11 | AC36: 11 | AD36: 8 | AE36: 17 | AF36: 7730 | AG36: 7730 | AK36: S7 | AL36: (0+0)/(1)=0 | AM36: (0+243)/(1)=243 | AN36: (0+0)/(1)=0 | AO36: (0+0)/(1)=0 | AP36: (0+0)/(1)=0 | AQ36: (0+0)/(1)=0 | AR36: (0+0)/(1)=0 | AS36: (0+0)/(1)=0 | AT36: (0+0)/(1)=0 | AU36: (0+4493)/(1)=4493 | AV36: (0+252)/(1)=252 | AW36: (0+0)/(1)=0 | AX36: (0+0)/(1)=0 | AY36: (0+0)/(1)=0 | AZ36: (0+2282)/(1)=2282 | BA36: (0+0)/(1)=0 | BB36: (0+0)/(1)=0 | BC36: (0+0)/(1)=0
M37: KK | N37: =RANK(N12,N$4:N$23,0) -> 3 | O37: 16 | P37: 5 | Q37: 3 | R37: 5 | S37: 15 | T37: 15 | U37: 2 | V37: 2 | W37: 18 | X37: 5 | Y37: 16 | Z37: 18 | AA37: 16 | AB37: 6 | AC37: 6 | AD37: 19 | AE37: 19 | AF37: 8510 | AG37: 8509 | AK37: S8 | AL37: (0+0)/(1)=0 | AM37: (0+243)/(1)=243 | AN37: (0+0)/(1)=0 | AO37: (0+0)/(1)=0 | AP37: (0+0)/(1)=0 | AQ37: (0+0)/(1)=0 | AR37: (0+0)/(1)=0 | AS37: (0+0)/(1)=0 | AT37: (0+0)/(1)=0 | AU37: (0+4493)/(1)=4493 | AV37: (0+252)/(1)=252 | AW37: (0+0)/(1)=0 | AX37: (0+0)/(1)=0 | AY37: (0+0)/(1)=0 | AZ37: (0+2282)/(1)=2282 | BA37: (0+0)/(1)=0 | BB37: (0+0)/(1)=0 | BC37: (0+0)/(1)=0
M38: KP | N38: =RANK(N13,N$4:N$23,0) -> 10 | O38: 19 | P38: 3 | Q38: 16 | R38: 6 | S38: 16 | T38: 2 | U38: 16 | V38: 6 | W38: 11 | X38: 2 | Y38: 18 | Z38: 5 | AA38: 15 | AB38: 5 | AC38: 19 | AD38: 5 | AE38: 15 | AF38: 7040 | AG38: 7040 | AK38: S9 | AL38: (0+0)/(1)=0 | AM38: (0+243)/(1)=243 | AN38: (0+0)/(1)=0 | AO38: (0+0)/(1)=0 | AP38: (0+0)/(1)=0 | AQ38: (0+0)/(1)=0 | AR38: (0+0)/(1)=0 | AS38: (0+0)/(1)=0 | AT38: (0+0)/(1)=0 | AU38: (0+4188)/(1)=4188 | AV38: (0+252)/(1)=252 | AW38: (0+0)/(1)=0 | AX38: (0+0)/(1)=0 | AY38: (0+0)/(1)=0 | AZ38: (0+0)/(1)=0 | BA38: (0+0)/(1)=0 | BB38: (0+0)/(1)=0 | BC38: (0+0)/(1)=0
M39: NN | N39: =RANK(N14,N$4:N$23,0) -> 4 | O39: 20 | P39: 5 | Q39: 12 | R39: 4 | S39: 17 | T39: 4 | U39: 1 | V39: 1 | W39: 17 | X39: 1 | Y39: 16 | Z39: 9 | AA39: 17 | AB39: 4 | AC39: 17 | AD39: 20 | AE39: 20 | AF39: 8047 | AG39: 8046 | AK39: S10 | AL39: (0+0)/(1)=0 | AM39: (0+243)/(1)=243 | AN39: (0+0)/(1)=0 | AO39: (0+0)/(1)=0 | AP39: (0+0)/(1)=0 | AQ39: (0+0)/(1)=0 | AR39: (0+0)/(1)=0 | AS39: (0+0)/(1)=0 | AT39: (0+0)/(1)=0 | AU39: (0+4188)/(1)=4188 | AV39: (0+252)/(1)=252 | AW39: (0+0)/(1)=0 | AX39: (0+0)/(1)=0 | AY39: (0+0)/(1)=0 | AZ39: (0+0)/(1)=0 | BA39: (0+0)/(1)=0 | BB39: (0+0)/(1)=0 | BC39: (0+0)/(1)=0
M40: PD | N40: =RANK(N15,N$4:N$23,0) -> 13 | O40: 4 | P40: 5 | Q40: 10 | R40: 6 | S40: 13 | T40: 16 | U40: 15 | V40: 6 | W40: 8 | X40: 17 | Y40: 16 | Z40: 11 | AA40: 15 | AB40: 8 | AC40: 5 | AD40: 6 | AE40: 15 | AF40: 8226 | AG40: 8225 | AK40: S11 | AL40: (0+0)/(1)=0 | AM40: (0+243)/(1)=243 | AN40: (0+0)/(1)=0 | AO40: (0+0)/(1)=0 | AP40: (0+0)/(1)=0 | AQ40: (0+0)/(1)=0 | AR40: (0+0)/(1)=0 | AS40: (0+0)/(1)=0 | AT40: (0+0)/(1)=0 | AU40: (0+0)/(1)=0 | AV40: (0+0)/(1)=0 | AW40: (0+0)/(1)=0 | AX40: (0+0)/(1)=0 | AY40: (0+0)/(1)=0 | AZ40: (0+0)/(1)=0 | BA40: (0+0)/(1)=0 | BB40: (0+0)/(1)=0 | BC40: (0+0)/(1)=0
M41: RD | N41: =RANK(N16,N$4:N$23,0) -> 5 | O41: 8 | P41: 5 | Q41: 8 | R41: 3 | S41: 14 | T41: 12 | U41: 9 | V41: 5 | W41: 16 | X41: 13 | Y41: 16 | Z41: 13 | AA41: 18 | AB41: 7 | AC41: 9 | AD41: 12 | AE41: 16 | AF41: 8181 | AG41: 8181 | AK41: S12 | AL41: (0+0)/(1)=0 | AM41: (0+0)/(1)=0 | AN41: (0+0)/(1)=0 | AO41: (0+0)/(1)=0 | AP41: (0+0)/(1)=0 | AQ41: (0+0)/(1)=0 | AR41: (0+0)/(1)=0 | AS41: (0+0)/(1)=0 | AT41: (0+0)/(1)=0 | AU41: (0+0)/(1)=0 | AV41: (0+0)/(1)=0 | AW41: (0+0)/(1)=0 | AX41: (0+0)/(1)=0 | AY41: (0+0)/(1)=0 | AZ41: (0+0)/(1)=0 | BA41: (0+0)/(1)=0 | BB41: (0+0)/(1)=0 | BC41: (0+0)/(1)=0
M42: RF | N42: =RANK(N17,N$4:N$23,0) -> 6 | O42: 12 | P42: 5 | Q42: 7 | R42: 2 | S42: 2 | T42: 4 | U42: 6 | V42: 3 | W42: 15 | X42: 9 | Y42: 16 | Z42: 14 | AA42: 19 | AB42: 19 | AC42: 17 | AD42: 15 | AE42: 18 | AF42: 6153 | AG42: 6153 | AK42: S13 | AL42: (0+0)/(1)=0 | AM42: (0+0)/(1)=0 | AN42: (0+0)/(1)=0 | AO42: (0+0)/(1)=0 | AP42: (0+0)/(1)=0 | AQ42: (0+0)/(1)=0 | AR42: (0+0)/(1)=0 | AS42: (0+0)/(1)=0 | AT42: (0+0)/(1)=0 | AU42: (0+0)/(1)=0 | AV42: (0+0)/(1)=0 | AW42: (0+0)/(1)=0 | AX42: (0+0)/(1)=0 | AY42: (0+0)/(1)=0 | AZ42: (0+0)/(1)=0 | BA42: (0+0)/(1)=0 | BB42: (0+0)/(1)=0 | BC42: (0+0)/(1)=0
M43: RB | N43: =RANK(N18,N$4:N$23,0) -> 17 | O43: 10 | P43: 5 | Q43: 16 | R43: 6 | S43: 4 | T43: 18 | U43: 16 | V43: 6 | W43: 4 | X43: 11 | Y43: 16 | Z43: 5 | AA43: 15 | AB43: 17 | AC43: 3 | AD43: 5 | AE43: 15 | AF43: 7184 | AG43: 7184 | AK43: S14 | AL43: (0+0)/(1)=0 | AM43: (0+0)/(1)=0 | AN43: (0+0)/(1)=0 | AO43: (0+0)/(1)=0 | AP43: (0+0)/(1)=0 | AQ43: (0+0)/(1)=0 | AR43: (0+0)/(1)=0 | AS43: (0+0)/(1)=0 | AT43: (0+0)/(1)=0 | AU43: (0+0)/(1)=0 | AV43: (0+0)/(1)=0 | AW43: (0+0)/(1)=0 | AX43: (0+0)/(1)=0 | AY43: (0+0)/(1)=0 | AZ43: (0+0)/(1)=0 | BA43: (0+0)/(1)=0 | BB43: (0+0)/(1)=0 | BC43: (0+0)/(1)=0
M44: RT | N44: =RANK(N19,N$4:N$23,0) -> 16 | O44: 17 | P44: 1 | Q44: 11 | R44: 6 | S44: 8 | T44: 3 | U44: 5 | V44: 6 | W44: 5 | X44: 4 | Y44: 20 | Z44: 10 | AA44: 15 | AB44: 13 | AC44: 18 | AD44: 16 | AE44: 15 | AF44: 6836 | AG44: 6835 | AK44: S15 | AL44: (0+0)/(1)=0 | AM44: (0+0)/(1)=0 | AN44: (0+0)/(1)=0 | AO44: (0+0)/(1)=0 | AP44: (0+0)/(1)=0 | AQ44: (0+0)/(1)=0 | AR44: (0+0)/(1)=0 | AS44: (0+0)/(1)=0 | AT44: (0+0)/(1)=0 | AU44: (0+0)/(1)=0 | AV44: (0+0)/(1)=0 | AW44: (0+0)/(1)=0 | AX44: (0+0)/(1)=0 | AY44: (0+0)/(1)=0 | AZ44: (0+0)/(1)=0 | BA44: (0+0)/(1)=0 | BB44: (0+0)/(1)=0 | BC44: (0+0)/(1)=0
M45: SB | N45: =RANK(N20,N$4:N$23,0) -> 2 | O45: 5 | P45: 5 | Q45: 9 | R45: 6 | S45: 18 | T45: 13 | U45: 14 | V45: 6 | W45: 19 | X45: 16 | Y45: 16 | Z45: 12 | AA45: 15 | AB45: 3 | AC45: 8 | AD45: 7 | AE45: 15 | AF45: 8812 | AG45: 8812 | AK45: S16 | AL45: (0+0)/(1)=0 | AM45: (0+0)/(1)=0 | AN45: (0+0)/(1)=0 | AO45: (0+0)/(1)=0 | AP45: (0+0)/(1)=0 | AQ45: (0+0)/(1)=0 | AR45: (0+0)/(1)=0 | AS45: (0+0)/(1)=0 | AT45: (0+0)/(1)=0 | AU45: (0+0)/(1)=0 | AV45: (0+0)/(1)=0 | AW45: (0+0)/(1)=0 | AX45: (0+0)/(1)=0 | AY45: (0+0)/(1)=0 | AZ45: (0+0)/(1)=0 | BA45: (0+0)/(1)=0 | BB45: (0+0)/(1)=0 | BC45: (0+0)/(1)=0
M46: SV | N46: =RANK(N21,N$4:N$23,0) -> 14 | O46: 7 | P46: 2 | Q46: 2 | R46: 6 | S46: 11 | T46: 7 | U46: 8 | V46: 6 | W46: 7 | X46: 14 | Y46: 19 | Z46: 19 | AA46: 15 | AB46: 10 | AC46: 14 | AD46: 13 | AE46: 15 | AF46: 7610 | AG46: 7610 | AK46: S17 | AL46: (0+0)/(1)=0 | AM46: (0+0)/(1)=0 | AN46: (0+0)/(1)=0 | AO46: (0+0)/(1)=0 | AP46: (0+0)/(1)=0 | AQ46: (0+0)/(1)=0 | AR46: (0+0)/(1)=0 | AS46: (0+0)/(1)=0 | AT46: (0+0)/(1)=0 | AU46: (0+0)/(1)=0 | AV46: (0+0)/(1)=0 | AW46: (0+0)/(1)=0 | AX46: (0+0)/(1)=0 | AY46: (0+0)/(1)=0 | AZ46: (0+0)/(1)=0 | BA46: (0+0)/(1)=0 | BB46: (0+0)/(1)=0 | BC46: (0+0)/(1)=0
M47: SZ | N47: =RANK(N22,N$4:N$23,0) -> 9 | O47: 11 | P47: 5 | Q47: 14 | R47: 6 | S47: 19 | T47: 8 | U47: 12 | V47: 6 | W47: 12 | X47: 10 | Y47: 16 | Z47: 7 | AA47: 15 | AB47: 2 | AC47: 13 | AD47: 9 | AE47: 15 | AF47: 8486 | AG47: 8486 | AK47: S18 | AL47: (0+0)/(1)=0 | AM47: (0+0)/(1)=0 | AN47: (0+0)/(1)=0 | AO47: (0+0)/(1)=0 | AP47: (0+0)/(1)=0 | AQ47: (0+0)/(1)=0 | AR47: (0+0)/(1)=0 | AS47: (0+0)/(1)=0 | AT47: (0+0)/(1)=0 | AU47: (0+0)/(1)=0 | AV47: (0+0)/(1)=0 | AW47: (0+0)/(1)=0 | AX47: (0+0)/(1)=0 | AY47: (0+0)/(1)=0 | AZ47: (0+0)/(1)=0 | BA47: (0+0)/(1)=0 | BB47: (0+0)/(1)=0 | BC47: (0+0)/(1)=0
M48: TK | N48: =RANK(N23,N$4:N$23,0) -> 8 | O48: 1 | P48: 5 | Q48: 4 | R48: 6 | S48: 20 | T48: 20 | U48: 11 | V48: 6 | W48: 13 | X48: 20 | Y48: 16 | Z48: 17 | AA48: 15 | AB48: 1 | AC48: 1 | AD48: 10 | AE48: 15 | AF48: 9441 | AG48: 9441 | AK48: S19 | AL48: (0+0)/(1)=0 | AM48: (0+0)/(1)=0 | AN48: (0+0)/(1)=0 | AO48: (0+0)/(1)=0 | AP48: (0+0)/(1)=0 | AQ48: (0+0)/(1)=0 | AR48: (0+0)/(1)=0 | AS48: (0+0)/(1)=0 | AT48: (0+0)/(1)=0 | AU48: (0+0)/(1)=0 | AV48: (0+0)/(1)=0 | AW48: (0+0)/(1)=0 | AX48: (0+0)/(1)=0 | AY48: (0+0)/(1)=0 | AZ48: (0+0)/(1)=0 | BA48: (0+0)/(1)=0 | BB48: (0+0)/(1)=0 | BC48: (0+0)/(1)=0
AK49: S20 | AL49: (0+0)/(1)=0 | AM49: (0+0)/(1)=0 | AN49: (0+0)/(1)=0 | AO49: (0+0)/(1)=0 | AP49: (0+0)/(1)=0 | AQ49: (0+0)/(1)=0 | AR49: (0+0)/(1)=0 | AS49: (0+0)/(1)=0 | AT49: (0+0)/(1)=0 | AU49: (0+0)/(1)=0 | AV49: (0+0)/(1)=0 | AW49: (0+0)/(1)=0 | AX49: (0+0)/(1)=0 | AY49: (0+0)/(1)=0 | AZ49: (0+0)/(1)=0 | BA49: (0+0)/(1)=0 | BB49: (0+0)/(1)=0 | BC49: (0+0)/(1)=0
AL50: =N27 -> direkt | AM50: =O27 -> direkt | AN50: direkt | AO50: direkt | AP50: direkt | AQ50: direkt | AR50: direkt | AS50: direkt | AT50: direkt | AU50: inverz | AV50: inverz | AW50: inverz | AX50: inverz | AY50: inverz | AZ50: inverz | BA50: inverz | BB50: inverz | BC50: inverz
AK51: L�pcs�k(2) | AL51: =N28 -> egy életévre jutó meccsek száma | AM51: =O28 -> egy meccsre jutó gólok száma | AN51: egy meccsre jutó öngólok száma | AO51: egy meccsre jutó sárgalapok száma | AP51: egy meccsre jutó piroslapok száma | AQ51: hány százalékban csere? | AR51: hány százalékban kispad? | AS51: egy gólra jutó sárgalapok száma? | AT51: egy gólra jutó piroslapok száma? | AU51: egy életévre jutó meccsek száma | AV51: egy meccsre jutó gólok száma | AW51: egy meccsre jutó öngólok száma | AX51: egy meccsre jutó sárgalapok száma | AY51: egy meccsre jutó piroslapok száma | AZ51: hány százalékban csere? | BA51: hány százalékban kispad? | BB51: egy gólra jutó sárgalapok száma? | BC51: egy gólra jutó piroslapok száma?
AK52: S1 | AL52: 1831 | AM52: 243 | AN52: 2090 | AO52: 4171 | AP52: 5656 | AQ52: 245 | AR52: 264 | AS52: 2438 | AT52: 0 | AU52: 6414 | AV52: 3326 | AW52: 0 | AX52: 0 | AY52: 0 | AZ52: 7991 | BA52: 1207 | BB52: 0 | BC52: 0
AK53: S2 | AL53: 1831 | AM53: 243 | AN53: 1168 | AO53: 1706 | AP53: 5656 | AQ53: 245 | AR53: 264 | AS53: 2438 | AT53: 0 | AU53: 6414 | AV53: 3326 | AW53: 0 | AX53: 0 | AY53: 0 | AZ53: 7991 | BA53: 1207 | BB53: 0 | BC53: 0
AK54: S3 | AL54: 1831 | AM54: 243 | AN54: 1168 | AO54: 1706 | AP54: 5656 | AQ54: 0 | AR54: 0 | AS54: 2438 | AT54: 0 | AU54: 5734 | AV54: 3326 | AW54: 0 | AX54: 0 | AY54: 0 | AZ54: 6738 | BA54: 1207 | BB54: 0 | BC54: 0
AK55: S4 | AL55: 0 | AM55: 243 | AN55: 0 | AO55: 0 | AP55: 0 | AQ55: 0 | AR55: 0 | AS55: 2438 | AT55: 0 | AU55: 5734 | AV55: 252 | AW55: 0 | AX55: 0 | AY55: 0 | AZ55: 2282 | BA55: 1207 | BB55: 0 | BC55: 0
AK56: S5 | AL56: 0 | AM56: 243 | AN56: 0 | AO56: 0 | AP56: 0 | AQ56: 0 | AR56: 0 | AS56: 0 | AT56: 0 | AU56: 4493 | AV56: 252 | AW56: 0 | AX56: 0 | AY56: 0 | AZ56: 2282 | BA56: 1207 | BB56: 0 | BC56: 0
AK57: S6 | AL57: 0 | AM57: 243 | AN57: 0 | AO57: 0 | AP57: 0 | AQ57: 0 | AR57: 0 | AS57: 0 | AT57: 0 | AU57: 4493 | AV57: 252 | AW57: 0 | AX57: 0 | AY57: 0 | AZ57: 2282 | BA57: 0 | BB57: 0 | BC57: 0
AK58: S7 | AL58: 0 | AM58: 243 | AN58: 0 | AO58: 0 | AP58: 0 | AQ58: 0 | AR58: 0 | AS58: 0 | AT58: 0 | AU58: 4493 | AV58: 252 | AW58: 0 | AX58: 0 | AY58: 0 | AZ58: 2282 | BA58: 0 | BB58: 0 | BC58: 0
AK59: S8 | AL59: 0 | AM59: 243 | AN59: 0 | AO59: 0 | AP59: 0 | AQ59: 0 | AR59: 0 | AS59: 0 | AT59: 0 | AU59: 4493 | AV59: 252 | AW59: 0 | AX59: 0 | AY59: 0 | AZ59: 2282 | BA59: 0 | BB59: 0 | BC59: 0
AK60: S9 | AL60: 0 | AM60: 243 | AN60: 0 | AO60: 0 | AP60: 0 | AQ60: 0 | AR60: 0 | AS60: 0 | AT60: 0 | AU60: 4188 | AV60: 252 | AW60: 0 | AX60: 0 | AY60: 0 | AZ60: 0 | BA60: 0 | BB60: 0 | BC60: 0
AK61: S10 | AL61: 0 | AM61: 243 | AN61: 0 | AO61: 0 | AP61: 0 | AQ61: 0 | AR61: 0 | AS61: 0 | AT61: 0 | AU61: 4188 | AV61: 252 | AW61: 0 | AX61: 0 | AY61: 0 | AZ61: 0 | BA61: 0 | BB61: 0 | BC61: 0
AK62: S11 | AL62: 0 | AM62: 243 | AN62: 0 | AO62: 0 | AP62: 0 | AQ62: 0 | AR62: 0 | AS62: 0 | AT62: 0 | AU62: 0 | AV62: 0 | AW62: 0 | AX62: 0 | AY62: 0 | AZ62: 0 | BA62: 0 | BB62: 0 | BC62: 0
AK63: S12 | AL63: 0 | AM63: 0 | AN63: 0 | AO63: 0 | AP63: 0 | AQ63: 0 | AR63: 0 | AS63: 0 | AT63: 0 | AU63: 0 | AV63: 0 | AW63: 0 | AX63: 0 | AY63: 0 | AZ63: 0 | BA63: 0 | BB63: 0 | BC63: 0
AK64: S13 | AL64: 0 | AM64: 0 | AN64: 0 | AO64: 0 | AP64: 0 | AQ64: 0 | AR64: 0 | AS64: 0 | AT64: 0 | AU64: 0 | AV64: 0 | AW64: 0 | AX64: 0 | AY64: 0 | AZ64: 0 | BA64: 0 | BB64: 0 | BC64: 0
AK65: S14 | AL65: 0 | AM65: 0 | AN65: 0 | AO65: 0 | AP65: 0 | AQ65: 0 | AR65: 0 | AS65: 0 | AT65: 0 | AU65: 0 | AV65: 0 | AW65: 0 | AX65: 0 | AY65: 0 | AZ65: 0 | BA65: 0 | BB65: 0 | BC65: 0
AK66: S15 | AL66: 0 | AM66: 0 | AN66: 0 | AO66: 0 | AP66: 0 | AQ66: 0 | AR66: 0 | AS66: 0 | AT66: 0 | AU66: 0 | AV66: 0 | AW66: 0 | AX66: 0 | AY66: 0 | AZ66: 0 | BA66: 0 | BB66: 0 | BC66: 0
AK67: S16 | AL67: 0 | AM67: 0 | AN67: 0 | AO67: 0 | AP67: 0 | AQ67: 0 | AR67: 0 | AS67: 0 | AT67: 0 | AU67: 0 | AV67: 0 | AW67: 0 | AX67: 0 | AY67: 0 | AZ67: 0 | BA67: 0 | BB67: 0 | BC67: 0
AK68: S17 | AL68: 0 | AM68: 0 | AN68: 0 | AO68: 0 | AP68: 0 | AQ68: 0 | AR68: 0 | AS68: 0 | AT68: 0 | AU68: 0 | AV68: 0 | AW68: 0 | AX68: 0 | AY68: 0 | AZ68: 0 | BA68: 0 | BB68: 0 | BC68: 0
AK69: S18 | AL69: 0 | AM69: 0 | AN69: 0 | AO69: 0 | AP69: 0 | AQ69: 0 | AR69: 0 | AS69: 0 | AT69: 0 | AU69: 0 | AV69: 0 | AW69: 0 | AX69: 0 | AY69: 0 | AZ69: 0 | BA69: 0 | BB69: 0 | BC69: 0
AK70: S19 | AL70: 0 | AM70: 0 | AN70: 0 | AO70: 0 | AP70: 0 | AQ70: 0 | AR70: 0 | AS70: 0 | AT70: 0 | AU70: 0 | AV70: 0 | AW70: 0 | AX70: 0 | AY70: 0 | AZ70: 0 | BA70: 0 | BB70: 0 | BC70: 0
AK71: S20 | AL71: 0 | AM71: 0 | AN71: 0 | AO71: 0 | AP71: 0 | AQ71: 0 | AR71: 0 | AS71: 0 | AT71: 0 | AU71: 0 | AV71: 0 | AW71: 0 | AX71: 0 | AY71: 0 | AZ71: 0 | BA71: 0 | BB71: 0 | BC71: 0
AK72: arány | AL72: =SUM(AL76:AL95)/SUM($AL$76:$BC$95) -> 0.03650707146 | AM72: =SUM(AM76:AM95)/SUM($AL$76:$BC$95) -> 0.01776504679 | AN72: 0.02941567418 | AO72: 0.05039743726 | AP72: 0.1127711612 | AQ72: 0.003256592939 | AR72: 0.003509145045 | AS72: 0.0648128456 | AT72: 0 | AU72: 0.3365854955 | AV72: 0.0780386006 | AW72: 0 | AX72: 0 | AY72: 0 | AZ72: 0.2268316674 | BA72: 0.04010926202 | BB72: 0 | BC72: 0
AK73: ellenhatások | AU73: =AL72 -> 0.03650707146 | AV73: =AM72 -> 0.01776504679 | AW73: 0.02941567418 | AX73: 0.05039743726 | AY73: 0.1127711612 | AZ73: 0.003256592939 | BA73: 0.003509145045 | BB73: 0.0648128456 | BC73: 0 | BD73: magas irracionalitási potenciál
AK74: értelmezés | AU74: inkább legyen tapasztalatlan korához képest, vagy nagyon tapasztalt | AV74: inkább legyen gólerős, de lehet, akire szükség van | AW74: egyértelműen minél kisebb, annál jobb | AX74: egyértelműen minél kisebb, annál jobb | AY74: egyértelműen minél kisebb, annál jobb | AZ74: egyértelműen minél nagyobb annál jobb | BA74: egyértelműen minél nagyobb annál jobb | BB74: egyértelműen minél kisebb, annál jobb | BC74: nincs hatása
AK75: COCO:STD | AL75: X(A1) | AM75: X(A2) | AN75: X(A3) | AO75: X(A4) | AP75: X(A5) | AQ75: X(A6) | AR75: X(A7) | AS75: X(A8) | AT75: X(A9) | AU75: X(A10) | AV75: X(A11) | AW75: X(A12) | AX75: X(A13) | AY75: X(A14) | AZ75: X(A15) | BA75: X(A16) | BB75: X(A17) | BC75: X(A18) | BD75: Becsl�s | BE75: T�ny+0 | BF75: Delta | BG75: Delta/T�ny
AK76: O1 | AL76: 0 | AM76: 0 | AN76: 0 | AO76: 0 | AP76: 0 | AQ76: 0 | AR76: 0 | AS76: 0 | AT76: 0 | AU76: 4188 | AV76: 3326 | AW76: 0 | AX76: 0 | AY76: 0 | AZ76: 0 | BA76: 0 | BB76: 0 | BC76: 0 | BD76: 7514 | BE76: 7514 | BF76: 0 | BG76: 0
AK77: O2 | AL77: 0 | AM77: 0 | AN77: 0 | AO77: 0 | AP77: 0 | AQ77: 0 | AR77: 0 | AS77: 2438 | AT77: 0 | AU77: 4188 | AV77: 252 | AW77: 0 | AX77: 0 | AY77: 0 | AZ77: 0 | BA77: 0 | BB77: 0 | BC77: 0 | BD77: 6878 | BE77: 6878 | BF77: 0 | BG77: 0
AK78: O3 | AL78: 0 | AM78: 243 | AN78: 0 | AO78: 0 | AP78: 0 | AQ78: 245 | AR78: 0 | AS78: 0 | AT78: 0 | AU78: 5734 | AV78: 0 | AW78: 0 | AX78: 0 | AY78: 0 | AZ78: 0 | BA78: 0 | BB78: 0 | BC78: 0 | BD78: 6222 | BE78: 6222 | BF78: 0 | BG78: 0
AK79: O4 | AL79: 0 | AM79: 243 | AN79: 0 | AO79: 0 | AP79: 0 | AQ79: 0 | AR79: 264 | AS79: 0 | AT79: 0 | AU79: 4493 | AV79: 0 | AW79: 0 | AX79: 0 | AY79: 0 | AZ79: 0 | BA79: 0 | BB79: 0 | BC79: 0 | BD79: 5000 | BE79: 5000 | BF79: 0 | BG79: 0
AK80: O5 | AL80: 0 | AM80: 0 | AN80: 0 | AO80: 4171 | AP80: 0 | AQ80: 0 | AR80: 0 | AS80: 2438 | AT80: 0 | AU80: 0 | AV80: 252 | AW80: 0 | AX80: 0 | AY80: 0 | AZ80: 0 | BA80: 1207 | BB80: 0 | BC80: 0 | BD80: 8068 | BE80: 8069 | BF80: 1 | BG80: 0.01
AK81: O6 | AL81: 0 | AM81: 243 | AN81: 0 | AO81: 0 | AP81: 0 | AQ81: 0 | AR81: 0 | AS81: 0 | AT81: 0 | AU81: 6414 | AV81: 0 | AW81: 0 | AX81: 0 | AY81: 0 | AZ81: 0 | BA81: 1207 | BB81: 0 | BC81: 0 | BD81: 7864 | BE81: 7864 | BF81: 0 | BG81: 0
AK82: O7 | AL82: 0 | AM82: 0 | AN82: 0 | AO82: 0 | AP82: 0 | AQ82: 0 | AR82: 0 | AS82: 0 | AT82: 0 | AU82: 6414 | AV82: 252 | AW82: 0 | AX82: 0 | AY82: 0 | AZ82: 0 | BA82: 0 | BB82: 0 | BC82: 0 | BD82: 6666 | BE82: 6666 | BF82: 0 | BG82: 0
AK83: O8 | AL83: 1831 | AM83: 243 | AN83: 0 | AO83: 0 | AP83: 5656 | AQ83: 0 | AR83: 0 | AS83: 0 | AT83: 0 | AU83: 0 | AV83: 0 | AW83: 0 | AX83: 0 | AY83: 0 | AZ83: 0 | BA83: 0 | BB83: 0 | BC83: 0 | BD83: 7730 | BE83: 7730 | BF83: 0 | BG83: 0
AK84: O9 | AL84: 1831 | AM84: 0 | AN84: 0 | AO84: 1706 | AP84: 0 | AQ84: 0 | AR84: 0 | AS84: 2438 | AT84: 0 | AU84: 0 | AV84: 252 | AW84: 0 | AX84: 0 | AY84: 0 | AZ84: 2282 | BA84: 0 | BB84: 0 | BC84: 0 | BD84: 8509 | BE84: 8510 | BF84: 1 | BG84: 0.01
AK85: O10 | AL85: 0 | AM85: 0 | AN85: 1168 | AO85: 0 | AP85: 0 | AQ85: 0 | AR85: 264 | AS85: 0 | AT85: 0 | AU85: 0 | AV85: 3326 | AW85: 0 | AX85: 0 | AY85: 0 | AZ85: 2282 | BA85: 0 | BB85: 0 | BC85: 0 | BD85: 7040 | BE85: 7040 | BF85: 0 | BG85: 0
AK86: O11 | AL86: 0 | AM86: 0 | AN86: 0 | AO86: 0 | AP86: 0 | AQ86: 0 | AR86: 0 | AS86: 2438 | AT86: 0 | AU86: 0 | AV86: 3326 | AW86: 0 | AX86: 0 | AY86: 0 | AZ86: 2282 | BA86: 0 | BB86: 0 | BC86: 0 | BD86: 8046 | BE86: 8047 | BF86: 1 | BG86: 0.01
AK87: O12 | AL87: 0 | AM87: 243 | AN87: 0 | AO87: 0 | AP87: 0 | AQ87: 0 | AR87: 0 | AS87: 0 | AT87: 0 | AU87: 4493 | AV87: 0 | AW87: 0 | AX87: 0 | AY87: 0 | AZ87: 2282 | BA87: 1207 | BB87: 0 | BC87: 0 | BD87: 8225 | BE87: 8226 | BF87: 1 | BG87: 0.01
AK88: O13 | AL88: 0 | AM88: 243 | AN88: 0 | AO88: 0 | AP88: 5656 | AQ88: 0 | AR88: 0 | AS88: 0 | AT88: 0 | AU88: 0 | AV88: 0 | AW88: 0 | AX88: 0 | AY88: 0 | AZ88: 2282 | BA88: 0 | BB88: 0 | BC88: 0 | BD88: 8181 | BE88: 8181 | BF88: 0 | BG88: 0
AK89: O14 | AL89: 0 | AM89: 0 | AN89: 0 | AO89: 0 | AP89: 5656 | AQ89: 245 | AR89: 0 | AS89: 0 | AT89: 0 | AU89: 0 | AV89: 252 | AW89: 0 | AX89: 0 | AY89: 0 | AZ89: 0 | BA89: 0 | BB89: 0 | BC89: 0 | BD89: 6153 | BE89: 6153 | BF89: 0 | BG89: 0
AK90: O15 | AL90: 0 | AM90: 243 | AN90: 0 | AO90: 0 | AP90: 0 | AQ90: 0 | AR90: 0 | AS90: 0 | AT90: 0 | AU90: 5734 | AV90: 0 | AW90: 0 | AX90: 0 | AY90: 0 | AZ90: 0 | BA90: 1207 | BB90: 0 | BC90: 0 | BD90: 7184 | BE90: 7184 | BF90: 0 | BG90: 0
AK91: O16 | AL91: 0 | AM91: 0 | AN91: 2090 | AO91: 0 | AP91: 0 | AQ91: 0 | AR91: 0 | AS91: 0 | AT91: 0 | AU91: 4493 | AV91: 252 | AW91: 0 | AX91: 0 | AY91: 0 | AZ91: 0 | BA91: 0 | BB91: 0 | BC91: 0 | BD91: 6835 | BE91: 6836 | BF91: 1 | BG91: 0.01
AK92: O17 | AL92: 1831 | AM92: 243 | AN92: 0 | AO92: 0 | AP92: 0 | AQ92: 0 | AR92: 0 | AS92: 0 | AT92: 0 | AU92: 0 | AV92: 0 | AW92: 0 | AX92: 0 | AY92: 0 | AZ92: 6738 | BA92: 0 | BB92: 0 | BC92: 0 | BD92: 8812 | BE92: 8812 | BF92: 0 | BG92: 0
AK93: O18 | AL93: 0 | AM93: 243 | AN93: 1168 | AO93: 1706 | AP93: 0 | AQ93: 0 | AR93: 0 | AS93: 0 | AT93: 0 | AU93: 4493 | AV93: 0 | AW93: 0 | AX93: 0 | AY93: 0 | AZ93: 0 | BA93: 0 | BB93: 0 | BC93: 0 | BD93: 7610 | BE93: 7610 | BF93: 0 | BG93: 0
AK94: O19 | AL94: 0 | AM94: 243 | AN94: 0 | AO94: 0 | AP94: 0 | AQ94: 0 | AR94: 0 | AS94: 0 | AT94: 0 | AU94: 0 | AV94: 252 | AW94: 0 | AX94: 0 | AY94: 0 | AZ94: 7991 | BA94: 0 | BB94: 0 | BC94: 0 | BD94: 8486 | BE94: 8486 | BF94: 0 | BG94: 0
AK95: O20 | AL95: 0 | AM95: 243 | AN95: 0 | AO95: 0 | AP95: 0 | AQ95: 0 | AR95: 0 | AS95: 0 | AT95: 0 | AU95: 0 | AV95: 0 | AW95: 0 | AX95: 0 | AY95: 0 | AZ95: 7991 | BA95: 1207 | BB95: 0 | BC95: 0 | BD95: 9441 | BE95: 9441 | BF95: 0 | BG95: 0
AK97: S1 �sszeg: | AL97: 35876
AK98: S20 �sszeg: | AL98: 0
AK99: Becsl�s �sszeg: | AL99: 150464
AK100: T�ny �sszeg: | AL100: 150469
AK101: T�ny-becsl�s elt�r�s: | AL101: -5
AK102: T�ny n�gyzet�sszeg:
AK103: Becsl�s n�gyzet�sszeg:
AK104: N�gyzet�sszeg hiba: | AL104: 0
AK106: Open url
AK108: Maxim�lis mem�ria haszn�lat: 1.5 Mb
AK109: A futtat�s id�tartama: 0.09 mp (0 p)

Sheet OAM1b (STD)
A1: jelleg | B1: direkt | C1: direkt | D1: direkt | E1: direkt | F1: direkt | G1: direkt | H1: direkt | I1: direkt | J1: inverz | K1: inverz | L1: inverz | M1: inverz | N1: inverz | O1: inverz | P1: inverz | Q1: inverz | R1: *10000&int | S1: =CORREL(R3:R22,S3:S22) -> 0.9999999109 | T1: <--korrel
A2: OAM | B2: egy életévre jutó meccsek száma | C2: egy meccsre jutó gólok száma | D2: egy meccsre jutó öngólok száma | E2: egy meccsre jutó sárgalapok száma | F2: egy meccsre jutó piroslapok száma | G2: hány százalékban csere? | H2: egy gólra jutó sárgalapok száma? | I2: egy gólra jutó piroslapok száma? | J2: egy életévre jutó meccsek száma | K2: egy meccsre jutó gólok száma | L2: egy meccsre jutó öngólok száma | M2: egy meccsre jutó sárgalapok száma | N2: egy meccsre jutó piroslapok száma | O2: hány százalékban csere? | P2: egy gólra jutó sárgalapok száma? | Q2: egy gólra jutó piroslapok száma? | R2: hány százalékban kezdő? | S2: becslés
A3: GM | B3: 11 | C3: 18 | D3: 5 | E3: 15 | F3: 6 | G3: 12 | H3: 7 | I3: 6 | J3: 10 | K3: 3 | L3: 16 | M3: 6 | N3: 15 | O3: 9 | P3: 14 | Q3: 15 | R3: 7514 | S3: =AN77 -> 7514
A4: BE | B4: 11 | C4: 14 | D4: 5 | E4: 6 | F4: 6 | G4: 6 | H4: 4 | I4: 6 | J4: 10 | K4: 7 | L4: 16 | M4: 15 | N4: 15 | O4: 15 | P4: 17 | Q4: 15 | R4: 6878 | S4: =AN78 -> 6878
A5: BT | B5: 18 | C5: 2 | D5: 5 | E5: 16 | F5: 6 | G5: 1 | H5: 16 | I5: 6 | J5: 3 | K5: 19 | L5: 16 | M5: 5 | N5: 15 | O5: 20 | P5: 5 | Q5: 15 | R5: 6222 | S5: 6222 | W5: Azonos�t�: | X5: 6907017 | Y5: Objektumok: | Z5: 20 | AA5: Attrib�tumok: | AB5: 16 | AC5: Lepcs�k: | AD5: 20 | AE5: Eltol�s: | AF5: 0 | AG5: Le�r�s: | AH5: COCO STD: 6907017
A6: FK | B6: 15 | C6: 6 | D6: 5 | E6: 5 | F6: 6 | G6: 3 | H6: 10 | I6: 6 | J6: 6 | K6: 15 | L6: 16 | M6: 16 | N6: 15 | O6: 18 | P6: 11 | Q6: 15 | R6: 5000 | S6: 5000
A7: FF | B7: 7 | C7: 15 | D7: 4 | E7: 1 | F7: 6 | G7: 9 | H7: 3 | I7: 6 | J7: 14 | K7: 6 | L7: 17 | M7: 20 | N7: 15 | O7: 12 | P7: 18 | Q7: 15 | R7: 8069 | S7: 8069 | W7: Rangsor | X7: X(A1) | Y7: X(A2) | Z7: X(A3) | AA7: X(A4) | AB7: X(A5) | AC7: X(A6) | AD7: X(A7) | AE7: X(A8) | AF7: X(A9) | AG7: X(A10) | AH7: X(A11) | AI7: X(A12) | AJ7: X(A13) | AK7: X(A14) | AL7: X(A15) | AM7: X(A16) | AN7: Y(A17)
A8: FI | B8: 19 | C8: 3 | D8: 5 | E8: 16 | F8: 6 | G8: 7 | H8: 16 | I8: 6 | J8: 2 | K8: 18 | L8: 16 | M8: 5 | N8: 15 | O8: 14 | P8: 5 | Q8: 15 | R8: 7864 | S8: 7864 | W8: O1 | X8: 11 | Y8: 18 | Z8: 5 | AA8: 15 | AB8: 6 | AC8: 12 | AD8: 7 | AE8: 6 | AF8: 10 | AG8: 3 | AH8: 16 | AI8: 6 | AJ8: 15 | AK8: 9 | AL8: 14 | AM8: 15 | AN8: 7514
A9: HM | B9: 20 | C9: 13 | D9: 5 | E9: 16 | F9: 6 | G9: 5 | H9: 16 | I9: 6 | J9: 1 | K9: 8 | L9: 16 | M9: 5 | N9: 15 | O9: 16 | P9: 5 | Q9: 15 | R9: 6666 | S9: 6666 | W9: O2 | X9: 11 | Y9: 14 | Z9: 5 | AA9: 6 | AB9: 6 | AC9: 6 | AD9: 4 | AE9: 6 | AF9: 10 | AG9: 7 | AH9: 16 | AI9: 15 | AJ9: 15 | AK9: 15 | AL9: 17 | AM9: 15 | AN9: 6878
A10: JI | B10: 1 | C10: 9 | D10: 5 | E10: 13 | F10: 1 | G10: 10 | H10: 13 | I10: 4 | J10: 20 | K10: 12 | L10: 16 | M10: 8 | N10: 20 | O10: 11 | P10: 8 | Q10: 17 | R10: 7730 | S10: 7730 | W10: O3 | X10: 18 | Y10: 2 | Z10: 5 | AA10: 16 | AB10: 6 | AC10: 1 | AD10: 16 | AE10: 6 | AF10: 3 | AG10: 19 | AH10: 16 | AI10: 5 | AJ10: 15 | AK10: 20 | AL10: 5 | AM10: 15 | AN10: 6222
A11: KK | B11: 3 | C11: 16 | D11: 5 | E11: 3 | F11: 5 | G11: 15 | H11: 2 | I11: 2 | J11: 18 | K11: 5 | L11: 16 | M11: 18 | N11: 16 | O11: 6 | P11: 19 | Q11: 19 | R11: 8510 | S11: 8510 | W11: O4 | X11: 15 | Y11: 6 | Z11: 5 | AA11: 5 | AB11: 6 | AC11: 3 | AD11: 10 | AE11: 6 | AF11: 6 | AG11: 15 | AH11: 16 | AI11: 16 | AJ11: 15 | AK11: 18 | AL11: 11 | AM11: 15 | AN11: 5000
A12: KP | B12: 10 | C12: 19 | D12: 3 | E12: 16 | F12: 6 | G12: 16 | H12: 16 | I12: 6 | J12: 11 | K12: 2 | L12: 18 | M12: 5 | N12: 15 | O12: 5 | P12: 5 | Q12: 15 | R12: 7040 | S12: 7039 | W12: O5 | X12: 7 | Y12: 15 | Z12: 4 | AA12: 1 | AB12: 6 | AC12: 9 | AD12: 3 | AE12: 6 | AF12: 14 | AG12: 6 | AH12: 17 | AI12: 20 | AJ12: 15 | AK12: 12 | AL12: 18 | AM12: 15 | AN12: 8069
A13: NN | B13: 4 | C13: 20 | D13: 5 | E13: 12 | F13: 4 | G13: 17 | H13: 1 | I13: 1 | J13: 17 | K13: 1 | L13: 16 | M13: 9 | N13: 17 | O13: 4 | P13: 20 | Q13: 20 | R13: 8047 | S13: 8046 | W13: O6 | X13: 19 | Y13: 3 | Z13: 5 | AA13: 16 | AB13: 6 | AC13: 7 | AD13: 16 | AE13: 6 | AF13: 2 | AG13: 18 | AH13: 16 | AI13: 5 | AJ13: 15 | AK13: 14 | AL13: 5 | AM13: 15 | AN13: 7864
A14: PD | B14: 13 | C14: 4 | D14: 5 | E14: 10 | F14: 6 | G14: 13 | H14: 15 | I14: 6 | J14: 8 | K14: 17 | L14: 16 | M14: 11 | N14: 15 | O14: 8 | P14: 6 | Q14: 15 | R14: 8226 | S14: 8226 | W14: O7 | X14: 20 | Y14: 13 | Z14: 5 | AA14: 16 | AB14: 6 | AC14: 5 | AD14: 16 | AE14: 6 | AF14: 1 | AG14: 8 | AH14: 16 | AI14: 5 | AJ14: 15 | AK14: 16 | AL14: 5 | AM14: 15 | AN14: 6666
A15: RD | B15: 5 | C15: 8 | D15: 5 | E15: 8 | F15: 3 | G15: 14 | H15: 9 | I15: 5 | J15: 16 | K15: 13 | L15: 16 | M15: 13 | N15: 18 | O15: 7 | P15: 12 | Q15: 16 | R15: 8181 | S15: 8180 | W15: O8 | X15: 1 | Y15: 9 | Z15: 5 | AA15: 13 | AB15: 1 | AC15: 10 | AD15: 13 | AE15: 4 | AF15: 20 | AG15: 12 | AH15: 16 | AI15: 8 | AJ15: 20 | AK15: 11 | AL15: 8 | AM15: 17 | AN15: 7730
A16: RF | B16: 6 | C16: 12 | D16: 5 | E16: 7 | F16: 2 | G16: 2 | H16: 6 | I16: 3 | J16: 15 | K16: 9 | L16: 16 | M16: 14 | N16: 19 | O16: 19 | P16: 15 | Q16: 18 | R16: 6153 | S16: 6153 | W16: O9 | X16: 3 | Y16: 16 | Z16: 5 | AA16: 3 | AB16: 5 | AC16: 15 | AD16: 2 | AE16: 2 | AF16: 18 | AG16: 5 | AH16: 16 | AI16: 18 | AJ16: 16 | AK16: 6 | AL16: 19 | AM16: 19 | AN16: 8510
A17: RB | B17: 17 | C17: 10 | D17: 5 | E17: 16 | F17: 6 | G17: 4 | H17: 16 | I17: 6 | J17: 4 | K17: 11 | L17: 16 | M17: 5 | N17: 15 | O17: 17 | P17: 5 | Q17: 15 | R17: 7184 | S17: 7184 | W17: O10 | X17: 10 | Y17: 19 | Z17: 3 | AA17: 16 | AB17: 6 | AC17: 16 | AD17: 16 | AE17: 6 | AF17: 11 | AG17: 2 | AH17: 18 | AI17: 5 | AJ17: 15 | AK17: 5 | AL17: 5 | AM17: 15 | AN17: 7040
A18: RT | B18: 16 | C18: 17 | D18: 1 | E18: 11 | F18: 6 | G18: 8 | H18: 5 | I18: 6 | J18: 5 | K18: 4 | L18: 20 | M18: 10 | N18: 15 | O18: 13 | P18: 16 | Q18: 15 | R18: 6836 | S18: 6837 | W18: O11 | X18: 4 | Y18: 20 | Z18: 5 | AA18: 12 | AB18: 4 | AC18: 17 | AD18: 1 | AE18: 1 | AF18: 17 | AG18: 1 | AH18: 16 | AI18: 9 | AJ18: 17 | AK18: 4 | AL18: 20 | AM18: 20 | AN18: 8047
A19: SB | B19: 2 | C19: 5 | D19: 5 | E19: 9 | F19: 6 | G19: 18 | H19: 14 | I19: 6 | J19: 19 | K19: 16 | L19: 16 | M19: 12 | N19: 15 | O19: 3 | P19: 7 | Q19: 15 | R19: 8812 | S19: 8812 | W19: O12 | X19: 13 | Y19: 4 | Z19: 5 | AA19: 10 | AB19: 6 | AC19: 13 | AD19: 15 | AE19: 6 | AF19: 8 | AG19: 17 | AH19: 16 | AI19: 11 | AJ19: 15 | AK19: 8 | AL19: 6 | AM19: 15 | AN19: 8226
A20: SV | B20: 14 | C20: 7 | D20: 2 | E20: 2 | F20: 6 | G20: 11 | H20: 8 | I20: 6 | J20: 7 | K20: 14 | L20: 19 | M20: 19 | N20: 15 | O20: 10 | P20: 13 | Q20: 15 | R20: 7610 | S20: 7610 | W20: O13 | X20: 5 | Y20: 8 | Z20: 5 | AA20: 8 | AB20: 3 | AC20: 14 | AD20: 9 | AE20: 5 | AF20: 16 | AG20: 13 | AH20: 16 | AI20: 13 | AJ20: 18 | AK20: 7 | AL20: 12 | AM20: 16 | AN20: 8181
A21: SZ | B21: 9 | C21: 11 | D21: 5 | E21: 14 | F21: 6 | G21: 19 | H21: 12 | I21: 6 | J21: 12 | K21: 10 | L21: 16 | M21: 7 | N21: 15 | O21: 2 | P21: 9 | Q21: 15 | R21: 8486 | S21: 8486 | W21: O14 | X21: 6 | Y21: 12 | Z21: 5 | AA21: 7 | AB21: 2 | AC21: 2 | AD21: 6 | AE21: 3 | AF21: 15 | AG21: 9 | AH21: 16 | AI21: 14 | AJ21: 19 | AK21: 19 | AL21: 15 | AM21: 18 | AN21: 6153
A22: TK | B22: 8 | C22: 1 | D22: 5 | E22: 4 | F22: 6 | G22: 20 | H22: 11 | I22: 6 | J22: 13 | K22: 20 | L22: 16 | M22: 17 | N22: 15 | O22: 1 | P22: 10 | Q22: 15 | R22: 9441 | S22: 9441 | W22: O15 | X22: 17 | Y22: 10 | Z22: 5 | AA22: 16 | AB22: 6 | AC22: 4 | AD22: 16 | AE22: 6 | AF22: 4 | AG22: 11 | AH22: 16 | AI22: 5 | AJ22: 15 | AK22: 17 | AL22: 5 | AM22: 15 | AN22: 7184
W23: O16 | X23: 16 | Y23: 17 | Z23: 1 | AA23: 11 | AB23: 6 | AC23: 8 | AD23: 5 | AE23: 6 | AF23: 5 | AG23: 4 | AH23: 20 | AI23: 10 | AJ23: 15 | AK23: 13 | AL23: 16 | AM23: 15 | AN23: 6836
W24: O17 | X24: 2 | Y24: 5 | Z24: 5 | AA24: 9 | AB24: 6 | AC24: 18 | AD24: 14 | AE24: 6 | AF24: 19 | AG24: 16 | AH24: 16 | AI24: 12 | AJ24: 15 | AK24: 3 | AL24: 7 | AM24: 15 | AN24: 8812
W25: O18 | X25: 14 | Y25: 7 | Z25: 2 | AA25: 2 | AB25: 6 | AC25: 11 | AD25: 8 | AE25: 6 | AF25: 7 | AG25: 14 | AH25: 19 | AI25: 19 | AJ25: 15 | AK25: 10 | AL25: 13 | AM25: 15 | AN25: 7610
W26: O19 | X26: 9 | Y26: 11 | Z26: 5 | AA26: 14 | AB26: 6 | AC26: 19 | AD26: 12 | AE26: 6 | AF26: 12 | AG26: 10 | AH26: 16 | AI26: 7 | AJ26: 15 | AK26: 2 | AL26: 9 | AM26: 15 | AN26: 8486
A27: =A2 -> OAM | B27: =B2 -> egy életévre jutó meccsek száma | C27: egy meccsre jutó gólok száma | D27: egy meccsre jutó öngólok száma | E27: egy meccsre jutó sárgalapok száma | F27: egy meccsre jutó piroslapok száma | G27: hány százalékban csere? | H27: egy gólra jutó sárgalapok száma? | I27: egy gólra jutó piroslapok száma? | J27: egy életévre jutó meccsek száma | K27: egy meccsre jutó gólok száma | L27: egy meccsre jutó öngólok száma | M27: egy meccsre jutó sárgalapok száma | N27: egy meccsre jutó piroslapok száma | O27: hány százalékban csere? | P27: egy gólra jutó sárgalapok száma? | Q27: egy gólra jutó piroslapok száma? | R27: hány százalékban kezdő? | W27: O20 | X27: 8 | Y27: 1 | Z27: 5 | AA27: 4 | AB27: 6 | AC27: 20 | AD27: 11 | AE27: 6 | AF27: 13 | AG27: 20 | AH27: 16 | AI27: 17 | AJ27: 15 | AK27: 1 | AL27: 10 | AM27: 15 | AN27: 9441
A28: =A3 -> GM | B28: =IF(INT(B3/5)+1=5,4,INT(B3/5)+1) -> 3 | C28: =IF(INT(C3/5)+1=5,4,INT(C3/5)+1) -> 4 | D28: 2 | E28: 4 | F28: 2 | G28: 3 | H28: 2 | I28: 2 | J28: 3 | K28: 1 | L28: 4 | M28: 2 | N28: 4 | O28: 2 | P28: 3 | Q28: 4 | R28: 7514
A29: =A4 -> BE | B29: =IF(INT(B4/5)+1=5,4,INT(B4/5)+1) -> 3 | C29: 3 | D29: 2 | E29: 2 | F29: 2 | G29: 2 | H29: 1 | I29: 2 | J29: 3 | K29: 2 | L29: 4 | M29: 4 | N29: 4 | O29: 4 | P29: 4 | Q29: 4 | R29: 6878 | W29: L�pcs�k(1) | X29: X(A1) | Y29: X(A2) | Z29: X(A3) | AA29: X(A4) | AB29: X(A5) | AC29: X(A6) | AD29: X(A7) | AE29: X(A8) | AF29: X(A9) | AG29: X(A10) | AH29: X(A11) | AI29: X(A12) | AJ29: X(A13) | AK29: X(A14) | AL29: X(A15) | AM29: X(A16)
A30: =A5 -> BT | B30: =IF(INT(B5/5)+1=5,4,INT(B5/5)+1) -> 4 | C30: 1 | D30: 2 | E30: 4 | F30: 2 | G30: 1 | H30: 4 | I30: 2 | J30: 1 | K30: 4 | L30: 4 | M30: 2 | N30: 4 | O30: 4 | P30: 2 | Q30: 4 | R30: 6222 | W30: S1 | X30: (0+2228)/(1)=2228 | Y30: (0+2319)/(1)=2319 | Z30: (0+1087)/(1)=1087 | AA30: (0+4031)/(1)=4031 | AB30: (0+3342)/(1)=3342 | AC30: (0+0)/(1)=0 | AD30: (0+1274)/(1)=1274 | AE30: (0+820)/(1)=820 | AF30: (0+5302)/(1)=5302 | AG30: (0+2501)/(1)=2501 | AH30: (0+0)/(1)=0 | AI30: (0+0)/(1)=0 | AJ30: (0+0)/(1)=0 | AK30: (0+6495)/(1)=6495 | AL30: (0+0)/(1)=0 | AM30: (0+0)/(1)=0
A31: =A6 -> FK | B31: =IF(INT(B6/5)+1=5,4,INT(B6/5)+1) -> 4 | C31: 2 | D31: 2 | E31: 2 | F31: 2 | G31: 1 | H31: 3 | I31: 2 | J31: 2 | K31: 4 | L31: 4 | M31: 4 | N31: 4 | O31: 4 | P31: 3 | Q31: 4 | R31: 5000 | W31: S2 | X31: (0+2228)/(1)=2228 | Y31: (0+1789)/(1)=1789 | Z31: (0+1087)/(1)=1087 | AA31: (0+750)/(1)=750 | AB31: (0+3342)/(1)=3342 | AC31: (0+0)/(1)=0 | AD31: (0+1274)/(1)=1274 | AE31: (0+820)/(1)=820 | AF31: (0+5302)/(1)=5302 | AG31: (0+2501)/(1)=2501 | AH31: (0+0)/(1)=0 | AI31: (0+0)/(1)=0 | AJ31: (0+0)/(1)=0 | AK31: (0+6495)/(1)=6495 | AL31: (0+0)/(1)=0 | AM31: (0+0)/(1)=0
A32: =A7 -> FF | B32: =IF(INT(B7/5)+1=5,4,INT(B7/5)+1) -> 2 | C32: 4 | D32: 1 | E32: 1 | F32: 2 | G32: 2 | H32: 1 | I32: 2 | J32: 3 | K32: 2 | L32: 4 | M32: 4 | N32: 4 | O32: 3 | P32: 4 | Q32: 4 | R32: 8069 | W32: S3 | X32: (0+2228)/(1)=2228 | Y32: (0+1789)/(1)=1789 | Z32: (0+1087)/(1)=1087 | AA32: (0+0)/(1)=0 | AB32: (0+3342)/(1)=3342 | AC32: (0+0)/(1)=0 | AD32: (0+1274)/(1)=1274 | AE32: (0+820)/(1)=820 | AF32: (0+4433)/(1)=4433 | AG32: (0+2501)/(1)=2501 | AH32: (0+0)/(1)=0 | AI32: (0+0)/(1)=0 | AJ32: (0+0)/(1)=0 | AK32: (0+5197)/(1)=5197 | AL32: (0+0)/(1)=0 | AM32: (0+0)/(1)=0
A33: =A8 -> FI | B33: =IF(INT(B8/5)+1=5,4,INT(B8/5)+1) -> 4 | C33: 1 | D33: 2 | E33: 4 | F33: 2 | G33: 2 | H33: 4 | I33: 2 | J33: 1 | K33: 4 | L33: 4 | M33: 2 | N33: 4 | O33: 3 | P33: 2 | Q33: 4 | R33: 7864 | W33: S4 | X33: (0+627)/(1)=627 | Y33: (0+1789)/(1)=1789 | Z33: (0+0)/(1)=0 | AA33: (0+0)/(1)=0 | AB33: (0+0)/(1)=0 | AC33: (0+0)/(1)=0 | AD33: (0+1274)/(1)=1274 | AE33: (0+0)/(1)=0 | AF33: (0+4433)/(1)=4433 | AG33: (0+1364)/(1)=1364 | AH33: (0+0)/(1)=0 | AI33: (0+0)/(1)=0 | AJ33: (0+0)/(1)=0 | AK33: (0+2824)/(1)=2824 | AL33: (0+0)/(1)=0 | AM33: (0+0)/(1)=0
A34: =A9 -> HM | B34: =IF(INT(B9/5)+1=5,4,INT(B9/5)+1) -> 4 | C34: 3 | D34: 2 | E34: 4 | F34: 2 | G34: 2 | H34: 4 | I34: 2 | J34: 1 | K34: 2 | L34: 4 | M34: 2 | N34: 4 | O34: 4 | P34: 2 | Q34: 4 | R34: 6666 | W34: S5 | X34: (0+627)/(1)=627 | Y34: (0+1387)/(1)=1387 | Z34: (0+0)/(1)=0 | AA34: (0+0)/(1)=0 | AB34: (0+0)/(1)=0 | AC34: (0+0)/(1)=0 | AD34: (0+0)/(1)=0 | AE34: (0+0)/(1)=0 | AF34: (0+3613)/(1)=3613 | AG34: (0+1364)/(1)=1364 | AH34: (0+0)/(1)=0 | AI34: (0+0)/(1)=0 | AJ34: (0+0)/(1)=0 | AK34: (0+2824)/(1)=2824 | AL34: (0+0)/(1)=0 | AM34: (0+0)/(1)=0
A35: =A10 -> JI | B35: =IF(INT(B10/5)+1=5,4,INT(B10/5)+1) -> 1 | C35: 2 | D35: 2 | E35: 3 | F35: 1 | G35: 3 | H35: 3 | I35: 1 | J35: 4 | K35: 3 | L35: 4 | M35: 2 | N35: 4 | O35: 3 | P35: 2 | Q35: 4 | R35: 7730 | W35: S6 | X35: (0+627)/(1)=627 | Y35: (0+1387)/(1)=1387 | Z35: (0+0)/(1)=0 | AA35: (0+0)/(1)=0 | AB35: (0+0)/(1)=0 | AC35: (0+0)/(1)=0 | AD35: (0+0)/(1)=0 | AE35: (0+0)/(1)=0 | AF35: (0+3613)/(1)=3613 | AG35: (0+1364)/(1)=1364 | AH35: (0+0)/(1)=0 | AI35: (0+0)/(1)=0 | AJ35: (0+0)/(1)=0 | AK35: (0+2824)/(1)=2824 | AL35: (0+0)/(1)=0 | AM35: (0+0)/(1)=0
A36: =A11 -> KK | B36: =IF(INT(B11/5)+1=5,4,INT(B11/5)+1) -> 1 | C36: 4 | D36: 2 | E36: 1 | F36: 2 | G36: 4 | H36: 1 | I36: 1 | J36: 4 | K36: 2 | L36: 4 | M36: 4 | N36: 4 | O36: 2 | P36: 4 | Q36: 4 | R36: 8510 | W36: S7 | X36: (0+627)/(1)=627 | Y36: (0+1387)/(1)=1387 | Z36: (0+0)/(1)=0 | AA36: (0+0)/(1)=0 | AB36: (0+0)/(1)=0 | AC36: (0+0)/(1)=0 | AD36: (0+0)/(1)=0 | AE36: (0+0)/(1)=0 | AF36: (0+3613)/(1)=3613 | AG36: (0+1364)/(1)=1364 | AH36: (0+0)/(1)=0 | AI36: (0+0)/(1)=0 | AJ36: (0+0)/(1)=0 | AK36: (0+2824)/(1)=2824 | AL36: (0+0)/(1)=0 | AM36: (0+0)/(1)=0
A37: =A12 -> KP | B37: =IF(INT(B12/5)+1=5,4,INT(B12/5)+1) -> 3 | C37: 4 | D37: 1 | E37: 4 | F37: 2 | G37: 4 | H37: 4 | I37: 2 | J37: 3 | K37: 1 | L37: 4 | M37: 2 | N37: 4 | O37: 2 | P37: 2 | Q37: 4 | R37: 7040 | W37: S8 | X37: (0+627)/(1)=627 | Y37: (0+1387)/(1)=1387 | Z37: (0+0)/(1)=0 | AA37: (0+0)/(1)=0 | AB37: (0+0)/(1)=0 | AC37: (0+0)/(1)=0 | AD37: (0+0)/(1)=0 | AE37: (0+0)/(1)=0 | AF37: (0+3613)/(1)=3613 | AG37: (0+1364)/(1)=1364 | AH37: (0+0)/(1)=0 | AI37: (0+0)/(1)=0 | AJ37: (0+0)/(1)=0 | AK37: (0+2824)/(1)=2824 | AL37: (0+0)/(1)=0 | AM37: (0+0)/(1)=0
A38: =A13 -> NN | B38: =IF(INT(B13/5)+1=5,4,INT(B13/5)+1) -> 1 | C38: 4 | D38: 2 | E38: 3 | F38: 1 | G38: 4 | H38: 1 | I38: 1 | J38: 4 | K38: 1 | L38: 4 | M38: 2 | N38: 4 | O38: 1 | P38: 4 | Q38: 4 | R38: 8047 | W38: S9 | X38: (0+627)/(1)=627 | Y38: (0+1387)/(1)=1387 | Z38: (0+0)/(1)=0 | AA38: (0+0)/(1)=0 | AB38: (0+0)/(1)=0 | AC38: (0+0)/(1)=0 | AD38: (0+0)/(1)=0 | AE38: (0+0)/(1)=0 | AF38: (0+3613)/(1)=3613 | AG38: (0+1364)/(1)=1364 | AH38: (0+0)/(1)=0 | AI38: (0+0)/(1)=0 | AJ38: (0+0)/(1)=0 | AK38: (0+773)/(1)=773 | AL38: (0+0)/(1)=0 | AM38: (0+0)/(1)=0
A39: =A14 -> PD | B39: =IF(INT(B14/5)+1=5,4,INT(B14/5)+1) -> 3 | C39: 1 | D39: 2 | E39: 3 | F39: 2 | G39: 3 | H39: 4 | I39: 2 | J39: 2 | K39: 4 | L39: 4 | M39: 3 | N39: 4 | O39: 2 | P39: 2 | Q39: 4 | R39: 8226 | W39: S10 | X39: (0+627)/(1)=627 | Y39: (0+1387)/(1)=1387 | Z39: (0+0)/(1)=0 | AA39: (0+0)/(1)=0 | AB39: (0+0)/(1)=0 | AC39: (0+0)/(1)=0 | AD39: (0+0)/(1)=0 | AE39: (0+0)/(1)=0 | AF39: (0+3613)/(1)=3613 | AG39: (0+1364)/(1)=1364 | AH39: (0+0)/(1)=0 | AI39: (0+0)/(1)=0 | AJ39: (0+0)/(1)=0 | AK39: (0+773)/(1)=773 | AL39: (0+0)/(1)=0 | AM39: (0+0)/(1)=0
A40: =A15 -> RD | B40: =IF(INT(B15/5)+1=5,4,INT(B15/5)+1) -> 2 | C40: 2 | D40: 2 | E40: 2 | F40: 1 | G40: 3 | H40: 2 | I40: 2 | J40: 4 | K40: 3 | L40: 4 | M40: 3 | N40: 4 | O40: 2 | P40: 3 | Q40: 4 | R40: 8181 | W40: S11 | X40: (0+627)/(1)=627 | Y40: (0+0)/(1)=0 | Z40: (0+0)/(1)=0 | AA40: (0+0)/(1)=0 | AB40: (0+0)/(1)=0 | AC40: (0+0)/(1)=0 | AD40: (0+0)/(1)=0 | AE40: (0+0)/(1)=0 | AF40: (0+0)/(1)=0 | AG40: (0+1364)/(1)=1364 | AH40: (0+0)/(1)=0 | AI40: (0+0)/(1)=0 | AJ40: (0+0)/(1)=0 | AK40: (0+773)/(1)=773 | AL40: (0+0)/(1)=0 | AM40: (0+0)/(1)=0
A41: =A16 -> RF | B41: =IF(INT(B16/5)+1=5,4,INT(B16/5)+1) -> 2 | C41: 3 | D41: 2 | E41: 2 | F41: 1 | G41: 1 | H41: 2 | I41: 1 | J41: 4 | K41: 2 | L41: 4 | M41: 3 | N41: 4 | O41: 4 | P41: 4 | Q41: 4 | R41: 6153 | W41: S12 | X41: (0+0)/(1)=0 | Y41: (0+0)/(1)=0 | Z41: (0+0)/(1)=0 | AA41: (0+0)/(1)=0 | AB41: (0+0)/(1)=0 | AC41: (0+0)/(1)=0 | AD41: (0+0)/(1)=0 | AE41: (0+0)/(1)=0 | AF41: (0+0)/(1)=0 | AG41: (0+0)/(1)=0 | AH41: (0+0)/(1)=0 | AI41: (0+0)/(1)=0 | AJ41: (0+0)/(1)=0 | AK41: (0+773)/(1)=773 | AL41: (0+0)/(1)=0 | AM41: (0+0)/(1)=0
A42: =A17 -> RB | B42: =IF(INT(B17/5)+1=5,4,INT(B17/5)+1) -> 4 | C42: 3 | D42: 2 | E42: 4 | F42: 2 | G42: 1 | H42: 4 | I42: 2 | J42: 1 | K42: 3 | L42: 4 | M42: 2 | N42: 4 | O42: 4 | P42: 2 | Q42: 4 | R42: 7184 | W42: S13 | X42: (0+0)/(1)=0 | Y42: (0+0)/(1)=0 | Z42: (0+0)/(1)=0 | AA42: (0+0)/(1)=0 | AB42: (0+0)/(1)=0 | AC42: (0+0)/(1)=0 | AD42: (0+0)/(1)=0 | AE42: (0+0)/(1)=0 | AF42: (0+0)/(1)=0 | AG42: (0+0)/(1)=0 | AH42: (0+0)/(1)=0 | AI42: (0+0)/(1)=0 | AJ42: (0+0)/(1)=0 | AK42: (0+773)/(1)=773 | AL42: (0+0)/(1)=0 | AM42: (0+0)/(1)=0
A43: =A18 -> RT | B43: =IF(INT(B18/5)+1=5,4,INT(B18/5)+1) -> 4 | C43: 4 | D43: 1 | E43: 3 | F43: 2 | G43: 2 | H43: 2 | I43: 2 | J43: 2 | K43: 1 | L43: 4 | M43: 3 | N43: 4 | O43: 3 | P43: 4 | Q43: 4 | R43: 6836 | W43: S14 | X43: (0+0)/(1)=0 | Y43: (0+0)/(1)=0 | Z43: (0+0)/(1)=0 | AA43: (0+0)/(1)=0 | AB43: (0+0)/(1)=0 | AC43: (0+0)/(1)=0 | AD43: (0+0)/(1)=0 | AE43: (0+0)/(1)=0 | AF43: (0+0)/(1)=0 | AG43: (0+0)/(1)=0 | AH43: (0+0)/(1)=0 | AI43: (0+0)/(1)=0 | AJ43: (0+0)/(1)=0 | AK43: (0+773)/(1)=773 | AL43: (0+0)/(1)=0 | AM43: (0+0)/(1)=0
A44: =A19 -> SB | B44: =IF(INT(B19/5)+1=5,4,INT(B19/5)+1) -> 1 | C44: 2 | D44: 2 | E44: 2 | F44: 2 | G44: 4 | H44: 3 | I44: 2 | J44: 4 | K44: 4 | L44: 4 | M44: 3 | N44: 4 | O44: 1 | P44: 2 | Q44: 4 | R44: 8812 | W44: S15 | X44: (0+0)/(1)=0 | Y44: (0+0)/(1)=0 | Z44: (0+0)/(1)=0 | AA44: (0+0)/(1)=0 | AB44: (0+0)/(1)=0 | AC44: (0+0)/(1)=0 | AD44: (0+0)/(1)=0 | AE44: (0+0)/(1)=0 | AF44: (0+0)/(1)=0 | AG44: (0+0)/(1)=0 | AH44: (0+0)/(1)=0 | AI44: (0+0)/(1)=0 | AJ44: (0+0)/(1)=0 | AK44: (0+0)/(1)=0 | AL44: (0+0)/(1)=0 | AM44: (0+0)/(1)=0
A45: =A20 -> SV | B45: =IF(INT(B20/5)+1=5,4,INT(B20/5)+1) -> 3 | C45: 2 | D45: 1 | E45: 1 | F45: 2 | G45: 3 | H45: 2 | I45: 2 | J45: 2 | K45: 3 | L45: 4 | M45: 4 | N45: 4 | O45: 3 | P45: 3 | Q45: 4 | R45: 7610 | W45: S16 | X45: (0+0)/(1)=0 | Y45: (0+0)/(1)=0 | Z45: (0+0)/(1)=0 | AA45: (0+0)/(1)=0 | AB45: (0+0)/(1)=0 | AC45: (0+0)/(1)=0 | AD45: (0+0)/(1)=0 | AE45: (0+0)/(1)=0 | AF45: (0+0)/(1)=0 | AG45: (0+0)/(1)=0 | AH45: (0+0)/(1)=0 | AI45: (0+0)/(1)=0 | AJ45: (0+0)/(1)=0 | AK45: (0+0)/(1)=0 | AL45: (0+0)/(1)=0 | AM45: (0+0)/(1)=0
A46: =A21 -> SZ | B46: =IF(INT(B21/5)+1=5,4,INT(B21/5)+1) -> 2 | C46: 3 | D46: 2 | E46: 3 | F46: 2 | G46: 4 | H46: 3 | I46: 2 | J46: 3 | K46: 3 | L46: 4 | M46: 2 | N46: 4 | O46: 1 | P46: 2 | Q46: 4 | R46: 8486 | W46: S17 | X46: (0+0)/(1)=0 | Y46: (0+0)/(1)=0 | Z46: (0+0)/(1)=0 | AA46: (0+0)/(1)=0 | AB46: (0+0)/(1)=0 | AC46: (0+0)/(1)=0 | AD46: (0+0)/(1)=0 | AE46: (0+0)/(1)=0 | AF46: (0+0)/(1)=0 | AG46: (0+0)/(1)=0 | AH46: (0+0)/(1)=0 | AI46: (0+0)/(1)=0 | AJ46: (0+0)/(1)=0 | AK46: (0+0)/(1)=0 | AL46: (0+0)/(1)=0 | AM46: (0+0)/(1)=0
A47: =A22 -> TK | B47: =IF(INT(B22/5)+1=5,4,INT(B22/5)+1) -> 2 | C47: 1 | D47: 2 | E47: 1 | F47: 2 | G47: 4 | H47: 3 | I47: 2 | J47: 3 | K47: 4 | L47: 4 | M47: 4 | N47: 4 | O47: 1 | P47: 3 | Q47: 4 | R47: 9441 | W47: S18 | X47: (0+0)/(1)=0 | Y47: (0+0)/(1)=0 | Z47: (0+0)/(1)=0 | AA47: (0+0)/(1)=0 | AB47: (0+0)/(1)=0 | AC47: (0+0)/(1)=0 | AD47: (0+0)/(1)=0 | AE47: (0+0)/(1)=0 | AF47: (0+0)/(1)=0 | AG47: (0+0)/(1)=0 | AH47: (0+0)/(1)=0 | AI47: (0+0)/(1)=0 | AJ47: (0+0)/(1)=0 | AK47: (0+0)/(1)=0 | AL47: (0+0)/(1)=0 | AM47: (0+0)/(1)=0
W48: S19 | X48: (0+0)/(1)=0 | Y48: (0+0)/(1)=0 | Z48: (0+0)/(1)=0 | AA48: (0+0)/(1)=0 | AB48: (0+0)/(1)=0 | AC48: (0+0)/(1)=0 | AD48: (0+0)/(1)=0 | AE48: (0+0)/(1)=0 | AF48: (0+0)/(1)=0 | AG48: (0+0)/(1)=0 | AH48: (0+0)/(1)=0 | AI48: (0+0)/(1)=0 | AJ48: (0+0)/(1)=0 | AK48: (0+0)/(1)=0 | AL48: (0+0)/(1)=0 | AM48: (0+0)/(1)=0
W49: S20 | X49: (0+0)/(1)=0 | Y49: (0+0)/(1)=0 | Z49: (0+0)/(1)=0 | AA49: (0+0)/(1)=0 | AB49: (0+0)/(1)=0 | AC49: (0+0)/(1)=0 | AD49: (0+0)/(1)=0 | AE49: (0+0)/(1)=0 | AF49: (0+0)/(1)=0 | AG49: (0+0)/(1)=0 | AH49: (0+0)/(1)=0 | AI49: (0+0)/(1)=0 | AJ49: (0+0)/(1)=0 | AK49: (0+0)/(1)=0 | AL49: (0+0)/(1)=0 | AM49: (0+0)/(1)=0
AF50: inverz | AG50: inverz | AH50: inverz | AI50: inverz | AJ50: inverz | AK50: inverz | AL50: inverz | AM50: inverz
A51: =A27 -> OAM | B51: =B27 -> egy életévre jutó meccsek száma | C51: egy meccsre jutó gólok száma | D51: egy meccsre jutó öngólok száma | E51: egy meccsre jutó sárgalapok száma | F51: egy meccsre jutó piroslapok száma | G51: hány százalékban csere? | H51: egy gólra jutó sárgalapok száma? | I51: egy gólra jutó piroslapok száma? | J51: =R27 -> hány százalékban kezdő? | W51: L�pcs�k(2) | X51: =B2 -> egy életévre jutó meccsek száma | Y51: =C2 -> egy meccsre jutó gólok száma | Z51: egy meccsre jutó öngólok száma | AA51: egy meccsre jutó sárgalapok száma | AB51: egy meccsre jutó piroslapok száma | AC51: hány százalékban csere? | AD51: egy gólra jutó sárgalapok száma? | AE51: egy gólra jutó piroslapok száma? | AF51: egy életévre jutó meccsek száma | AG51: egy meccsre jutó gólok száma | AH51: egy meccsre jutó öngólok száma | AI51: egy meccsre jutó sárgalapok száma | AJ51: egy meccsre jutó piroslapok száma | AK51: hány százalékban csere? | AL51: egy gólra jutó sárgalapok száma? | AM51: egy gólra jutó piroslapok száma?
A52: =A28 -> GM | B52: 3 | C52: 4 | D52: 2 | E52: 4 | F52: 2 | G52: 3 | H52: 2 | I52: 2 | J52: =R28 -> 7514 | W52: S1 | X52: 2228 | Y52: 2319 | Z52: 1087 | AA52: 4031 | AB52: 3342 | AC52: 0 | AD52: 1274 | AE52: 820 | AF52: 5302 | AG52: 2501 | AH52: 0 | AI52: 0 | AJ52: 0 | AK52: 6495 | AL52: 0 | AM52: 0
A53: =A29 -> BE | B53: 3 | C53: 3 | D53: 2 | E53: 2 | F53: 2 | G53: 2 | H53: 1 | I53: 2 | J53: =R29 -> 6878 | W53: S2 | X53: 2228 | Y53: 1789 | Z53: 1087 | AA53: 750 | AB53: 3342 | AC53: 0 | AD53: 1274 | AE53: 820 | AF53: 5302 | AG53: 2501 | AH53: 0 | AI53: 0 | AJ53: 0 | AK53: 6495 | AL53: 0 | AM53: 0
A54: =A30 -> BT | B54: 4 | C54: 1 | D54: 2 | E54: 4 | F54: 2 | G54: 1 | H54: 4 | I54: 2 | J54: =R30 -> 6222 | W54: S3 | X54: 2228 | Y54: 1789 | Z54: 1087 | AA54: 0 | AB54: 3342 | AC54: 0 | AD54: 1274 | AE54: 820 | AF54: 4433 | AG54: 2501 | AH54: 0 | AI54: 0 | AJ54: 0 | AK54: 5197 | AL54: 0 | AM54: 0
A55: =A31 -> FK | B55: 4 | C55: 2 | D55: 2 | E55: 2 | F55: 2 | G55: 1 | H55: 3 | I55: 2 | J55: =R31 -> 5000 | W55: S4 | X55: 627 | Y55: 1789 | Z55: 0 | AA55: 0 | AB55: 0 | AC55: 0 | AD55: 1274 | AE55: 0 | AF55: 4433 | AG55: 1364 | AH55: 0 | AI55: 0 | AJ55: 0 | AK55: 2824 | AL55: 0 | AM55: 0
A56: =A32 -> FF | B56: 2 | C56: 4 | D56: 1 | E56: 1 | F56: 2 | G56: 2 | H56: 1 | I56: 2 | J56: =R32 -> 8069 | W56: S5 | X56: 627 | Y56: 1387 | Z56: 0 | AA56: 0 | AB56: 0 | AC56: 0 | AD56: 0 | AE56: 0 | AF56: 3613 | AG56: 1364 | AH56: 0 | AI56: 0 | AJ56: 0 | AK56: 2824 | AL56: 0 | AM56: 0
A57: =A33 -> FI | B57: 4 | C57: 1 | D57: 2 | E57: 4 | F57: 2 | G57: 2 | H57: 4 | I57: 2 | J57: =R33 -> 7864 | W57: S6 | X57: 627 | Y57: 1387 | Z57: 0 | AA57: 0 | AB57: 0 | AC57: 0 | AD57: 0 | AE57: 0 | AF57: 3613 | AG57: 1364 | AH57: 0 | AI57: 0 | AJ57: 0 | AK57: 2824 | AL57: 0 | AM57: 0
A58: =A34 -> HM | B58: 4 | C58: 3 | D58: 2 | E58: 4 | F58: 2 | G58: 2 | H58: 4 | I58: 2 | J58: =R34 -> 6666 | W58: S7 | X58: 627 | Y58: 1387 | Z58: 0 | AA58: 0 | AB58: 0 | AC58: 0 | AD58: 0 | AE58: 0 | AF58: 3613 | AG58: 1364 | AH58: 0 | AI58: 0 | AJ58: 0 | AK58: 2824 | AL58: 0 | AM58: 0
A59: =A35 -> JI | B59: 1 | C59: 2 | D59: 2 | E59: 3 | F59: 1 | G59: 3 | H59: 3 | I59: 1 | J59: =R35 -> 7730 | W59: S8 | X59: 627 | Y59: 1387 | Z59: 0 | AA59: 0 | AB59: 0 | AC59: 0 | AD59: 0 | AE59: 0 | AF59: 3613 | AG59: 1364 | AH59: 0 | AI59: 0 | AJ59: 0 | AK59: 2824 | AL59: 0 | AM59: 0
A60: =A36 -> KK | B60: 1 | C60: 4 | D60: 2 | E60: 1 | F60: 2 | G60: 4 | H60: 1 | I60: 1 | J60: =R36 -> 8510 | W60: S9 | X60: 627 | Y60: 1387 | Z60: 0 | AA60: 0 | AB60: 0 | AC60: 0 | AD60: 0 | AE60: 0 | AF60: 3613 | AG60: 1364 | AH60: 0 | AI60: 0 | AJ60: 0 | AK60: 773 | AL60: 0 | AM60: 0
A61: =A37 -> KP | B61: 3 | C61: 4 | D61: 1 | E61: 4 | F61: 2 | G61: 4 | H61: 4 | I61: 2 | J61: =R37 -> 7040 | W61: S10 | X61: 627 | Y61: 1387 | Z61: 0 | AA61: 0 | AB61: 0 | AC61: 0 | AD61: 0 | AE61: 0 | AF61: 3613 | AG61: 1364 | AH61: 0 | AI61: 0 | AJ61: 0 | AK61: 773 | AL61: 0 | AM61: 0
A62: =A38 -> NN | B62: 1 | C62: 4 | D62: 2 | E62: 3 | F62: 1 | G62: 4 | H62: 1 | I62: 1 | J62: =R38 -> 8047 | W62: S11 | X62: 627 | Y62: 0 | Z62: 0 | AA62: 0 | AB62: 0 | AC62: 0 | AD62: 0 | AE62: 0 | AF62: 0 | AG62: 1364 | AH62: 0 | AI62: 0 | AJ62: 0 | AK62: 773 | AL62: 0 | AM62: 0
A63: =A39 -> PD | B63: 3 | C63: 1 | D63: 2 | E63: 3 | F63: 2 | G63: 3 | H63: 4 | I63: 2 | J63: =R39 -> 8226 | W63: S12 | X63: 0 | Y63: 0 | Z63: 0 | AA63: 0 | AB63: 0 | AC63: 0 | AD63: 0 | AE63: 0 | AF63: 0 | AG63: 0 | AH63: 0 | AI63: 0 | AJ63: 0 | AK63: 773 | AL63: 0 | AM63: 0
A64: =A40 -> RD | B64: 2 | C64: 2 | D64: 2 | E64: 2 | F64: 1 | G64: 3 | H64: 2 | I64: 2 | J64: =R40 -> 8181 | W64: S13 | X64: 0 | Y64: 0 | Z64: 0 | AA64: 0 | AB64: 0 | AC64: 0 | AD64: 0 | AE64: 0 | AF64: 0 | AG64: 0 | AH64: 0 | AI64: 0 | AJ64: 0 | AK64: 773 | AL64: 0 | AM64: 0
A65: =A41 -> RF | B65: 2 | C65: 3 | D65: 2 | E65: 2 | F65: 1 | G65: 1 | H65: 2 | I65: 1 | J65: =R41 -> 6153 | W65: S14 | X65: 0 | Y65: 0 | Z65: 0 | AA65: 0 | AB65: 0 | AC65: 0 | AD65: 0 | AE65: 0 | AF65: 0 | AG65: 0 | AH65: 0 | AI65: 0 | AJ65: 0 | AK65: 773 | AL65: 0 | AM65: 0
A66: =A42 -> RB | B66: 4 | C66: 3 | D66: 2 | E66: 4 | F66: 2 | G66: 1 | H66: 4 | I66: 2 | J66: =R42 -> 7184 | W66: S15 | X66: 0 | Y66: 0 | Z66: 0 | AA66: 0 | AB66: 0 | AC66: 0 | AD66: 0 | AE66: 0 | AF66: 0 | AG66: 0 | AH66: 0 | AI66: 0 | AJ66: 0 | AK66: 0 | AL66: 0 | AM66: 0
A67: =A43 -> RT | B67: 4 | C67: 4 | D67: 1 | E67: 3 | F67: 2 | G67: 2 | H67: 2 | I67: 2 | J67: =R43 -> 6836 | W67: S16 | X67: 0 | Y67: 0 | Z67: 0 | AA67: 0 | AB67: 0 | AC67: 0 | AD67: 0 | AE67: 0 | AF67: 0 | AG67: 0 | AH67: 0 | AI67: 0 | AJ67: 0 | AK67: 0 | AL67: 0 | AM67: 0
A68: =A44 -> SB | B68: 1 | C68: 2 | D68: 2 | E68: 2 | F68: 2 | G68: 4 | H68: 3 | I68: 2 | J68: =R44 -> 8812 | W68: S17 | X68: 0 | Y68: 0 | Z68: 0 | AA68: 0 | AB68: 0 | AC68: 0 | AD68: 0 | AE68: 0 | AF68: 0 | AG68: 0 | AH68: 0 | AI68: 0 | AJ68: 0 | AK68: 0 | AL68: 0 | AM68: 0
A69: =A45 -> SV | B69: 3 | C69: 2 | D69: 1 | E69: 1 | F69: 2 | G69: 3 | H69: 2 | I69: 2 | J69: =R45 -> 7610 | W69: S18 | X69: 0 | Y69: 0 | Z69: 0 | AA69: 0 | AB69: 0 | AC69: 0 | AD69: 0 | AE69: 0 | AF69: 0 | AG69: 0 | AH69: 0 | AI69: 0 | AJ69: 0 | AK69: 0 | AL69: 0 | AM69: 0
A70: =A46 -> SZ | B70: 2 | C70: 3 | D70: 2 | E70: 3 | F70: 2 | G70: 4 | H70: 3 | I70: 2 | J70: =R46 -> 8486 | W70: S19 | X70: 0 | Y70: 0 | Z70: 0 | AA70: 0 | AB70: 0 | AC70: 0 | AD70: 0 | AE70: 0 | AF70: 0 | AG70: 0 | AH70: 0 | AI70: 0 | AJ70: 0 | AK70: 0 | AL70: 0 | AM70: 0
A71: =A47 -> TK | B71: 2 | C71: 1 | D71: 2 | E71: 1 | F71: 2 | G71: 4 | H71: 3 | I71: 2 | J71: =R47 -> 9441 | W71: S20 | X71: 0 | Y71: 0 | Z71: 0 | AA71: 0 | AB71: 0 | AC71: 0 | AD71: 0 | AE71: 0 | AF71: 0 | AG71: 0 | AH71: 0 | AI71: 0 | AJ71: 0 | AK71: 0 | AL71: 0 | AM71: 0
W72: arány | X72: =SUM(X77:X96)/SUM($X$77:$AM$96) -> 0.08192494035 | Y72: =SUM(Y77:Y96)/SUM($X$77:$AM$96) -> 0.1063887763 | Z72: 0.0216725262 | AA72: 0.03177440901 | AB72: 0.06663255066 | AC72: 0 | AD72: 0.0338678913 | AE72: 0.0163490998 | AF72: 0.2734686011 | AG72: 0.1223856394 | AH72: 0 | AI72: 0 | AJ72: 0 | AK72: 0.2455355659 | AL72: 0 | AM72: 0
W73: ellenhatás | AF73: =X72 -> 0.08192494035 | AG73: =Y72 -> 0.1063887763 | AH73: 0.0216725262 | AI73: 0.03177440901 | AJ73: 0.06663255066 | AK73: 0 | AL73: 0.0338678913 | AM73: 0.0163490998
W74: irány | AF74: 0 | AG74: 0 | AH74: 0.01 | AI74: 0.01 | AJ74: 0.01 | AK74: 0 | AL74: 0.01 | AM74: 0.01
W75: megfelelés | AF75: zömmel nem | AG75: inkább nem | AH75: OK | AI75: OK | AJ75: OK | AK75: OK | AL75: OK | AM75: OK
W76: COCO:STD | X76: X(A1) | Y76: X(A2) | Z76: X(A3) | AA76: X(A4) | AB76: X(A5) | AC76: X(A6) | AD76: X(A7) | AE76: X(A8) | AF76: X(A9) | AG76: X(A10) | AH76: X(A11) | AI76: X(A12) | AJ76: X(A13) | AK76: X(A14) | AL76: X(A15) | AM76: X(A16) | AN76: Becsl�s | AO76: T�ny+0 | AP76: Delta | AQ76: Delta/T�ny
W77: O1 | X77: 627 | Y77: 0 | Z77: 0 | AA77: 0 | AB77: 0 | AC77: 0 | AD77: 0 | AE77: 0 | AF77: 3613 | AG77: 2501 | AH77: 0 | AI77: 0 | AJ77: 0 | AK77: 773 | AL77: 0 | AM77: 0 | AN77: 7514 | AO77: 7514 | AP77: 0 | AQ77: 0
W78: O2 | X78: 627 | Y78: 0 | Z78: 0 | AA78: 0 | AB78: 0 | AC78: 0 | AD78: 1274 | AE78: 0 | AF78: 3613 | AG78: 1364 | AH78: 0 | AI78: 0 | AJ78: 0 | AK78: 0 | AL78: 0 | AM78: 0 | AN78: 6878 | AO78: 6878 | AP78: 0 | AQ78: 0
W79: O3 | X79: 0 | Y79: 1789 | Z79: 0 | AA79: 0 | AB79: 0 | AC79: 0 | AD79: 0 | AE79: 0 | AF79: 4433 | AG79: 0 | AH79: 0 | AI79: 0 | AJ79: 0 | AK79: 0 | AL79: 0 | AM79: 0 | AN79: 6222 | AO79: 6222 | AP79: 0 | AQ79: 0
W80: O4 | X80: 0 | Y80: 1387 | Z80: 0 | AA80: 0 | AB80: 0 | AC80: 0 | AD80: 0 | AE80: 0 | AF80: 3613 | AG80: 0 | AH80: 0 | AI80: 0 | AJ80: 0 | AK80: 0 | AL80: 0 | AM80: 0 | AN80: 5000 | AO80: 5000 | AP80: 0 | AQ80: 0
W81: O5 | X81: 627 | Y81: 0 | Z81: 0 | AA81: 4031 | AB81: 0 | AC81: 0 | AD81: 1274 | AE81: 0 | AF81: 0 | AG81: 1364 | AH81: 0 | AI81: 0 | AJ81: 0 | AK81: 773 | AL81: 0 | AM81: 0 | AN81: 8069 | AO81: 8069 | AP81: 0 | AQ81: 0
W82: O6 | X82: 0 | Y82: 1789 | Z82: 0 | AA82: 0 | AB82: 0 | AC82: 0 | AD82: 0 | AE82: 0 | AF82: 5302 | AG82: 0 | AH82: 0 | AI82: 0 | AJ82: 0 | AK82: 773 | AL82: 0 | AM82: 0 | AN82: 7864 | AO82: 7864 | AP82: 0 | AQ82: 0
W83: O7 | X83: 0 | Y83: 0 | Z83: 0 | AA83: 0 | AB83: 0 | AC83: 0 | AD83: 0 | AE83: 0 | AF83: 5302 | AG83: 1364 | AH83: 0 | AI83: 0 | AJ83: 0 | AK83: 0 | AL83: 0 | AM83: 0 | AN83: 6666 | AO83: 6666 | AP83: 0 | AQ83: 0
W84: O8 | X84: 2228 | Y84: 1387 | Z84: 0 | AA84: 0 | AB84: 3342 | AC84: 0 | AD84: 0 | AE84: 0 | AF84: 0 | AG84: 0 | AH84: 0 | AI84: 0 | AJ84: 0 | AK84: 773 | AL84: 0 | AM84: 0 | AN84: 7730 | AO84: 7730 | AP84: 0 | AQ84: 0
W85: O9 | X85: 2228 | Y85: 0 | Z85: 0 | AA85: 0 | AB85: 0 | AC85: 0 | AD85: 1274 | AE85: 820 | AF85: 0 | AG85: 1364 | AH85: 0 | AI85: 0 | AJ85: 0 | AK85: 2824 | AL85: 0 | AM85: 0 | AN85: 8510 | AO85: 8510 | AP85: 0 | AQ85: 0
W86: O10 | X86: 627 | Y86: 0 | Z86: 1087 | AA86: 0 | AB86: 0 | AC86: 0 | AD86: 0 | AE86: 0 | AF86: 0 | AG86: 2501 | AH86: 0 | AI86: 0 | AJ86: 0 | AK86: 2824 | AL86: 0 | AM86: 0 | AN86: 7039 | AO86: 7040 | AP86: 1 | AQ86: 0.01
W87: O11 | X87: 627 | Y87: 0 | Z87: 0 | AA87: 0 | AB87: 0 | AC87: 0 | AD87: 1274 | AE87: 820 | AF87: 0 | AG87: 2501 | AH87: 0 | AI87: 0 | AJ87: 0 | AK87: 2824 | AL87: 0 | AM87: 0 | AN87: 8046 | AO87: 8047 | AP87: 1 | AQ87: 0.01
W88: O12 | X88: 0 | Y88: 1789 | Z88: 0 | AA88: 0 | AB88: 0 | AC88: 0 | AD88: 0 | AE88: 0 | AF88: 3613 | AG88: 0 | AH88: 0 | AI88: 0 | AJ88: 0 | AK88: 2824 | AL88: 0 | AM88: 0 | AN88: 8226 | AO88: 8226 | AP88: 0 | AQ88: 0
W89: O13 | X89: 627 | Y89: 1387 | Z89: 0 | AA89: 0 | AB89: 3342 | AC89: 0 | AD89: 0 | AE89: 0 | AF89: 0 | AG89: 0 | AH89: 0 | AI89: 0 | AJ89: 0 | AK89: 2824 | AL89: 0 | AM89: 0 | AN89: 8180 | AO89: 8181 | AP89: 1 | AQ89: 0.01
W90: O14 | X90: 627 | Y90: 0 | Z90: 0 | AA90: 0 | AB90: 3342 | AC90: 0 | AD90: 0 | AE90: 820 | AF90: 0 | AG90: 1364 | AH90: 0 | AI90: 0 | AJ90: 0 | AK90: 0 | AL90: 0 | AM90: 0 | AN90: 6153 | AO90: 6153 | AP90: 0 | AQ90: 0
W91: O15 | X91: 0 | Y91: 1387 | Z91: 0 | AA91: 0 | AB91: 0 | AC91: 0 | AD91: 0 | AE91: 0 | AF91: 4433 | AG91: 1364 | AH91: 0 | AI91: 0 | AJ91: 0 | AK91: 0 | AL91: 0 | AM91: 0 | AN91: 7184 | AO91: 7184 | AP91: 0 | AQ91: 0
W92: O16 | X92: 0 | Y92: 0 | Z92: 1087 | AA92: 0 | AB92: 0 | AC92: 0 | AD92: 0 | AE92: 0 | AF92: 3613 | AG92: 1364 | AH92: 0 | AI92: 0 | AJ92: 0 | AK92: 773 | AL92: 0 | AM92: 0 | AN92: 6837 | AO92: 6836 | AP92: -1 | AQ92: -0.01
W93: O17 | X93: 2228 | Y93: 1387 | Z93: 0 | AA93: 0 | AB93: 0 | AC93: 0 | AD93: 0 | AE93: 0 | AF93: 0 | AG93: 0 | AH93: 0 | AI93: 0 | AJ93: 0 | AK93: 5197 | AL93: 0 | AM93: 0 | AN93: 8812 | AO93: 8812 | AP93: 0 | AQ93: 0
W94: O18 | X94: 0 | Y94: 1387 | Z94: 1087 | AA94: 750 | AB94: 0 | AC94: 0 | AD94: 0 | AE94: 0 | AF94: 3613 | AG94: 0 | AH94: 0 | AI94: 0 | AJ94: 0 | AK94: 773 | AL94: 0 | AM94: 0 | AN94: 7610 | AO94: 7610 | AP94: 0 | AQ94: 0
W95: O19 | X95: 627 | Y95: 0 | Z95: 0 | AA95: 0 | AB95: 0 | AC95: 0 | AD95: 0 | AE95: 0 | AF95: 0 | AG95: 1364 | AH95: 0 | AI95: 0 | AJ95: 0 | AK95: 6495 | AL95: 0 | AM95: 0 | AN95: 8486 | AO95: 8486 | AP95: 0 | AQ95: 0
W96: O20 | X96: 627 | Y96: 2319 | Z96: 0 | AA96: 0 | AB96: 0 | AC96: 0 | AD96: 0 | AE96: 0 | AF96: 0 | AG96: 0 | AH96: 0 | AI96: 0 | AJ96: 0 | AK96: 6495 | AL96: 0 | AM96: 0 | AN96: 9441 | AO96: 9441 | AP96: 0 | AQ96: 0
W98: S1 �sszeg: | X98: 29399
W99: S20 �sszeg: | X99: 0
W100: Becsl�s �sszeg: | X100: 150467
W101: T�ny �sszeg: | X101: 150469
W102: T�ny-becsl�s elt�r�s: | X102: -2
W103: T�ny n�gyzet�sszeg:
W104: Becsl�s n�gyzet�sszeg:
W105: N�gyzet�sszeg hiba: | X105: 0
W107: Open url
W109: Maxim�lis mem�ria haszn�lat: 1.5 Mb
W110: A futtat�s id�tartama: 0.13 mp (0 p)

Sheet OAM1 MCM
A5: Azonos�t�: | B5: Teszt | C5: Objektumok: | D5: 20 | E5: Attrib�tumok: | F5: 16 | G5: Lepcs�k: | H5: 4 | I5: Eltol�s: | J5: 0 | K5: Le�r�s: | L5: COCO MCM: Teszt | Z5: Azonos�t�: | AA5: Teszt | AB5: Objektumok: | AC5: 20 | AD5: Attrib�tumok: | AE5: 8 | AF5: Lepcs�k: | AG5: 4 | AH5: Eltol�s: | AI5: 0 | AJ5: Le�r�s: | AK5: COCO MCM: Teszt
A7: Rangsor | B7: X(A1) | C7: X(A2) | D7: X(A3) | E7: X(A4) | F7: X(A5) | G7: X(A6) | H7: X(A7) | I7: X(A8) | J7: X(A9) | K7: X(A10) | L7: X(A11) | M7: X(A12) | N7: X(A13) | O7: X(A14) | P7: X(A15) | Q7: X(A16) | R7: Y(A17) | Z7: Rangsor | AA7: X(A1) | AB7: X(A2) | AC7: X(A3) | AD7: X(A4) | AE7: X(A5) | AF7: X(A6) | AG7: X(A7) | AH7: X(A8) | AI7: Y(A9)
A8: O1 | B8: 3 | C8: 4 | D8: 2 | E8: 4 | F8: 2 | G8: 3 | H8: 2 | I8: 2 | J8: 3 | K8: 1 | L8: 4 | M8: 2 | N8: 4 | O8: 2 | P8: 3 | Q8: 4 | R8: 7514 | Z8: O1 | AA8: 3 | AB8: 4 | AC8: 2 | AD8: 4 | AE8: 2 | AF8: 3 | AG8: 2 | AH8: 2 | AI8: 7514
A9: O2 | B9: 3 | C9: 3 | D9: 2 | E9: 2 | F9: 2 | G9: 2 | H9: 1 | I9: 2 | J9: 3 | K9: 2 | L9: 4 | M9: 4 | N9: 4 | O9: 4 | P9: 4 | Q9: 4 | R9: 6878 | Z9: O2 | AA9: 3 | AB9: 3 | AC9: 2 | AD9: 2 | AE9: 2 | AF9: 2 | AG9: 1 | AH9: 2 | AI9: 6878
A10: O3 | B10: 4 | C10: 1 | D10: 2 | E10: 4 | F10: 2 | G10: 1 | H10: 4 | I10: 2 | J10: 1 | K10: 4 | L10: 4 | M10: 2 | N10: 4 | O10: 4 | P10: 2 | Q10: 4 | R10: 6222 | Z10: O3 | AA10: 4 | AB10: 1 | AC10: 2 | AD10: 4 | AE10: 2 | AF10: 1 | AG10: 4 | AH10: 2 | AI10: 6222
A11: O4 | B11: 4 | C11: 2 | D11: 2 | E11: 2 | F11: 2 | G11: 1 | H11: 3 | I11: 2 | J11: 2 | K11: 4 | L11: 4 | M11: 4 | N11: 4 | O11: 4 | P11: 3 | Q11: 4 | R11: 5000 | Z11: O4 | AA11: 4 | AB11: 2 | AC11: 2 | AD11: 2 | AE11: 2 | AF11: 1 | AG11: 3 | AH11: 2 | AI11: 5000
A12: O5 | B12: 2 | C12: 4 | D12: 1 | E12: 1 | F12: 2 | G12: 2 | H12: 1 | I12: 2 | J12: 3 | K12: 2 | L12: 4 | M12: 4 | N12: 4 | O12: 3 | P12: 4 | Q12: 4 | R12: 8069 | Z12: O5 | AA12: 2 | AB12: 4 | AC12: 1 | AD12: 1 | AE12: 2 | AF12: 2 | AG12: 1 | AH12: 2 | AI12: 8069
A13: O6 | B13: 4 | C13: 1 | D13: 2 | E13: 4 | F13: 2 | G13: 2 | H13: 4 | I13: 2 | J13: 1 | K13: 4 | L13: 4 | M13: 2 | N13: 4 | O13: 3 | P13: 2 | Q13: 4 | R13: 7864 | Z13: O6 | AA13: 4 | AB13: 1 | AC13: 2 | AD13: 4 | AE13: 2 | AF13: 2 | AG13: 4 | AH13: 2 | AI13: 7864
A14: O7 | B14: 4 | C14: 3 | D14: 2 | E14: 4 | F14: 2 | G14: 2 | H14: 4 | I14: 2 | J14: 1 | K14: 2 | L14: 4 | M14: 2 | N14: 4 | O14: 4 | P14: 2 | Q14: 4 | R14: 6666 | Z14: O7 | AA14: 4 | AB14: 3 | AC14: 2 | AD14: 4 | AE14: 2 | AF14: 2 | AG14: 4 | AH14: 2 | AI14: 6666
A15: O8 | B15: 1 | C15: 2 | D15: 2 | E15: 3 | F15: 1 | G15: 3 | H15: 3 | I15: 1 | J15: 4 | K15: 3 | L15: 4 | M15: 2 | N15: 4 | O15: 3 | P15: 2 | Q15: 4 | R15: 7730 | Z15: O8 | AA15: 1 | AB15: 2 | AC15: 2 | AD15: 3 | AE15: 1 | AF15: 3 | AG15: 3 | AH15: 1 | AI15: 7730
A16: O9 | B16: 1 | C16: 4 | D16: 2 | E16: 1 | F16: 2 | G16: 4 | H16: 1 | I16: 1 | J16: 4 | K16: 2 | L16: 4 | M16: 4 | N16: 4 | O16: 2 | P16: 4 | Q16: 4 | R16: 8510 | Z16: O9 | AA16: 1 | AB16: 4 | AC16: 2 | AD16: 1 | AE16: 2 | AF16: 4 | AG16: 1 | AH16: 1 | AI16: 8510
A17: O10 | B17: 3 | C17: 4 | D17: 1 | E17: 4 | F17: 2 | G17: 4 | H17: 4 | I17: 2 | J17: 3 | K17: 1 | L17: 4 | M17: 2 | N17: 4 | O17: 2 | P17: 2 | Q17: 4 | R17: 7040 | Z17: O10 | AA17: 3 | AB17: 4 | AC17: 1 | AD17: 4 | AE17: 2 | AF17: 4 | AG17: 4 | AH17: 2 | AI17: 7040
A18: O11 | B18: 1 | C18: 4 | D18: 2 | E18: 3 | F18: 1 | G18: 4 | H18: 1 | I18: 1 | J18: 4 | K18: 1 | L18: 4 | M18: 2 | N18: 4 | O18: 1 | P18: 4 | Q18: 4 | R18: 8047 | Z18: O11 | AA18: 1 | AB18: 4 | AC18: 2 | AD18: 3 | AE18: 1 | AF18: 4 | AG18: 1 | AH18: 1 | AI18: 8047
A19: O12 | B19: 3 | C19: 1 | D19: 2 | E19: 3 | F19: 2 | G19: 3 | H19: 4 | I19: 2 | J19: 2 | K19: 4 | L19: 4 | M19: 3 | N19: 4 | O19: 2 | P19: 2 | Q19: 4 | R19: 8226 | Z19: O12 | AA19: 3 | AB19: 1 | AC19: 2 | AD19: 3 | AE19: 2 | AF19: 3 | AG19: 4 | AH19: 2 | AI19: 8226
A20: O13 | B20: 2 | C20: 2 | D20: 2 | E20: 2 | F20: 1 | G20: 3 | H20: 2 | I20: 2 | J20: 4 | K20: 3 | L20: 4 | M20: 3 | N20: 4 | O20: 2 | P20: 3 | Q20: 4 | R20: 8181 | Z20: O13 | AA20: 2 | AB20: 2 | AC20: 2 | AD20: 2 | AE20: 1 | AF20: 3 | AG20: 2 | AH20: 2 | AI20: 8181
A21: O14 | B21: 2 | C21: 3 | D21: 2 | E21: 2 | F21: 1 | G21: 1 | H21: 2 | I21: 1 | J21: 4 | K21: 2 | L21: 4 | M21: 3 | N21: 4 | O21: 4 | P21: 4 | Q21: 4 | R21: 6153 | Z21: O14 | AA21: 2 | AB21: 3 | AC21: 2 | AD21: 2 | AE21: 1 | AF21: 1 | AG21: 2 | AH21: 1 | AI21: 6153
A22: O15 | B22: 4 | C22: 3 | D22: 2 | E22: 4 | F22: 2 | G22: 1 | H22: 4 | I22: 2 | J22: 1 | K22: 3 | L22: 4 | M22: 2 | N22: 4 | O22: 4 | P22: 2 | Q22: 4 | R22: 7184 | Z22: O15 | AA22: 4 | AB22: 3 | AC22: 2 | AD22: 4 | AE22: 2 | AF22: 1 | AG22: 4 | AH22: 2 | AI22: 7184
A23: O16 | B23: 4 | C23: 4 | D23: 1 | E23: 3 | F23: 2 | G23: 2 | H23: 2 | I23: 2 | J23: 2 | K23: 1 | L23: 4 | M23: 3 | N23: 4 | O23: 3 | P23: 4 | Q23: 4 | R23: 6836 | Z23: O16 | AA23: 4 | AB23: 4 | AC23: 1 | AD23: 3 | AE23: 2 | AF23: 2 | AG23: 2 | AH23: 2 | AI23: 6836
A24: O17 | B24: 1 | C24: 2 | D24: 2 | E24: 2 | F24: 2 | G24: 4 | H24: 3 | I24: 2 | J24: 4 | K24: 4 | L24: 4 | M24: 3 | N24: 4 | O24: 1 | P24: 2 | Q24: 4 | R24: 8812 | Z24: O17 | AA24: 1 | AB24: 2 | AC24: 2 | AD24: 2 | AE24: 2 | AF24: 4 | AG24: 3 | AH24: 2 | AI24: 8812
A25: O18 | B25: 3 | C25: 2 | D25: 1 | E25: 1 | F25: 2 | G25: 3 | H25: 2 | I25: 2 | J25: 2 | K25: 3 | L25: 4 | M25: 4 | N25: 4 | O25: 3 | P25: 3 | Q25: 4 | R25: 7610 | Z25: O18 | AA25: 3 | AB25: 2 | AC25: 1 | AD25: 1 | AE25: 2 | AF25: 3 | AG25: 2 | AH25: 2 | AI25: 7610
A26: O19 | B26: 2 | C26: 3 | D26: 2 | E26: 3 | F26: 2 | G26: 4 | H26: 3 | I26: 2 | J26: 3 | K26: 3 | L26: 4 | M26: 2 | N26: 4 | O26: 1 | P26: 2 | Q26: 4 | R26: 8486 | Z26: O19 | AA26: 2 | AB26: 3 | AC26: 2 | AD26: 3 | AE26: 2 | AF26: 4 | AG26: 3 | AH26: 2 | AI26: 8486
A27: O20 | B27: 2 | C27: 1 | D27: 2 | E27: 1 | F27: 2 | G27: 4 | H27: 3 | I27: 2 | J27: 3 | K27: 4 | L27: 4 | M27: 4 | N27: 4 | O27: 1 | P27: 3 | Q27: 4 | R27: 9441 | Z27: O20 | AA27: 2 | AB27: 1 | AC27: 2 | AD27: 1 | AE27: 2 | AF27: 4 | AG27: 3 | AH27: 2 | AI27: 9441
A29: L�pcs�k(1) | B29: X(A1) | C29: X(A2) | D29: X(A3) | E29: X(A4) | F29: X(A5) | G29: X(A6) | H29: X(A7) | I29: X(A8) | J29: X(A9) | K29: X(A10) | L29: X(A11) | M29: X(A12) | N29: X(A13) | O29: X(A14) | P29: X(A15) | Q29: X(A16) | Z29: L�pcs�k(1) | AA29: X(A1) | AB29: X(A2) | AC29: X(A3) | AD29: X(A4) | AE29: X(A5) | AF29: X(A6) | AG29: X(A7) | AH29: X(A8)
A30: S1 | B30: (0+804)/(1)=804 | C30: (0+652)/(1)=652 | D30: (0+1860)/(1)=1860 | E30: (0+486)/(1)=486 | F30: (0+23)/(1)=23 | G30: (0+0)/(1)=0 | H30: (0+1883)/(1)=1883 | I30: (0+0)/(1)=0 | J30: (0+1993)/(1)=1993 | K30: (0+0)/(1)=0 | L30: (0+0)/(1)=0 | M30: (0+0)/(1)=0 | N30: (0+0)/(1)=0 | O30: (0+0)/(1)=0 | P30: (0+0)/(1)=0 | Q30: (0+0)/(1)=0 | Z30: S1 | AA30: (2404.8+3057.8)/(2)=2731.3 | AB30: (985.9+1598.9)/(2)=1292.4 | AC30: (3502.7+0)/(2)=1751.35 | AD30: (573+989.9)/(2)=781.45 | AE30: (0+462)/(2)=231 | AF30: (0+0)/(2)=0 | AG30: (0+62)/(2)=31 | AH30: (0+2572.8)/(2)=1286.4
A31: S2 | B31: (0+0)/(1)=0 | C31: (0+0)/(1)=0 | D31: (0+2212)/(1)=2212 | E31: (0+0)/(1)=0 | F31: (0+0)/(1)=0 | G31: (0+0)/(1)=0 | H31: (0+0)/(1)=0 | I31: (0+0)/(1)=0 | J31: (0+0)/(1)=0 | K31: (0+0)/(1)=0 | L31: (0+0)/(1)=0 | M31: (0+0)/(1)=0 | N31: (0+0)/(1)=0 | O31: (0+0)/(1)=0 | P31: (0+0)/(1)=0 | Q31: (0+0)/(1)=0 | Z31: S2 | AA31: (1475.9+1098.9)/(2)=1287.4 | AB31: (0+0)/(2)=0 | AC31: (3769.7+0)/(2)=1884.85 | AD31: (0+0)/(2)=0 | AE31: (146+0)/(2)=73 | AF31: (1081.9+650)/(2)=865.95 | AG31: (560+451)/(2)=505.45 | AH31: (1079.9+4597.6)/(2)=2838.8
A32: S3 | B32: (0+0)/(1)=0 | C32: (0+1594)/(1)=1594 | D32: (0+0)/(1)=0 | E32: (0+0)/(1)=0 | F32: (0+0)/(1)=0 | G32: (0+1673)/(1)=1673 | H32: (0+858)/(1)=858 | I32: (0+0)/(1)=0 | J32: (0+1188)/(1)=1188 | K32: (0+518)/(1)=518 | L32: (0+0)/(1)=0 | M32: (0+2324)/(1)=2324 | N32: (0+0)/(1)=0 | O32: (0+1642)/(1)=1642 | P32: (0+1432)/(1)=1432 | Q32: (0+0)/(1)=0 | Z32: S3 | AA32: (453+0)/(2)=226.5 | AB32: (348+1567.9)/(2)=957.95 | AC32: (0+0)/(2)=0 | AD32: (255+65)/(2)=160 | AE32: (0+0)/(2)=0 | AF32: (1295.9+1571.9)/(2)=1433.9 | AG32: (4+0)/(2)=2 | AH32: (0+0)/(2)=0
A33: S4 | B33: (0+0)/(1)=0 | C33: (0+1009)/(1)=1009 | D33: (0+0)/(1)=0 | E33: (0+0)/(1)=0 | F33: (0+0)/(1)=0 | G33: (0+2115)/(1)=2115 | H33: (0+867)/(1)=867 | I33: (0+0)/(1)=0 | J33: (0+0)/(1)=0 | K33: (0+498)/(1)=498 | L33: (0+0)/(1)=0 | M33: (0+0)/(1)=0 | N33: (0+0)/(1)=0 | O33: (0+0)/(1)=0 | P33: (0+0)/(1)=0 | Q33: (0+0)/(1)=0 | Z33: S4 | AA33: (0+402)/(2)=201 | AB33: (210+670.9)/(2)=440.45 | AC33: (0+0)/(2)=0 | AD33: (0+223)/(2)=111.5 | AE33: (0+0)/(2)=0 | AF33: (1406.9+1155.9)/(2)=1281.4 | AG33: (241+393)/(2)=317 | AH33: (0+0)/(2)=0
Z34: elvárás | AA34: 0 | AB34: 0 | AC34: 1 | AD34: 1 | AE34: 1 | AF34: 0 | AG34: 1 | AH34: 1 | AI34: <--a csere kapcsán: óvatos fordított arányosság-gyanú
A35: L�pcs�k(2) | B35: ='OAM1b (STD)'!B27 -> egy életévre jutó meccsek száma | C35: ='OAM1b (STD)'!C27 -> egy meccsre jutó gólok száma | D35: ='OAM1b (STD)'!D27 -> egy meccsre jutó öngólok száma | E35: ='OAM1b (STD)'!E27 -> egy meccsre jutó sárgalapok száma | F35: ='OAM1b (STD)'!F27 -> egy meccsre jutó piroslapok száma | G35: ='OAM1b (STD)'!G27 -> hány százalékban csere? | H35: ='OAM1b (STD)'!H27 -> egy gólra jutó sárgalapok száma? | I35: ='OAM1b (STD)'!I27 -> egy gólra jutó piroslapok száma? | J35: ='OAM1b (STD)'!J27 -> egy életévre jutó meccsek száma | K35: ='OAM1b (STD)'!K27 -> egy meccsre jutó gólok száma | L35: ='OAM1b (STD)'!L27 -> egy meccsre jutó öngólok száma | M35: ='OAM1b (STD)'!M27 -> egy meccsre jutó sárgalapok száma | N35: ='OAM1b (STD)'!N27 -> egy meccsre jutó piroslapok száma | O35: ='OAM1b (STD)'!O27 -> hány százalékban csere? | P35: ='OAM1b (STD)'!P27 -> egy gólra jutó sárgalapok száma? | Q35: ='OAM1b (STD)'!Q27 -> egy gólra jutó piroslapok száma? | Z35: L�pcs�k(2) | AA35: ='OAM1b (STD)'!B51 -> egy életévre jutó meccsek száma | AB35: ='OAM1b (STD)'!C51 -> egy meccsre jutó gólok száma | AC35: ='OAM1b (STD)'!D51 -> egy meccsre jutó öngólok száma | AD35: ='OAM1b (STD)'!E51 -> egy meccsre jutó sárgalapok száma | AE35: ='OAM1b (STD)'!F51 -> egy meccsre jutó piroslapok száma | AF35: ='OAM1b (STD)'!G51 -> hány százalékban csere? | AG35: ='OAM1b (STD)'!H51 -> egy gólra jutó sárgalapok száma? | AH35: ='OAM1b (STD)'!I51 -> egy gólra jutó piroslapok száma?
A36: S1 | B36: 804 | C36: 652 | D36: 1860 | E36: 486 | F36: 23 | G36: 0 | H36: 1883 | I36: 0 | J36: 1993 | K36: 0 | L36: 0 | M36: 0 | N36: 0 | O36: 0 | P36: 0 | Q36: 0 | Z36: S1 | AA36: 2731.3 | AB36: 1292.4 | AC36: 1751.4 | AD36: 781.4 | AE36: 231 | AF36: 0 | AG36: 31 | AH36: 1286.4
A37: S2 | B37: 0 | C37: 0 | D37: 2212 | E37: 0 | F37: 0 | G37: 0 | H37: 0 | I37: 0 | J37: 0 | K37: 0 | L37: 0 | M37: 0 | N37: 0 | O37: 0 | P37: 0 | Q37: 0 | Z37: S2 | AA37: 1287.4 | AB37: 0 | AC37: 1884.9 | AD37: 0 | AE37: 73 | AF37: 865.9 | AG37: 505.5 | AH37: 2838.8
A38: S3 | B38: 0 | C38: 1594 | D38: 0 | E38: 0 | F38: 0 | G38: 1673 | H38: 858 | I38: 0 | J38: 1188 | K38: 518 | L38: 0 | M38: 2324 | N38: 0 | O38: 1642 | P38: 1432 | Q38: 0 | Z38: S3 | AA38: 226.5 | AB38: 957.9 | AC38: 0 | AD38: 160 | AE38: 0 | AF38: 1433.9 | AG38: 2 | AH38: 0
A39: S4 | B39: 0 | C39: 1009 | D39: 0 | E39: 0 | F39: 0 | G39: 2115 | H39: 867 | I39: 0 | J39: 0 | K39: 498 | L39: 0 | M39: 0 | N39: 0 | O39: 0 | P39: 0 | Q39: 0 | Z39: S4 | AA39: 201 | AB39: 440.5 | AC39: 0 | AD39: 111.5 | AE39: 0 | AF39: 1281.4 | AG39: 317 | AH39: 0
Z40: értelmezés | AA40: minél nagyobb, annál jobb | AB40: polinom | AC40: minél kisebb, annál jobb | AD40: polinom | AE40: minél nagyobb, annál jobb | AF40: opt | AG40: polinom | AH40: minél kisebb, annál jobb | AJ40: =CORREL(AI42:AI61,AJ42:AJ61) -> 0.968266332
A41: COCO:MCM | B41: X(A1) | C41: X(A2) | D41: X(A3) | E41: X(A4) | F41: X(A5) | G41: X(A6) | H41: X(A7) | I41: X(A8) | J41: X(A9) | K41: X(A10) | L41: X(A11) | M41: X(A12) | N41: X(A13) | O41: X(A14) | P41: X(A15) | Q41: X(A16) | R41: Becsl�s | S41: T�ny+0 | T41: Delta | U41: Delta/T�ny | Z41: COCO:MCM | AA41: X(A1) | AB41: X(A2) | AC41: X(A3) | AD41: X(A4) | AE41: X(A5) | AF41: X(A6) | AG41: X(A7) | AH41: X(A8) | AI41: Becsl�s | AJ41: T�ny+0 | AK41: Delta | AL41: Delta/T�ny
A42: O1 | B42: 0 | C42: 1009 | D42: 2212 | E42: 0 | F42: 0 | G42: 1673 | H42: 0 | I42: 0 | J42: 1188 | K42: 0 | L42: 0 | M42: 0 | N42: 0 | O42: 0 | P42: 1432 | Q42: 0 | R42: 7514 | S42: 7514 | T42: 0 | U42: 0 | Z42: ='OAM1b (STD)'!A28 -> GM | AA42: 226.5 | AB42: 440.5 | AC42: 1884.9 | AD42: 111.5 | AE42: 73 | AF42: 1433.9 | AG42: 505.5 | AH42: 2838.8 | AI42: 7514.4 | AJ42: 7514 | AK42: -0.4 | AL42: -0.01
A43: O2 | B43: 0 | C43: 1594 | D43: 2212 | E43: 0 | F43: 0 | G43: 0 | H43: 1883 | I43: 0 | J43: 1188 | K43: 0 | L43: 0 | M43: 0 | N43: 0 | O43: 0 | P43: 0 | Q43: 0 | R43: 6877 | S43: 6878 | T43: 1 | U43: 0.01 | Z43: ='OAM1b (STD)'!A29 -> BE | AA43: 226.5 | AB43: 957.9 | AC43: 1884.9 | AD43: 0 | AE43: 73 | AF43: 865.9 | AG43: 31 | AH43: 2838.8 | AI43: 6878 | AJ43: 6878 | AK43: 0 | AL43: 0
A44: O3 | B44: 0 | C44: 652 | D44: 2212 | E44: 0 | F44: 0 | G44: 0 | H44: 867 | I44: 0 | J44: 1993 | K44: 498 | L44: 0 | M44: 0 | N44: 0 | O44: 0 | P44: 0 | Q44: 0 | R44: 6222 | S44: 6222 | T44: 0 | U44: 0 | Z44: ='OAM1b (STD)'!A30 -> BT | AA44: 201 | AB44: 1292.4 | AC44: 1884.9 | AD44: 111.5 | AE44: 73 | AF44: 0 | AG44: 317 | AH44: 2838.8 | AI44: 6718.5 | AJ44: 6222 | AK44: -496.5 | AL44: -7.98 | AM44: <--lehetne többször kezdő
A45: O4 | B45: 0 | C45: 0 | D45: 2212 | E45: 0 | F45: 0 | G45: 0 | H45: 858 | I45: 0 | J45: 0 | K45: 498 | L45: 0 | M45: 0 | N45: 0 | O45: 0 | P45: 1432 | Q45: 0 | R45: 5000 | S45: 5000 | T45: 0 | U45: 0 | Z45: ='OAM1b (STD)'!A31 -> FK | AA45: 201 | AB45: 0 | AC45: 1884.9 | AD45: 0 | AE45: 73 | AF45: 0 | AG45: 2 | AH45: 2838.8 | AI45: 4999.6 | AJ45: 5000 | AK45: 0.4 | AL45: 0.01
A46: O5 | B46: 0 | C46: 1009 | D46: 1860 | E46: 486 | F46: 0 | G46: 0 | H46: 1883 | I46: 0 | J46: 1188 | K46: 0 | L46: 0 | M46: 0 | N46: 0 | O46: 1642 | P46: 0 | Q46: 0 | R46: 8068 | S46: 8069 | T46: 1 | U46: 0.01 | Z46: ='OAM1b (STD)'!A32 -> FF | AA46: 1287.4 | AB46: 440.5 | AC46: 1751.4 | AD46: 781.4 | AE46: 73 | AF46: 865.9 | AG46: 31 | AH46: 2838.8 | AI46: 8069.4 | AJ46: 8069 | AK46: -0.4 | AL46: 0
A47: O6 | B47: 0 | C47: 652 | D47: 2212 | E47: 0 | F47: 0 | G47: 0 | H47: 867 | I47: 0 | J47: 1993 | K47: 498 | L47: 0 | M47: 0 | N47: 0 | O47: 1642 | P47: 0 | Q47: 0 | R47: 7864 | S47: 7864 | T47: 0 | U47: 0 | Z47: ='OAM1b (STD)'!A33 -> FI | AA47: 201 | AB47: 1292.4 | AC47: 1884.9 | AD47: 111.5 | AE47: 73 | AF47: 865.9 | AG47: 317 | AH47: 2838.8 | AI47: 7584.4 | AJ47: 7864 | AK47: 279.6 | AL47: 3.56 | AM47: <--lehetne ritkábban kezdő
A48: O7 | B48: 0 | C48: 1594 | D48: 2212 | E48: 0 | F48: 0 | G48: 0 | H48: 867 | I48: 0 | J48: 1993 | K48: 0 | L48: 0 | M48: 0 | N48: 0 | O48: 0 | P48: 0 | Q48: 0 | R48: 6666 | S48: 6666 | T48: 0 | U48: 0 | Z48: ='OAM1b (STD)'!A34 -> HM | AA48: 201 | AB48: 957.9 | AC48: 1884.9 | AD48: 111.5 | AE48: 73 | AF48: 865.9 | AG48: 317 | AH48: 2838.8 | AI48: 7249.9 | AJ48: 6666 | AK48: -583.9 | AL48: -8.76 | AM48: <--lehetne többször kezdő
A49: O8 | B49: 804 | C49: 0 | D49: 2212 | E49: 0 | F49: 23 | G49: 1673 | H49: 858 | I49: 0 | J49: 0 | K49: 518 | L49: 0 | M49: 0 | N49: 0 | O49: 1642 | P49: 0 | Q49: 0 | R49: 7730 | S49: 7730 | T49: 0 | U49: 0 | Z49: ='OAM1b (STD)'!A35 -> JI | AA49: 2731.3 | AB49: 0 | AC49: 1884.9 | AD49: 160 | AE49: 231 | AF49: 1433.9 | AG49: 2 | AH49: 1286.4 | AI49: 7729.4 | AJ49: 7730 | AK49: 0.6 | AL49: 0.01
A50: O9 | B50: 804 | C50: 1009 | D50: 2212 | E50: 486 | F50: 0 | G50: 2115 | H50: 1883 | I50: 0 | J50: 0 | K50: 0 | L50: 0 | M50: 0 | N50: 0 | O50: 0 | P50: 0 | Q50: 0 | R50: 8509 | S50: 8510 | T50: 1 | U50: 0.01 | Z50: ='OAM1b (STD)'!A36 -> KK | AA50: 2731.3 | AB50: 440.5 | AC50: 1884.9 | AD50: 781.4 | AE50: 73 | AF50: 1281.4 | AG50: 31 | AH50: 1286.4 | AI50: 8509.8 | AJ50: 8510 | AK50: 0.2 | AL50: 0
A51: O10 | B51: 0 | C51: 1009 | D51: 1860 | E51: 0 | F51: 0 | G51: 2115 | H51: 867 | I51: 0 | J51: 1188 | K51: 0 | L51: 0 | M51: 0 | N51: 0 | O51: 0 | P51: 0 | Q51: 0 | R51: 7039 | S51: 7040 | T51: 1 | U51: 0.01 | Z51: ='OAM1b (STD)'!A37 -> KP | AA51: 226.5 | AB51: 440.5 | AC51: 1751.4 | AD51: 111.5 | AE51: 73 | AF51: 1281.4 | AG51: 317 | AH51: 2838.8 | AI51: 7040 | AJ51: 7040 | AK51: 0 | AL51: 0
A52: O11 | B52: 804 | C52: 1009 | D52: 2212 | E52: 0 | F52: 23 | G52: 2115 | H52: 1883 | I52: 0 | J52: 0 | K52: 0 | L52: 0 | M52: 0 | N52: 0 | O52: 0 | P52: 0 | Q52: 0 | R52: 8046 | S52: 8047 | T52: 1 | U52: 0.01 | Z52: ='OAM1b (STD)'!A38 -> NN | AA52: 2731.3 | AB52: 440.5 | AC52: 1884.9 | AD52: 160 | AE52: 231 | AF52: 1281.4 | AG52: 31 | AH52: 1286.4 | AI52: 8046.4 | AJ52: 8047 | AK52: 0.6 | AL52: 0.01
A53: O12 | B53: 0 | C53: 652 | D53: 2212 | E53: 0 | F53: 0 | G53: 1673 | H53: 867 | I53: 0 | J53: 0 | K53: 498 | L53: 0 | M53: 2324 | N53: 0 | O53: 0 | P53: 0 | Q53: 0 | R53: 8226 | S53: 8226 | T53: 0 | U53: 0 | Z53: ='OAM1b (STD)'!A39 -> PD | AA53: 226.5 | AB53: 1292.4 | AC53: 1884.9 | AD53: 160 | AE53: 73 | AF53: 1433.9 | AG53: 317 | AH53: 2838.8 | AI53: 8226.4 | AJ53: 8226 | AK53: -0.4 | AL53: 0
A54: O13 | B54: 0 | C54: 0 | D54: 2212 | E54: 0 | F54: 23 | G54: 1673 | H54: 0 | I54: 0 | J54: 0 | K54: 518 | L54: 0 | M54: 2324 | N54: 0 | O54: 0 | P54: 1432 | Q54: 0 | R54: 8182 | S54: 8181 | T54: -1 | U54: -0.01 | Z54: ='OAM1b (STD)'!A40 -> RD | AA54: 1287.4 | AB54: 0 | AC54: 1884.9 | AD54: 0 | AE54: 231 | AF54: 1433.9 | AG54: 505.5 | AH54: 2838.8 | AI54: 8181.4 | AJ54: 8181 | AK54: -0.4 | AL54: 0
A55: O14 | B55: 0 | C55: 1594 | D55: 2212 | E55: 0 | F55: 23 | G55: 0 | H55: 0 | I55: 0 | J55: 0 | K55: 0 | L55: 0 | M55: 2324 | N55: 0 | O55: 0 | P55: 0 | Q55: 0 | R55: 6153 | S55: 6153 | T55: 0 | U55: 0 | Z55: ='OAM1b (STD)'!A41 -> RF | AA55: 1287.4 | AB55: 957.9 | AC55: 1884.9 | AD55: 0 | AE55: 231 | AF55: 0 | AG55: 505.5 | AH55: 1286.4 | AI55: 6153 | AJ55: 6153 | AK55: 0 | AL55: 0
A56: O15 | B56: 0 | C56: 1594 | D56: 2212 | E56: 0 | F56: 0 | G56: 0 | H56: 867 | I56: 0 | J56: 1993 | K56: 518 | L56: 0 | M56: 0 | N56: 0 | O56: 0 | P56: 0 | Q56: 0 | R56: 7184 | S56: 7184 | T56: 0 | U56: 0 | Z56: ='OAM1b (STD)'!A42 -> RB | AA56: 201 | AB56: 957.9 | AC56: 1884.9 | AD56: 111.5 | AE56: 73 | AF56: 0 | AG56: 317 | AH56: 2838.8 | AI56: 6384 | AJ56: 7184 | AK56: 800 | AL56: 11.14 | AM56: <--lehetne ritkábban kezdő
A57: O16 | B57: 0 | C57: 1009 | D57: 1860 | E57: 0 | F57: 0 | G57: 0 | H57: 0 | I57: 0 | J57: 0 | K57: 0 | L57: 0 | M57: 2324 | N57: 0 | O57: 1642 | P57: 0 | Q57: 0 | R57: 6835 | S57: 6836 | T57: 1 | U57: 0.01 | Z57: ='OAM1b (STD)'!A43 -> RT | AA57: 201 | AB57: 440.5 | AC57: 1751.4 | AD57: 160 | AE57: 73 | AF57: 865.9 | AG57: 505.5 | AH57: 2838.8 | AI57: 6836 | AJ57: 6836 | AK57: 0 | AL57: 0
A58: O17 | B58: 804 | C58: 0 | D58: 2212 | E58: 0 | F58: 0 | G58: 2115 | H58: 858 | I58: 0 | J58: 0 | K58: 498 | L58: 0 | M58: 2324 | N58: 0 | O58: 0 | P58: 0 | Q58: 0 | R58: 8811 | S58: 8812 | T58: 1 | U58: 0.01 | Z58: ='OAM1b (STD)'!A44 -> SB | AA58: 2731.3 | AB58: 0 | AC58: 1884.9 | AD58: 0 | AE58: 73 | AF58: 1281.4 | AG58: 2 | AH58: 2838.8 | AI58: 8811.3 | AJ58: 8812 | AK58: 0.7 | AL58: 0.01
A59: O18 | B59: 0 | C59: 0 | D59: 1860 | E59: 486 | F59: 0 | G59: 1673 | H59: 0 | I59: 0 | J59: 0 | K59: 518 | L59: 0 | M59: 0 | N59: 0 | O59: 1642 | P59: 1432 | Q59: 0 | R59: 7611 | S59: 7610 | T59: -1 | U59: -0.01 | Z59: ='OAM1b (STD)'!A45 -> SV | AA59: 226.5 | AB59: 0 | AC59: 1751.4 | AD59: 781.4 | AE59: 73 | AF59: 1433.9 | AG59: 505.5 | AH59: 2838.8 | AI59: 7610.4 | AJ59: 7610 | AK59: -0.4 | AL59: -0.01
A60: O19 | B60: 0 | C60: 1594 | D60: 2212 | E60: 0 | F60: 0 | G60: 2115 | H60: 858 | I60: 0 | J60: 1188 | K60: 518 | L60: 0 | M60: 0 | N60: 0 | O60: 0 | P60: 0 | Q60: 0 | R60: 8485 | S60: 8486 | T60: 1 | U60: 0.01 | Z60: ='OAM1b (STD)'!A46 -> SZ | AA60: 1287.4 | AB60: 957.9 | AC60: 1884.9 | AD60: 160 | AE60: 73 | AF60: 1281.4 | AG60: 2 | AH60: 2838.8 | AI60: 8485.4 | AJ60: 8486 | AK60: 0.6 | AL60: 0.01
A61: O20 | B61: 0 | C61: 652 | D61: 2212 | E61: 486 | F61: 0 | G61: 2115 | H61: 858 | I61: 0 | J61: 1188 | K61: 498 | L61: 0 | M61: 0 | N61: 0 | O61: 0 | P61: 1432 | Q61: 0 | R61: 9441 | S61: 9441 | T61: 0 | U61: 0 | Z61: ='OAM1b (STD)'!A47 -> TK | AA61: 1287.4 | AB61: 1292.4 | AC61: 1884.9 | AD61: 781.4 | AE61: 73 | AF61: 1281.4 | AG61: 2 | AH61: 2838.8 | AI61: 9441.3 | AJ61: 9441 | AK61: -0.3 | AL61: 0
A63: S1 �sszeg: | B63: 7701 | Z63: S1 �sszeg: | AA63: 8104.9
A64: S4 �sszeg: | B64: 4489 | Z64: S4 �sszeg: | AA64: 2351.4
A65: Becsl�s �sszeg: | B65: 150463 | Z65: Becsl�s �sszeg: | AA65: 150469
A66: T�ny �sszeg: | B66: 150469 | Z66: T�ny �sszeg: | AA66: 150469
A67: T�ny-becsl�s elt�r�s: | B67: -6 | Z67: T�ny-becsl�s elt�r�s: | AA67: 0
A68: T�ny n�gyzet�sszeg: | Z68: T�ny n�gyzet�sszeg:
A69: Becsl�s n�gyzet�sszeg: | Z69: Becsl�s n�gyzet�sszeg:
A70: N�gyzet�sszeg hiba: | B70: 0 | Z70: N�gyzet�sszeg hiba: | AA70: 0
A73: Maxim�lis mem�ria haszn�lat: 1.47 Mb | Z73: Maxim�lis mem�ria haszn�lat: 1.44 Mb
A74: A futtat�s id�tartama: 0.03 mp (0 p) | Z74: A futtat�s id�tartama: 0.04 mp (0 p)

Sheet OAM1-hahaha
B1: jelleg | C1: X | D1: X | E1: Y | F1: Y | N1: korreláció
B2: mértékegység | C2: % | D2: % | E2: *10000 INT | F2: % | I2: direkt | J2: direkt | K2: inverz | L2: =K2 -> inverz | N2: =CORREL(M4:M23,N4:N23) -> 1
B3: OAM | C3: hány százalékban csere? | D3: hány százalékban kispad? | E3: =F3 -> hány százalékban kezdő? | F3: hány százalékban kezdő? | I3: =C3 -> hány százalékban csere? | J3: =D3 -> hány százalékban kispad? | K3: =I3 -> hány százalékban csere? | L3: =J3 -> hány százalékban kispad? | M3: =E3 -> hány százalékban kezdő? | N3: becslés
B4: GM | C4: 0.1213872832 | D4: 0.1271676301 | E4: =INT(F4*10000) -> 7514 | F4: 0.7514450867 | I4: =RANK(C4,C$4:C$23,0) -> 12 | J4: =RANK(D4,D$4:D$23,0) -> 6 | K4: =21-I4 -> 9 | L4: =21-J4 -> 15 | M4: =E4 -> 7514 | N4: =W74 -> 7514
B5: BE | C5: 0.225433526 | D5: 0.08670520231 | E5: =INT(F5*10000) -> 6878 | F5: 0.6878612717 | I5: =RANK(C5,C$4:C$23,0) -> 6 | J5: 11 | K5: =21-I5 -> 15 | L5: 10 | M5: 6878 | N5: =W75 -> 6878 | Q5: Azonos�t�: | R5: 8585325 | S5: Objektumok: | T5: 20 | U5: Attrib�tumok: | V5: 4 | W5: Lepcs�k: | X5: 20 | Y5: Eltol�s: | Z5: 0 | AA5: Le�r�s: | AB5: COCO STD: 8585325
B6: BT | C6: 0.3111111111 | D6: 0.06666666667 | E6: 6222 | F6: 0.6222222222 | I6: 1 | J6: 14 | K6: 20 | L6: 7 | M6: 6222 | N6: 6222
B7: FK | C7: 0.25 | D7: 0.25 | E7: 5000 | F7: 0.5 | I7: 3 | J7: 1 | K7: 18 | L7: 20 | M7: 5000 | N7: 5000 | Q7: Rangsor | R7: X(A1) | S7: X(A2) | T7: X(A3) | U7: X(A4) | V7: Y(A5)
B8: FF | C8: 0.1386138614 | D8: 0.05445544554 | E8: 8069 | F8: 0.8069306931 | I8: 9 | J8: 17 | K8: 12 | L8: 4 | M8: 8069 | N8: 8069 | Q8: O1 | R8: 12 | S8: 6 | T8: 9 | U8: 15 | V8: 7514
B9: FI | C9: 0.1844660194 | D9: 0.02912621359 | E9: 7864 | F9: 0.786407767 | I9: 7 | J9: 19 | K9: 14 | L9: 2 | M9: 7864 | N9: 7864 | Q9: O2 | R9: 6 | S9: 11 | T9: 15 | U9: 10 | V9: 6878
B10: HM | C10: 0.2307692308 | D10: 0.1025641026 | E10: 6666 | F10: 0.6666666667 | I10: 5 | J10: 9 | K10: 16 | L10: 12 | M10: 6666 | N10: 6666 | Q10: O3 | R10: 1 | S10: 14 | T10: 20 | U10: 7 | V10: 6222
B11: JI | C11: 0.134751773 | D11: 0.09219858156 | E11: 7730 | F11: 0.7730496454 | I11: 10 | J11: 10 | K11: 11 | L11: 11 | M11: 7730 | N11: 7730 | Q11: O4 | R11: 3 | S11: 1 | T11: 18 | U11: 20 | V11: 5000
B12: KK | C12: 0.08510638298 | D12: 0.06382978723 | E12: 8510 | F12: 0.8510638298 | I12: 15 | J12: 15 | K12: 6 | L12: 6 | M12: 8510 | N12: 8510 | Q12: O5 | R12: 9 | S12: 17 | T12: 12 | U12: 4 | V12: 8069
B13: KP | C13: 0.07653061224 | D13: 0.2193877551 | E13: 7040 | F13: 0.7040816327 | I13: 16 | J13: 2 | K13: 5 | L13: 19 | M13: 7040 | N13: 7040 | Q13: O6 | R13: 7 | S13: 19 | T13: 14 | U13: 2 | V13: 7864
B14: NN | C14: 0.0619047619 | D14: 0.1333333333 | E14: 8047 | F14: 0.8047619048 | I14: 17 | J14: 4 | K14: 4 | L14: 17 | M14: 8047 | N14: 8047 | Q14: O7 | R14: 5 | S14: 9 | T14: 16 | U14: 12 | V14: 6666
B15: PD | C15: 0.1205673759 | D15: 0.05673758865 | E15: 8226 | F15: 0.8226950355 | I15: 13 | J15: 16 | K15: 8 | L15: 5 | M15: 8226 | N15: 8226 | Q15: O8 | R15: 10 | S15: 10 | T15: 11 | U15: 11 | V15: 7730
B16: RD | C16: 0.1111111111 | D16: 0.07070707071 | E16: 8181 | F16: 0.8181818182 | I16: 14 | J16: 12 | K16: 7 | L16: 9 | M16: 8181 | N16: 8181 | Q16: O9 | R16: 15 | S16: 15 | T16: 6 | U16: 6 | V16: 8510
B17: RF | C17: 0.2512820513 | D17: 0.1333333333 | E17: 6153 | F17: 0.6153846154 | I17: 2 | J17: 4 | K17: 19 | L17: 17 | M17: 6153 | N17: 6153 | Q17: O10 | R17: 16 | S17: 2 | T17: 5 | U17: 19 | V17: 7040
B18: RB | C18: 0.2330097087 | D18: 0.04854368932 | E18: 7184 | F18: 0.7184466019 | I18: 4 | J18: 18 | K18: 17 | L18: 3 | M18: 7184 | N18: 7184 | Q18: O11 | R18: 17 | S18: 4 | T18: 4 | U18: 17 | V18: 8047
B19: RT | C19: 0.1632653061 | D19: 0.1530612245 | E19: 6836 | F19: 0.6836734694 | I19: 8 | J19: 3 | K19: 13 | L19: 18 | M19: 6836 | N19: 6836 | Q19: O12 | R19: 13 | S19: 16 | T19: 8 | U19: 5 | V19: 8226
B20: SB | C20: 0.04980842912 | D20: 0.06896551724 | E20: 8812 | F20: 0.8812260536 | I20: 18 | J20: 13 | K20: 3 | L20: 8 | M20: 8812 | N20: 8812 | Q20: O13 | R20: 14 | S20: 12 | T20: 7 | U20: 9 | V20: 8181
B21: SV | C21: 0.1257861635 | D21: 0.1132075472 | E21: 7610 | F21: 0.7610062893 | I21: 11 | J21: 7 | K21: 10 | L21: 14 | M21: 7610 | N21: 7610 | Q21: O14 | R21: 2 | S21: 4 | T21: 19 | U21: 17 | V21: 6153
B22: SZ | C22: 0.04605263158 | D22: 0.1052631579 | E22: 8486 | F22: 0.8486842105 | I22: 19 | J22: 8 | K22: 2 | L22: 13 | M22: 8486 | N22: 8486 | Q22: O15 | R22: 4 | S22: 18 | T22: 17 | U22: 3 | V22: 7184
B23: TK | C23: 0.03255813953 | D23: 0.02325581395 | E23: 9441 | F23: 0.9441860465 | I23: 20 | J23: 20 | K23: 1 | L23: 1 | M23: 9441 | N23: 9441 | Q23: O16 | R23: 8 | S23: 3 | T23: 13 | U23: 18 | V23: 6836
Q24: O17 | R24: 18 | S24: 13 | T24: 3 | U24: 8 | V24: 8812
Q25: O18 | R25: 11 | S25: 7 | T25: 10 | U25: 14 | V25: 7610
Q26: O19 | R26: 19 | S26: 8 | T26: 2 | U26: 13 | V26: 8486
Q27: O20 | R27: 20 | S27: 20 | T27: 1 | U27: 1 | V27: 9441
Q29: L�pcs�k(1) | R29: X(A1) | S29: X(A2) | T29: X(A3) | U29: X(A4)
Q30: S1 | R30: (0+4397)/(1)=4397 | S30: (0+0)/(1)=0 | T30: (0+6987)/(1)=6987 | U30: (0+2454)/(1)=2454
Q31: S2 | R31: (0+4397)/(1)=4397 | S31: (0+0)/(1)=0 | T31: (0+6987)/(1)=6987 | U31: (0+2184)/(1)=2184
Q32: S3 | R32: (0+3244)/(1)=3244 | S32: (0+0)/(1)=0 | T32: (0+6987)/(1)=6987 | U32: (0+2184)/(1)=2184
Q33: S4 | R33: (0+3244)/(1)=3244 | S33: (0+0)/(1)=0 | T33: (0+6987)/(1)=6987 | U33: (0+2164)/(1)=2164
Q34: S5 | R34: (0+3244)/(1)=3244 | S34: (0+0)/(1)=0 | T34: (0+5980)/(1)=5980 | U34: (0+1870)/(1)=1870
Q35: S6 | R35: (0+3244)/(1)=3244 | S35: (0+0)/(1)=0 | T35: (0+5626)/(1)=5626 | U35: (0+1825)/(1)=1825
Q36: S7 | R36: (0+3244)/(1)=3244 | S36: (0+0)/(1)=0 | T36: (0+5297)/(1)=5297 | U36: (0+1825)/(1)=1825
Q37: S8 | R37: (0+3244)/(1)=3244 | S37: (0+0)/(1)=0 | T37: (0+5297)/(1)=5297 | U37: (0+1825)/(1)=1825
Q38: S9 | R38: (0+2314)/(1)=2314 | S38: (0+0)/(1)=0 | T38: (0+5297)/(1)=5297 | U38: (0+1825)/(1)=1825
Q39: S10 | R39: (0+2314)/(1)=2314 | S39: (0+0)/(1)=0 | T39: (0+5297)/(1)=5297 | U39: (0+1825)/(1)=1825
Q40: S11 | R40: (0+2314)/(1)=2314 | S40: (0+0)/(1)=0 | T40: (0+3592)/(1)=3592 | U40: (0+1825)/(1)=1825
Q41: S12 | R41: (0+2218)/(1)=2218 | S41: (0+0)/(1)=0 | T41: (0+3592)/(1)=3592 | U41: (0+1666)/(1)=1666
Q42: S13 | R42: (0+1060)/(1)=1060 | S42: (0+0)/(1)=0 | T42: (0+3592)/(1)=3592 | U42: (0+1499)/(1)=1499
Q43: S14 | R43: (0+1060)/(1)=1060 | S43: (0+0)/(1)=0 | T43: (0+2436)/(1)=2436 | U43: (0+0)/(1)=0
Q44: S15 | R44: (0+1060)/(1)=1060 | S44: (0+0)/(1)=0 | T44: (0+1809)/(1)=1809 | U44: (0+0)/(1)=0
Q45: S16 | R45: (0+1060)/(1)=1060 | S45: (0+0)/(1)=0 | T45: (0+1756)/(1)=1756 | U45: (0+0)/(1)=0
Q46: S17 | R46: (0+1060)/(1)=1060 | S46: (0+0)/(1)=0 | T46: (0+1756)/(1)=1756 | U46: (0+0)/(1)=0
Q47: S18 | R47: (0+0)/(1)=0 | S47: (0+0)/(1)=0 | T47: (0+1756)/(1)=1756 | U47: (0+0)/(1)=0
Q48: S19 | R48: (0+0)/(1)=0 | S48: (0+0)/(1)=0 | T48: (0+1756)/(1)=1756 | U48: (0+0)/(1)=0
Q49: S20 | R49: (0+0)/(1)=0 | S49: (0+0)/(1)=0 | T49: (0+0)/(1)=0 | U49: (0+0)/(1)=0
Q51: L�pcs�k(2) | R51: X(A1) | S51: X(A2) | T51: X(A3) | U51: X(A4)
Q52: S1 | R52: 4397 | S52: 0 | T52: 6987 | U52: 2454
Q53: S2 | R53: 4397 | S53: 0 | T53: 6987 | U53: 2184
Q54: S3 | R54: 3244 | S54: 0 | T54: 6987 | U54: 2184
Q55: S4 | R55: 3244 | S55: 0 | T55: 6987 | U55: 2164
Q56: S5 | R56: 3244 | S56: 0 | T56: 5980 | U56: 1870
Q57: S6 | R57: 3244 | S57: 0 | T57: 5626 | U57: 1825
Q58: S7 | R58: 3244 | S58: 0 | T58: 5297 | U58: 1825
Q59: S8 | R59: 3244 | S59: 0 | T59: 5297 | U59: 1825
Q60: S9 | R60: 2314 | S60: 0 | T60: 5297 | U60: 1825
Q61: S10 | R61: 2314 | S61: 0 | T61: 5297 | U61: 1825
Q62: S11 | R62: 2314 | S62: 0 | T62: 3592 | U62: 1825
Q63: S12 | R63: 2218 | S63: 0 | T63: 3592 | U63: 1666
Q64: S13 | R64: 1060 | S64: 0 | T64: 3592 | U64: 1499
Q65: S14 | R65: 1060 | S65: 0 | T65: 2436 | U65: 0
Q66: S15 | R66: 1060 | S66: 0 | T66: 1809 | U66: 0
Q67: S16 | R67: 1060 | S67: 0 | T67: 1756 | U67: 0
Q68: S17 | R68: 1060 | S68: 0 | T68: 1756 | U68: 0
Q69: S18 | R69: 0 | S69: 0 | T69: 1756 | U69: 0
Q70: S19 | R70: 0 | S70: 0 | T70: 1756 | U70: 0
Q71: S20 | R71: 0 | S71: 0 | T71: 0 | U71: 0
Q73: COCO:STD | R73: X(A1) | S73: X(A2) | T73: X(A3) | U73: X(A4) | V73: Becsl�s | W73: T�ny+0 | X73: Delta | Y73: Delta/T�ny
Q74: O1 | R74: 2218 | S74: 0 | T74: 5297 | U74: 0 | V74: 7515 | W74: 7514 | X74: -1 | Y74: -0.01
Q75: O2 | R75: 3244 | S75: 0 | T75: 1809 | U75: 1825 | V75: 6878 | W75: 6878 | X75: 0 | Y75: 0
Q76: O3 | R76: 4397 | S76: 0 | T76: 0 | U76: 1825 | V76: 6222 | W76: 6222 | X76: 0 | Y76: 0
Q77: O4 | R77: 3244 | S77: 0 | T77: 1756 | U77: 0 | V77: 5000 | W77: 5000 | X77: 0 | Y77: 0
Q78: O5 | R78: 2314 | S78: 0 | T78: 3592 | U78: 2164 | V78: 8070 | W78: 8069 | X78: -1 | Y78: -0.01
Q79: O6 | R79: 3244 | S79: 0 | T79: 2436 | U79: 2184 | V79: 7864 | W79: 7864 | X79: 0 | Y79: 0
Q80: O7 | R80: 3244 | S80: 0 | T80: 1756 | U80: 1666 | V80: 6666 | W80: 6666 | X80: 0 | Y80: 0
Q81: O8 | R81: 2314 | S81: 0 | T81: 3592 | U81: 1825 | V81: 7731 | W81: 7730 | X81: -1 | Y81: -0.01
Q82: O9 | R82: 1060 | S82: 0 | T82: 5626 | U82: 1825 | V82: 8511 | W82: 8510 | X82: -1 | Y82: -0.01
Q83: O10 | R83: 1060 | S83: 0 | T83: 5980 | U83: 0 | V83: 7040 | W83: 7040 | X83: 0 | Y83: 0
Q84: O11 | R84: 1060 | S84: 0 | T84: 6987 | U84: 0 | V84: 8047 | W84: 8047 | X84: 0 | Y84: 0
Q85: O12 | R85: 1060 | S85: 0 | T85: 5297 | U85: 1870 | V85: 8227 | W85: 8226 | X85: -1 | Y85: -0.01
Q86: O13 | R86: 1060 | S86: 0 | T86: 5297 | U86: 1825 | V86: 8182 | W86: 8181 | X86: -1 | Y86: -0.01
Q87: O14 | R87: 4397 | S87: 0 | T87: 1756 | U87: 0 | V87: 6153 | W87: 6153 | X87: 0 | Y87: 0
Q88: O15 | R88: 3244 | S88: 0 | T88: 1756 | U88: 2184 | V88: 7184 | W88: 7184 | X88: 0 | Y88: 0
Q89: O16 | R89: 3244 | S89: 0 | T89: 3592 | U89: 0 | V89: 6836 | W89: 6836 | X89: 0 | Y89: 0
Q90: O17 | R90: 0 | S90: 0 | T90: 6987 | U90: 1825 | V90: 8812 | W90: 8812 | X90: 0 | Y90: 0
Q91: O18 | R91: 2314 | S91: 0 | T91: 5297 | U91: 0 | V91: 7611 | W91: 7610 | X91: -1 | Y91: -0.01
Q92: O19 | R92: 0 | S92: 0 | T92: 6987 | U92: 1499 | V92: 8486 | W92: 8486 | X92: 0 | Y92: 0
Q93: O20 | R93: 0 | S93: 0 | T93: 6987 | U93: 2454 | V93: 9441 | W93: 9441 | X93: 0 | Y93: 0
Q95: S1 �sszeg: | R95: 13838
Q96: S20 �sszeg: | R96: 0
Q97: Becsl�s �sszeg: | R97: 150476
Q98: T�ny �sszeg: | R98: 150469
Q99: T�ny-becsl�s elt�r�s: | R99: 7
Q100: T�ny n�gyzet�sszeg:
Q101: Becsl�s n�gyzet�sszeg:
Q102: N�gyzet�sszeg hiba: | R102: 0
Q104: Open url
Q106: Maxim�lis mem�ria haszn�lat: 1.43 Mb
Q107: A futtat�s id�tartama: 0.36 mp (0.01 p)

Sheet OAM2 (Y0)
A1: meccsek száma alapján | B1: =' OAM1 (STD)'!AU74 -> inkább legyen tapasztalatlan korához képest, vagy nagyon tapasztalt | C1: =' OAM1 (STD)'!AV74 -> inkább legyen gólerős, de lehet, akire szükség van | D1: =' OAM1 (STD)'!AW74 -> egyértelműen minél kisebb, annál jobb | E1: =' OAM1 (STD)'!AX74 -> egyértelműen minél kisebb, annál jobb | F1: (Y) | G1: =' OAM1 (STD)'!AY74 -> egyértelműen minél kisebb, annál jobb | H1: =' OAM1 (STD)'!AZ74 -> egyértelműen minél nagyobb annál jobb | I1: =' OAM1 (STD)'!BA74 -> egyértelműen minél nagyobb annál jobb | J1: =' OAM1 (STD)'!BB74 -> egyértelműen minél kisebb, annál jobb | K1: =' OAM1 (STD)'!BC74 -> nincs hatása
A2: megjegyzés | B2: minél nagyobb annál jobb | C2: minél nagyobb annál jobb | D2: minél kisebb annál jobb | E2: minél kisebb annál jobb | F2: minél kisebb annál jobb | G2: minél nagyobb annál jobb | H2: minél nagyobb annál jobb | I2: minél kisebb annál jobb | J2: minél kisebb annál jobb | K2: minél kisebb annál jobb
A3: irány | B3: 0 | C3: 0 | D3: 1 | E3: 1 | F3: 1 | G3: 0 | H3: 0 | I3: 1 | J3: 1 | K3: 1
A4: jelleg | B4: X | C4: X | D4: X | E4: X | F4: X | G4: X | H4: X | I4: X | J4: X | K4: X | L4: Y0
A5: mértékegység | B5: db/év | C5: db/db | D5: db/db | E5: db/db | F5: db/db | G5: % | H5: % | I5: % | J5: db/db | K5: db/db | L5: index
A6: OAM | B6: egy életévre jutó meccsek száma | C6: egy meccsre jutó gólok száma | D6: egy meccsre jutó öngólok száma | E6: egy meccsre jutó sárgalapok száma | F6: egy meccsre jutó piroslapok száma | G6: hány százalékban kezdő? | H6: hány százalékban csere? | I6: hány százalékban kispad? | J6: egy gólra jutó sárgalapok száma? | K6: egy gólra jutó piroslapok száma? | L6: Ki a lejobb játékos? | M6: direkt becslés | N6: inverz becslés | O6: validitás | P6: direkt becslés (kerekítve) | Q6: inverz becslés (kerekítve) | R6: <--technikailag valid (vö. tagadás tagadása)
A7: =db!B2 -> GM | B7: =db!E2/db!D2 -> 8.238095238 | C7: =db!F2/db!E2 -> 0.04624277457 | D7: =db!G2/db!E2 -> 0 | E7: =db!H2/db!E2 -> 0.005780346821 | F7: =db!I2/db!E2 -> 0 | G7: =db!J2/db!E2 -> 0.7514450867 | H7: =db!K2/db!E2 -> 0.1213872832 | I7: =db!L2/db!E2 -> 0.1271676301 | J7: =db!H2/db!F2 -> 0.125 | K7: =db!I2/db!F2 -> 0 | L7: 1000 | M7: =L126 -> 999.9 | N7: =M237 -> 1000.2 | O7: =IF(O237*N126<=0,"valid","invalid") -> valid | P7: =ROUND(M7,) -> 1000 | Q7: =ROUND(N7,) -> 1000
A8: =db!B3 -> BE | B8: =db!E3/db!D3 -> 8.238095238 | C8: =db!F3/db!E3 -> 0.1098265896 | D8: =db!G3/db!E3 -> 0 | E8: =db!H3/db!E3 -> 0.02312138728 | F8: =db!I3/db!E3 -> 0 | G8: =db!J3/db!E3 -> 0.6878612717 | H8: =db!K3/db!E3 -> 0.225433526 | I8: =db!L3/db!E3 -> 0.08670520231 | J8: =db!H3/db!F3 -> 0.2105263158 | K8: =db!I3/db!F3 -> 0 | L8: 1000 | M8: =L127 -> 999.9 | N8: =M238 -> 1000.2 | O8: =IF(O238*N127<=0,"valid","invalid") -> valid | P8: =ROUND(M8,) -> 1000 | Q8: =ROUND(N8,) -> 1000
A9: =db!B4 -> BT | B9: =db!E4/db!D4 -> 5.625 | C9: =db!F4/db!E4 -> 0.9 | D9: =db!G4/db!E4 -> 0 | E9: =db!H4/db!E4 -> 0 | F9: =db!I4/db!E4 -> 0 | G9: =db!J4/db!E4 -> 0.6222222222 | H9: =db!K4/db!E4 -> 0.3111111111 | I9: =db!L4/db!E4 -> 0.06666666667 | J9: =db!H4/db!F4 -> 0 | K9: =db!I4/db!F4 -> 0 | L9: 1000 | M9: 999.9 | N9: 999.7 | O9: invalid | P9: 1000 | Q9: 1000
A10: =db!B5 -> FK | B10: =db!E5/db!D5 -> 7.5 | C10: =db!F5/db!E5 -> 0.5416666667 | D10: =db!G5/db!E5 -> 0 | E10: =db!H5/db!E5 -> 0.025 | F10: =db!I5/db!E5 -> 0 | G10: =db!J5/db!E5 -> 0.5 | H10: =db!K5/db!E5 -> 0.25 | I10: =db!L5/db!E5 -> 0.25 | J10: =db!H5/db!F5 -> 0.04615384615 | K10: =db!I5/db!F5 -> 0 | L10: 1000 | M10: 999.9 | N10: 1000.2 | O10: valid | P10: 1000 | Q10: 1000
A11: =db!B6 -> FF | B11: =db!E6/db!D6 -> 10.63157895 | C11: =db!F6/db!E6 -> 0.09900990099 | D11: =db!G6/db!E6 -> 0.00495049505 | E11: =db!H6/db!E6 -> 0.05940594059 | F11: =db!I6/db!E6 -> 0 | G11: =db!J6/db!E6 -> 0.8069306931 | H11: =db!K6/db!E6 -> 0.1386138614 | I11: =db!L6/db!E6 -> 0.05445544554 | J11: =db!H6/db!F6 -> 0.6 | K11: =db!I6/db!F6 -> 0 | L11: 1000 | M11: 1000.4 | N11: 999.7 | O11: valid | P11: 1000 | Q11: 1000
A12: =db!B7 -> FI | B12: =db!E7/db!D7 -> 5.421052632 | C12: =db!F7/db!E7 -> 0.8058252427 | D12: =db!G7/db!E7 -> 0 | E12: =db!H7/db!E7 -> 0 | F12: =db!I7/db!E7 -> 0 | G12: =db!J7/db!E7 -> 0.786407767 | H12: =db!K7/db!E7 -> 0.1844660194 | I12: =db!L7/db!E7 -> 0.02912621359 | J12: =db!H7/db!F7 -> 0 | K12: =db!I7/db!F7 -> 0 | L12: 1000 | M12: 999.9 | N12: 999.7 | O12: invalid | P12: 1000 | Q12: 1000
A13: =db!B8 -> HM | B13: =db!E8/db!D8 -> 4.875 | C13: =db!F8/db!E8 -> 0.1153846154 | D13: =db!G8/db!E8 -> 0 | E13: =db!H8/db!E8 -> 0 | F13: =db!I8/db!E8 -> 0 | G13: =db!J8/db!E8 -> 0.6666666667 | H13: =db!K8/db!E8 -> 0.2307692308 | I13: =db!L8/db!E8 -> 0.1025641026 | J13: =db!H8/db!F8 -> 0 | K13: =db!I8/db!F8 -> 0 | L13: 1000 | M13: 989.9 | N13: 1009.7 | O13: valid | P13: 990 | Q13: 1010 | R13: antagonista
A14: =db!B9 -> JI | B14: =db!E9/db!D9 -> 14.84210526 | C14: =db!F9/db!E9 -> 0.2659574468 | D14: =db!G9/db!E9 -> 0 | E14: =db!H9/db!E9 -> 0.007092198582 | F14: =db!I9/db!E9 -> 0.007092198582 | G14: =db!J9/db!E9 -> 0.7730496454 | H14: =db!K9/db!E9 -> 0.134751773 | I14: =db!L9/db!E9 -> 0.09219858156 | J14: =db!H9/db!F9 -> 0.02666666667 | K14: =db!I9/db!F9 -> 0.02666666667 | L14: 1000 | M14: 999.9 | N14: 999.7 | O14: invalid | P14: 1000 | Q14: 1000
A15: =db!B10 -> KK | B15: =db!E10/db!D10 -> 11.75 | C15: =db!F10/db!E10 -> 0.07234042553 | D15: =db!G10/db!E10 -> 0 | E15: =db!H10/db!E10 -> 0.05106382979 | F15: =db!I10/db!E10 -> 0.004255319149 | G15: =db!J10/db!E10 -> 0.8510638298 | H15: =db!K10/db!E10 -> 0.08510638298 | I15: =db!L10/db!E10 -> 0.06382978723 | J15: =db!H10/db!F10 -> 0.7058823529 | K15: =db!I10/db!F10 -> 0.05882352941 | L15: 1000 | M15: 999.9 | N15: 1000.2 | O15: valid | P15: 1000 | Q15: 1000
A16: =db!B11 -> KP | B16: =db!E11/db!D11 -> 8.52173913 | C16: =db!F11/db!E11 -> 0.04081632653 | D16: =db!G11/db!E11 -> 0.005102040816 | E16: =db!H11/db!E11 -> 0 | F16: =db!I11/db!E11 -> 0 | G16: =db!J11/db!E11 -> 0.7040816327 | H16: =db!K11/db!E11 -> 0.07653061224 | I16: =db!L11/db!E11 -> 0.2193877551 | J16: =db!H11/db!F11 -> 0 | K16: =db!I11/db!F11 -> 0 | L16: 1000 | M16: 999.9 | N16: 1000.7 | O16: valid | P16: 1000 | Q16: 1001
A17: =db!B12 -> NN | B17: =db!E12/db!D12 -> 11.66666667 | C17: =db!F12/db!E12 -> 0.004761904762 | D17: =db!G12/db!E12 -> 0 | E17: =db!H12/db!E12 -> 0.009523809524 | F17: =db!I12/db!E12 -> 0.004761904762 | G17: =db!J12/db!E12 -> 0.8047619048 | H17: =db!K12/db!E12 -> 0.0619047619 | I17: =db!L12/db!E12 -> 0.1333333333 | J17: =db!H12/db!F12 -> 2 | K17: =db!I12/db!F12 -> 1 | L17: 1000 | M17: 999.9 | N17: 1000.2 | O17: valid | P17: 1000 | Q17: 1000
A18: =db!B13 -> PD | B18: =db!E13/db!D13 -> 7.833333333 | C18: =db!F13/db!E13 -> 0.6595744681 | D18: =db!G13/db!E13 -> 0 | E18: =db!H13/db!E13 -> 0.01418439716 | F18: =db!I13/db!E13 -> 0 | G18: =db!J13/db!E13 -> 0.8226950355 | H18: =db!K13/db!E13 -> 0.1205673759 | I18: =db!L13/db!E13 -> 0.05673758865 | J18: =db!H13/db!F13 -> 0.02150537634 | K18: =db!I13/db!F13 -> 0 | L18: 1000 | M18: 999.9 | N18: 1000.2 | O18: valid | P18: 1000 | Q18: 1000
A19: =db!B14 -> RD | B19: =db!E14/db!D14 -> 11 | C19: =db!F14/db!E14 -> 0.2828282828 | D19: =db!G14/db!E14 -> 0 | E19: =db!H14/db!E14 -> 0.0202020202 | F19: =db!I14/db!E14 -> 0.005050505051 | G19: =db!J14/db!E14 -> 0.8181818182 | H19: =db!K14/db!E14 -> 0.1111111111 | I19: =db!L14/db!E14 -> 0.07070707071 | J19: =db!H14/db!F14 -> 0.07142857143 | K19: =db!I14/db!F14 -> 0.01785714286 | L19: 1000 | M19: 999.9 | N19: 1000.2 | O19: valid | P19: 1000 | Q19: 1000
A20: =db!B15 -> RF | B20: =db!E15/db!D15 -> 10.83333333 | C20: =db!F15/db!E15 -> 0.1435897436 | D20: =db!G15/db!E15 -> 0 | E20: =db!H15/db!E15 -> 0.02051282051 | F20: =db!I15/db!E15 -> 0.005128205128 | G20: =db!J15/db!E15 -> 0.6153846154 | H20: =db!K15/db!E15 -> 0.2512820513 | I20: =db!L15/db!E15 -> 0.1333333333 | J20: =db!H15/db!F15 -> 0.1428571429 | K20: =db!I15/db!F15 -> 0.03571428571 | L20: 1000 | M20: 1000.4 | N20: 1000.2 | O20: invalid | P20: 1000 | Q20: 1000
A21: =db!B16 -> RB | B21: =db!E16/db!D16 -> 5.722222222 | C21: =db!F16/db!E16 -> 0.2621359223 | D21: =db!G16/db!E16 -> 0 | E21: =db!H16/db!E16 -> 0 | F21: =db!I16/db!E16 -> 0 | G21: =db!J16/db!E16 -> 0.7184466019 | H21: =db!K16/db!E16 -> 0.2330097087 | I21: =db!L16/db!E16 -> 0.04854368932 | J21: =db!H16/db!F16 -> 0 | K21: =db!I16/db!F16 -> 0 | L21: 1000 | M21: 1009.9 | N21: 989.7 | O21: valid | P21: 1010 | Q21: 990 | R21: antagonista
A22: =db!B17 -> RT | B22: =db!E17/db!D17 -> 5.764705882 | C22: =db!F17/db!E17 -> 0.05102040816 | D22: =db!G17/db!E17 -> 0.01020408163 | E22: =db!H17/db!E17 -> 0.01020408163 | F22: =db!I17/db!E17 -> 0 | G22: =db!J17/db!E17 -> 0.6836734694 | H22: =db!K17/db!E17 -> 0.1632653061 | I22: =db!L17/db!E17 -> 0.1530612245 | J22: =db!H17/db!F17 -> 0.2 | K22: =db!I17/db!F17 -> 0 | L22: 1000 | M22: 999.9 | N22: 1000.2 | O22: valid | P22: 1000 | Q22: 1000
A23: =db!B18 -> SB | B23: =db!E18/db!D18 -> 13.73684211 | C23: =db!F18/db!E18 -> 0.6168582375 | D23: =db!G18/db!E18 -> 0 | E23: =db!H18/db!E18 -> 0.0153256705 | F23: =db!I18/db!E18 -> 0 | G23: =db!J18/db!E18 -> 0.8812260536 | H23: =db!K18/db!E18 -> 0.04980842912 | I23: =db!L18/db!E18 -> 0.06896551724 | J23: =db!H18/db!F18 -> 0.0248447205 | K23: =db!I18/db!F18 -> 0 | L23: 1000 | M23: 999.9 | N23: 999.7 | O23: invalid | P23: 1000 | Q23: 1000
A24: =db!B19 -> SV | B24: =db!E19/db!D19 -> 7.571428571 | C24: =db!F19/db!E19 -> 0.4968553459 | D24: =db!G19/db!E19 -> 0.006289308176 | E24: =db!H19/db!E19 -> 0.05660377358 | F24: =db!I19/db!E19 -> 0 | G24: =db!J19/db!E19 -> 0.7610062893 | H24: =db!K19/db!E19 -> 0.1257861635 | I24: =db!L19/db!E19 -> 0.1132075472 | J24: =db!H19/db!F19 -> 0.1139240506 | K24: =db!I19/db!F19 -> 0 | L24: 1000 | M24: 999.9 | N24: 1000.2 | O24: valid | P24: 1000 | Q24: 1000
A25: =db!B20 -> SZ | B25: =db!E20/db!D20 -> 8.941176471 | C25: =db!F20/db!E20 -> 0.2434210526 | D25: =db!G20/db!E20 -> 0 | E25: =db!H20/db!E20 -> 0.006578947368 | F25: =db!I20/db!E20 -> 0 | G25: =db!J20/db!E20 -> 0.8486842105 | H25: =db!K20/db!E20 -> 0.04605263158 | I25: =db!L20/db!E20 -> 0.1052631579 | J25: =db!H20/db!F20 -> 0.02702702703 | K25: =db!I20/db!F20 -> 0 | L25: 1000 | M25: 999.9 | N25: 999.7 | O25: invalid | P25: 1000 | Q25: 1000
A26: =db!B21 -> TK | B26: =db!E21/db!D21 -> 10.23809524 | C26: =db!F21/db!E21 -> 1.013953488 | D26: =db!G21/db!E21 -> 0 | E26: =db!H21/db!E21 -> 0.04186046512 | F26: =db!I21/db!E21 -> 0 | G26: =db!J21/db!E21 -> 0.9441860465 | H26: =db!K21/db!E21 -> 0.03255813953 | I26: =db!L21/db!E21 -> 0.02325581395 | J26: =db!H21/db!F21 -> 0.04128440367 | K26: =db!I21/db!F21 -> 0 | L26: 1000 | M26: 1000.4 | N26: 999.7 | O26: valid | P26: 1000 | Q26: 1000
B29: =B6 -> egy életévre jutó meccsek száma | C29: =C6 -> egy meccsre jutó gólok száma | D29: egy meccsre jutó öngólok száma | E29: egy meccsre jutó sárgalapok száma | F29: egy meccsre jutó piroslapok száma | G29: hány százalékban kezdő? | H29: hány százalékban csere? | I29: hány százalékban kispad? | J29: egy gólra jutó sárgalapok száma? | K29: egy gólra jutó piroslapok száma? | L29: Ki a lejobb játékos? | N29: inverz | O29: inverz | P29: inverz | Q29: inverz | R29: inverz | S29: inverz | T29: inverz | U29: inverz | V29: inverz | W29: inverz | X29: inverz
A30: =A7 -> GM | B30: =RANK(B7,B$7:B$26,B$3) -> 11 | C30: =RANK(C7,C$7:C$26,C$3) -> 18 | D30: 1 | E30: 6 | F30: 1 | G30: 12 | H30: 12 | I30: 15 | J30: 14 | K30: 1 | L30: =L7 -> 1000 | N30: =21-B30 -> 10 | O30: =21-C30 -> 3 | P30: =21-D30 -> 20 | Q30: =21-E30 -> 15 | R30: =21-F30 -> 20 | S30: =21-G30 -> 9 | T30: =21-H30 -> 9 | U30: =21-I30 -> 6 | V30: =21-J30 -> 7 | W30: =21-K30 -> 20 | X30: =L30 -> 1000
A31: =A8 -> BE | B31: =RANK(B8,B$7:B$26,B$3) -> 11 | C31: 14 | D31: 1 | E31: 15 | F31: 1 | G31: 15 | H31: 6 | I31: 10 | J31: 17 | K31: 1 | L31: =L8 -> 1000 | N31: =21-B31 -> 10 | O31: 7 | P31: 20 | Q31: 6 | R31: 20 | S31: 6 | T31: 15 | U31: 11 | V31: 4 | W31: 20 | X31: =L31 -> 1000
A32: BT | B32: =RANK(B9,B$7:B$26,B$3) -> 18 | C32: 2 | D32: 1 | E32: 1 | F32: 1 | G32: 18 | H32: 1 | I32: 7 | J32: 1 | K32: 1 | L32: 1000 | N32: 3 | O32: 19 | P32: 20 | Q32: 20 | R32: 20 | S32: 3 | T32: 20 | U32: 14 | V32: 20 | W32: 20 | X32: 1000
A33: FK | B33: =RANK(B10,B$7:B$26,B$3) -> 15 | C33: 6 | D33: 1 | E33: 16 | F33: 1 | G33: 20 | H33: 3 | I33: 20 | J33: 11 | K33: 1 | L33: 1000 | N33: 6 | O33: 15 | P33: 20 | Q33: 5 | R33: 20 | S33: 1 | T33: 18 | U33: 1 | V33: 10 | W33: 20 | X33: 1000
A34: FF | B34: =RANK(B11,B$7:B$26,B$3) -> 7 | C34: 15 | D34: 17 | E34: 20 | F34: 1 | G34: 7 | H34: 9 | I34: 4 | J34: 18 | K34: 1 | L34: 1000 | N34: 14 | O34: 6 | P34: 4 | Q34: 1 | R34: 20 | S34: 14 | T34: 12 | U34: 17 | V34: 3 | W34: 20 | X34: 1000
A35: FI | B35: =RANK(B12,B$7:B$26,B$3) -> 19 | C35: 3 | D35: 1 | E35: 1 | F35: 1 | G35: 9 | H35: 7 | I35: 2 | J35: 1 | K35: 1 | L35: 1000 | N35: 2 | O35: 18 | P35: 20 | Q35: 20 | R35: 20 | S35: 12 | T35: 14 | U35: 19 | V35: 20 | W35: 20 | X35: 1000
A36: HM | B36: =RANK(B13,B$7:B$26,B$3) -> 20 | C36: 13 | D36: 1 | E36: 1 | F36: 1 | G36: 17 | H36: 5 | I36: 12 | J36: 1 | K36: 1 | L36: 1000 | N36: 1 | O36: 8 | P36: 20 | Q36: 20 | R36: 20 | S36: 4 | T36: 16 | U36: 9 | V36: 20 | W36: 20 | X36: 1000
A37: JI | B37: =RANK(B14,B$7:B$26,B$3) -> 1 | C37: 9 | D37: 1 | E37: 8 | F37: 20 | G37: 10 | H37: 10 | I37: 11 | J37: 8 | K37: 17 | L37: 1000 | N37: 20 | O37: 12 | P37: 20 | Q37: 13 | R37: 1 | S37: 11 | T37: 11 | U37: 10 | V37: 13 | W37: 4 | X37: 1000
A38: KK | B38: =RANK(B15,B$7:B$26,B$3) -> 3 | C38: 16 | D38: 1 | E38: 18 | F38: 16 | G38: 3 | H38: 15 | I38: 6 | J38: 19 | K38: 19 | L38: 1000 | N38: 18 | O38: 5 | P38: 20 | Q38: 3 | R38: 5 | S38: 18 | T38: 6 | U38: 15 | V38: 2 | W38: 2 | X38: 1000
A39: KP | B39: =RANK(B16,B$7:B$26,B$3) -> 10 | C39: 19 | D39: 18 | E39: 1 | F39: 1 | G39: 14 | H39: 16 | I39: 19 | J39: 1 | K39: 1 | L39: 1000 | N39: 11 | O39: 2 | P39: 3 | Q39: 20 | R39: 20 | S39: 7 | T39: 5 | U39: 2 | V39: 20 | W39: 20 | X39: 1000
A40: NN | B40: =RANK(B17,B$7:B$26,B$3) -> 4 | C40: 20 | D40: 1 | E40: 9 | F40: 17 | G40: 8 | H40: 17 | I40: 16 | J40: 20 | K40: 20 | L40: 1000 | N40: 17 | O40: 1 | P40: 20 | Q40: 12 | R40: 4 | S40: 13 | T40: 4 | U40: 5 | V40: 1 | W40: 1 | X40: 1000
A41: PD | B41: =RANK(B18,B$7:B$26,B$3) -> 13 | C41: 4 | D41: 1 | E41: 11 | F41: 1 | G41: 5 | H41: 13 | I41: 5 | J41: 6 | K41: 1 | L41: 1000 | N41: 8 | O41: 17 | P41: 20 | Q41: 10 | R41: 20 | S41: 16 | T41: 8 | U41: 16 | V41: 15 | W41: 20 | X41: 1000
A42: RD | B42: =RANK(B19,B$7:B$26,B$3) -> 5 | C42: 8 | D42: 1 | E42: 13 | F42: 18 | G42: 6 | H42: 14 | I42: 9 | J42: 12 | K42: 16 | L42: 1000 | N42: 16 | O42: 13 | P42: 20 | Q42: 8 | R42: 3 | S42: 15 | T42: 7 | U42: 12 | V42: 9 | W42: 5 | X42: 1000
A43: RF | B43: =RANK(B20,B$7:B$26,B$3) -> 6 | C43: 12 | D43: 1 | E43: 14 | F43: 19 | G43: 19 | H43: 2 | I43: 16 | J43: 15 | K43: 18 | L43: 1000 | N43: 15 | O43: 9 | P43: 20 | Q43: 7 | R43: 2 | S43: 2 | T43: 19 | U43: 5 | V43: 6 | W43: 3 | X43: 1000
A44: RB | B44: =RANK(B21,B$7:B$26,B$3) -> 17 | C44: 10 | D44: 1 | E44: 1 | F44: 1 | G44: 13 | H44: 4 | I44: 3 | J44: 1 | K44: 1 | L44: 1000 | N44: 4 | O44: 11 | P44: 20 | Q44: 20 | R44: 20 | S44: 8 | T44: 17 | U44: 18 | V44: 20 | W44: 20 | X44: 1000
A45: RT | B45: =RANK(B22,B$7:B$26,B$3) -> 16 | C45: 17 | D45: 20 | E45: 10 | F45: 1 | G45: 16 | H45: 8 | I45: 18 | J45: 16 | K45: 1 | L45: 1000 | N45: 5 | O45: 4 | P45: 1 | Q45: 11 | R45: 20 | S45: 5 | T45: 13 | U45: 3 | V45: 5 | W45: 20 | X45: 1000
A46: SB | B46: =RANK(B23,B$7:B$26,B$3) -> 2 | C46: 5 | D46: 1 | E46: 12 | F46: 1 | G46: 2 | H46: 18 | I46: 8 | J46: 7 | K46: 1 | L46: 1000 | N46: 19 | O46: 16 | P46: 20 | Q46: 9 | R46: 20 | S46: 19 | T46: 3 | U46: 13 | V46: 14 | W46: 20 | X46: 1000
A47: SV | B47: =RANK(B24,B$7:B$26,B$3) -> 14 | C47: 7 | D47: 19 | E47: 19 | F47: 1 | G47: 11 | H47: 11 | I47: 14 | J47: 13 | K47: 1 | L47: 1000 | N47: 7 | O47: 14 | P47: 2 | Q47: 2 | R47: 20 | S47: 10 | T47: 10 | U47: 7 | V47: 8 | W47: 20 | X47: 1000
A48: SZ | B48: =RANK(B25,B$7:B$26,B$3) -> 9 | C48: 11 | D48: 1 | E48: 7 | F48: 1 | G48: 4 | H48: 19 | I48: 13 | J48: 9 | K48: 1 | L48: 1000 | N48: 12 | O48: 10 | P48: 20 | Q48: 14 | R48: 20 | S48: 17 | T48: 2 | U48: 8 | V48: 12 | W48: 20 | X48: 1000
A49: TK | B49: =RANK(B26,B$7:B$26,B$3) -> 8 | C49: 1 | D49: 1 | E49: 17 | F49: 1 | G49: 1 | H49: 20 | I49: 1 | J49: 10 | K49: 1 | L49: 1000 | N49: 13 | O49: 20 | P49: 20 | Q49: 4 | R49: 20 | S49: 20 | T49: 1 | U49: 20 | V49: 11 | W49: 20 | X49: 1000
A57: Azonos�t�: | B57: 1680399 | C57: Objektumok: | D57: 20 | E57: Attrib�tumok: | F57: 10 | G57: Lepcs�k: | H57: 20 | I57: Eltol�s: | J57: 0 | K57: Le�r�s: | L57: COCO Y0: 1680399
A59: Rangsor | B59: X(A1) | C59: X(A2) | D59: X(A3) | E59: X(A4) | F59: X(A5) | G59: X(A6) | H59: X(A7) | I59: X(A8) | J59: X(A9) | K59: X(A10) | L59: Y(A11)
A60: O1 | B60: 11 | C60: 18 | D60: 1 | E60: 6 | F60: 1 | G60: 12 | H60: 12 | I60: 15 | J60: 14 | K60: 1 | L60: 1000
A61: O2 | B61: 11 | C61: 14 | D61: 1 | E61: 15 | F61: 1 | G61: 15 | H61: 6 | I61: 10 | J61: 17 | K61: 1 | L61: 1000
A62: O3 | B62: 18 | C62: 2 | D62: 1 | E62: 1 | F62: 1 | G62: 18 | H62: 1 | I62: 7 | J62: 1 | K62: 1 | L62: 1000
A63: O4 | B63: 15 | C63: 6 | D63: 1 | E63: 16 | F63: 1 | G63: 20 | H63: 3 | I63: 20 | J63: 11 | K63: 1 | L63: 1000
A64: O5 | B64: 7 | C64: 15 | D64: 17 | E64: 20 | F64: 1 | G64: 7 | H64: 9 | I64: 4 | J64: 18 | K64: 1 | L64: 1000
A65: O6 | B65: 19 | C65: 3 | D65: 1 | E65: 1 | F65: 1 | G65: 9 | H65: 7 | I65: 2 | J65: 1 | K65: 1 | L65: 1000
A66: O7 | B66: 20 | C66: 13 | D66: 1 | E66: 1 | F66: 1 | G66: 17 | H66: 5 | I66: 12 | J66: 1 | K66: 1 | L66: 1000
A67: O8 | B67: 1 | C67: 9 | D67: 1 | E67: 8 | F67: 20 | G67: 10 | H67: 10 | I67: 11 | J67: 8 | K67: 17 | L67: 1000
A68: O9 | B68: 3 | C68: 16 | D68: 1 | E68: 18 | F68: 16 | G68: 3 | H68: 15 | I68: 6 | J68: 19 | K68: 19 | L68: 1000
A69: O10 | B69: 10 | C69: 19 | D69: 18 | E69: 1 | F69: 1 | G69: 14 | H69: 16 | I69: 19 | J69: 1 | K69: 1 | L69: 1000
A70: O11 | B70: 4 | C70: 20 | D70: 1 | E70: 9 | F70: 17 | G70: 8 | H70: 17 | I70: 16 | J70: 20 | K70: 20 | L70: 1000
A71: O12 | B71: 13 | C71: 4 | D71: 1 | E71: 11 | F71: 1 | G71: 5 | H71: 13 | I71: 5 | J71: 6 | K71: 1 | L71: 1000
A72: O13 | B72: 5 | C72: 8 | D72: 1 | E72: 13 | F72: 18 | G72: 6 | H72: 14 | I72: 9 | J72: 12 | K72: 16 | L72: 1000
A73: O14 | B73: 6 | C73: 12 | D73: 1 | E73: 14 | F73: 19 | G73: 19 | H73: 2 | I73: 16 | J73: 15 | K73: 18 | L73: 1000
A74: O15 | B74: 17 | C74: 10 | D74: 1 | E74: 1 | F74: 1 | G74: 13 | H74: 4 | I74: 3 | J74: 1 | K74: 1 | L74: 1000
A75: O16 | B75: 16 | C75: 17 | D75: 20 | E75: 10 | F75: 1 | G75: 16 | H75: 8 | I75: 18 | J75: 16 | K75: 1 | L75: 1000
A76: O17 | B76: 2 | C76: 5 | D76: 1 | E76: 12 | F76: 1 | G76: 2 | H76: 18 | I76: 8 | J76: 7 | K76: 1 | L76: 1000
A77: O18 | B77: 14 | C77: 7 | D77: 19 | E77: 19 | F77: 1 | G77: 11 | H77: 11 | I77: 14 | J77: 13 | K77: 1 | L77: 1000
A78: O19 | B78: 9 | C78: 11 | D78: 1 | E78: 7 | F78: 1 | G78: 4 | H78: 19 | I78: 13 | J78: 9 | K78: 1 | L78: 1000
A79: O20 | B79: 8 | C79: 1 | D79: 1 | E79: 17 | F79: 1 | G79: 1 | H79: 20 | I79: 1 | J79: 10 | K79: 1 | L79: 1000
A81: L�pcs�k(1) | B81: X(A1) | C81: X(A2) | D81: X(A3) | E81: X(A4) | F81: X(A5) | G81: X(A6) | H81: X(A7) | I81: X(A8) | J81: X(A9) | K81: X(A10)
A82: S1 | B82: (174.9+405.8)/(2)=290.35 | C82: (45+54)/(2)=49.45 | D82: (37+19)/(2)=28 | E82: (569.7+182.9)/(2)=376.3 | F82: (115.9+135.9)/(2)=125.95 | G82: (75+343.8)/(2)=209.4 | H82: (162.9+554.7)/(2)=358.8 | I82: (19+60)/(2)=39.5 | J82: (29+19)/(2)=24 | K82: (19+19)/(2)=19
A83: S2 | B83: (173.9+404.8)/(2)=289.35 | C83: (27+53)/(2)=40 | D83: (36+18)/(2)=27 | E83: (568.7+106.9)/(2)=337.8 | F83: (114.9+134.9)/(2)=124.95 | G83: (74+342.8)/(2)=208.4 | H83: (161.9+553.7)/(2)=357.8 | I83: (18+59)/(2)=38.5 | J83: (28+18)/(2)=23 | K83: (18+18)/(2)=18
A84: S3 | B84: (172.9+403.8)/(2)=288.35 | C84: (26+46)/(2)=36 | D84: (35+17)/(2)=26 | E84: (567.7+105.9)/(2)=336.8 | F84: (113.9+133.9)/(2)=123.95 | G84: (73+341.8)/(2)=207.4 | H84: (160.9+420.8)/(2)=290.85 | I84: (17+17)/(2)=17 | J84: (27+17)/(2)=22 | K84: (17+17)/(2)=17
A85: S4 | B85: (171.9+402.8)/(2)=287.35 | C85: (25+45)/(2)=35 | D85: (34+16)/(2)=25 | E85: (566.7+104.9)/(2)=335.8 | F85: (112.9+132.9)/(2)=122.95 | G85: (72+340.8)/(2)=206.4 | H85: (159.9+419.8)/(2)=289.85 | I85: (16+16)/(2)=16 | J85: (26+16)/(2)=21 | K85: (16+16)/(2)=16
A86: S5 | B86: (170.9+401.8)/(2)=286.35 | C86: (24+44)/(2)=34 | D86: (33+15)/(2)=24 | E86: (565.7+103.9)/(2)=334.8 | F86: (111.9+131.9)/(2)=121.95 | G86: (47+296.8)/(2)=171.9 | H86: (158.9+418.8)/(2)=288.85 | I86: (15+15)/(2)=15 | J86: (25+15)/(2)=20 | K86: (15+15)/(2)=15
A87: S6 | B87: (156.9+400.8)/(2)=278.85 | C87: (23+43)/(2)=33 | D87: (32+14)/(2)=23 | E87: (564.7+102.9)/(2)=333.8 | F87: (110.9+130.9)/(2)=120.95 | G87: (46+295.8)/(2)=170.9 | H87: (141.9+255.9)/(2)=198.9 | I87: (14+14)/(2)=14 | J87: (24+14)/(2)=19 | K87: (14+14)/(2)=14
A88: S7 | B88: (155.9+357.8)/(2)=256.85 | C88: (22+42)/(2)=32 | D88: (31+13)/(2)=22 | E88: (563.7+101.9)/(2)=332.8 | F88: (109.9+129.9)/(2)=119.95 | G88: (45+265.8)/(2)=155.4 | H88: (140.9+254.9)/(2)=197.9 | I88: (13+13)/(2)=13 | J88: (23+13)/(2)=18 | K88: (13+13)/(2)=13
A89: S8 | B89: (154.9+356.8)/(2)=255.85 | C89: (12+41)/(2)=26.5 | D89: (30+12)/(2)=21 | E89: (562.7+100.9)/(2)=331.8 | F89: (108.9+128.9)/(2)=118.95 | G89: (44+264.8)/(2)=154.4 | H89: (139.9+196.9)/(2)=168.4 | I89: (12+12)/(2)=12 | J89: (22+12)/(2)=17 | K89: (12+12)/(2)=12
A90: S9 | B90: (153.9+355.8)/(2)=254.85 | C90: (11+11)/(2)=11 | D90: (29+11)/(2)=20 | E90: (561.7+99.9)/(2)=330.8 | F90: (107.9+127.9)/(2)=117.95 | G90: (43+263.8)/(2)=153.4 | H90: (138.9+195.9)/(2)=167.4 | I90: (11+11)/(2)=11 | J90: (21+11)/(2)=16 | K90: (11+11)/(2)=11
A91: S10 | B91: (123.9+354.8)/(2)=239.35 | C91: (10+10)/(2)=10 | D91: (28+10)/(2)=19 | E91: (560.7+98.9)/(2)=329.8 | F91: (106.9+126.9)/(2)=116.95 | G91: (42+262.8)/(2)=152.4 | H91: (137.9+176.9)/(2)=157.4 | I91: (10+10)/(2)=10 | J91: (20+10)/(2)=15 | K91: (10+10)/(2)=10
A92: S11 | B92: (113.9+353.8)/(2)=233.85 | C92: (9+9)/(2)=9 | D92: (27+9)/(2)=18 | E92: (519.7+9)/(2)=264.35 | F92: (105.9+125.9)/(2)=115.95 | G92: (41+261.8)/(2)=151.4 | H92: (136.9+175.9)/(2)=156.4 | I92: (9+9)/(2)=9 | J92: (19+9)/(2)=14 | K92: (9+9)/(2)=9
A93: S12 | B93: (112.9+352.8)/(2)=232.85 | C93: (8+8)/(2)=8 | D93: (26+8)/(2)=17 | E93: (518.7+8)/(2)=263.35 | F93: (104.9+124.9)/(2)=114.95 | G93: (40+260.9)/(2)=150.4 | H93: (86+95.9)/(2)=90.95 | I93: (8+8)/(2)=8 | J93: (18+8)/(2)=13 | K93: (8+8)/(2)=8
A94: S13 | B94: (111.9+351.8)/(2)=231.85 | C94: (7+7)/(2)=7 | D94: (25+7)/(2)=16 | E94: (517.7+7)/(2)=262.35 | F94: (103.9+123.9)/(2)=113.95 | G94: (39+194.9)/(2)=116.95 | H94: (85+94.9)/(2)=89.95 | I94: (7+7)/(2)=7 | J94: (17+7)/(2)=12 | K94: (7+7)/(2)=7
A95: S14 | B95: (110.9+350.8)/(2)=230.85 | C95: (6+6)/(2)=6 | D95: (24+6)/(2)=15 | E95: (516.7+6)/(2)=261.35 | F95: (102.9+122.9)/(2)=112.95 | G95: (38+193.9)/(2)=115.95 | H95: (84+93.9)/(2)=88.95 | I95: (6+6)/(2)=6 | J95: (16+6)/(2)=11 | K95: (6+6)/(2)=6
A96: S15 | B96: (109.9+349.8)/(2)=229.85 | C96: (5+5)/(2)=5 | D96: (23+5)/(2)=14 | E96: (515.7+5)/(2)=260.35 | F96: (101.9+121.9)/(2)=111.95 | G96: (37+192.9)/(2)=114.95 | H96: (83+92.9)/(2)=87.95 | I96: (5+5)/(2)=5 | J96: (15+5)/(2)=10 | K96: (5+5)/(2)=5
A97: S16 | B97: (108.9+348.8)/(2)=228.85 | C97: (4+4)/(2)=4 | D97: (22+4)/(2)=13 | E97: (514.7+4)/(2)=259.35 | F97: (100.9+120.9)/(2)=110.95 | G97: (36+191.9)/(2)=113.95 | H97: (82+90.9)/(2)=86.45 | I97: (4+4)/(2)=4 | J97: (14+4)/(2)=9 | K97: (4+4)/(2)=4
A98: S17 | B98: (3+3)/(2)=3 | C98: (3+3)/(2)=3 | D98: (21+3)/(2)=12 | E98: (513.7+3)/(2)=258.35 | F98: (99.9+119.9)/(2)=109.95 | G98: (35+190.9)/(2)=112.95 | H98: (81+89.9)/(2)=85.45 | I98: (3+3)/(2)=3 | J98: (3+3)/(2)=3 | K98: (3+3)/(2)=3
A99: S18 | B99: (2+2)/(2)=2 | C99: (2+2)/(2)=2 | D99: (20+2)/(2)=11 | E99: (512.7+2)/(2)=257.35 | F99: (98.9+118.9)/(2)=108.95 | G99: (24+2)/(2)=13 | H99: (2+2)/(2)=2 | I99: (2+2)/(2)=2 | J99: (2+2)/(2)=2 | K99: (2+2)/(2)=2
A100: S19 | B100: (1+1)/(2)=1 | C100: (1+1)/(2)=1 | D100: (19+1)/(2)=10 | E100: (511.7+1)/(2)=256.35 | F100: (97.9+1)/(2)=49.45 | G100: (1+1)/(2)=1 | H100: (1+1)/(2)=1 | I100: (1+1)/(2)=1 | J100: (1+1)/(2)=1 | K100: (1+1)/(2)=1
A101: S20 | B101: (0+0)/(2)=0 | C101: (0+0)/(2)=0 | D101: (0+0)/(2)=0 | E101: (481.7+0)/(2)=240.85 | F101: (0+0)/(2)=0 | G101: (0+0)/(2)=0 | H101: (0+0)/(2)=0 | I101: (0+0)/(2)=0 | J101: (0+0)/(2)=0 | K101: (0+0)/(2)=0
A103: L�pcs�k(2) | B103: X(A1) | C103: X(A2) | D103: X(A3) | E103: X(A4) | F103: X(A5) | G103: X(A6) | H103: X(A7) | I103: X(A8) | J103: X(A9) | K103: X(A10)
A104: S1 | B104: 290.3 | C104: 49.5 | D104: 28 | E104: 376.3 | F104: 125.9 | G104: 209.4 | H104: 358.8 | I104: 39.5 | J104: 24 | K104: 19
A105: S2 | B105: 289.3 | C105: 40 | D105: 27 | E105: 337.8 | F105: 124.9 | G105: 208.4 | H105: 357.8 | I105: 38.5 | J105: 23 | K105: 18
A106: S3 | B106: 288.3 | C106: 36 | D106: 26 | E106: 336.8 | F106: 123.9 | G106: 207.4 | H106: 290.8 | I106: 17 | J106: 22 | K106: 17
A107: S4 | B107: 287.3 | C107: 35 | D107: 25 | E107: 335.8 | F107: 122.9 | G107: 206.4 | H107: 289.8 | I107: 16 | J107: 21 | K107: 16
A108: S5 | B108: 286.3 | C108: 34 | D108: 24 | E108: 334.8 | F108: 121.9 | G108: 171.9 | H108: 288.8 | I108: 15 | J108: 20 | K108: 15
A109: S6 | B109: 278.8 | C109: 33 | D109: 23 | E109: 333.8 | F109: 120.9 | G109: 170.9 | H109: 198.9 | I109: 14 | J109: 19 | K109: 14
A110: S7 | B110: 256.9 | C110: 32 | D110: 22 | E110: 332.8 | F110: 119.9 | G110: 155.4 | H110: 197.9 | I110: 13 | J110: 18 | K110: 13
A111: S8 | B111: 255.9 | C111: 26.5 | D111: 21 | E111: 331.8 | F111: 118.9 | G111: 154.4 | H111: 168.4 | I111: 12 | J111: 17 | K111: 12
A112: S9 | B112: 254.9 | C112: 11 | D112: 20 | E112: 330.8 | F112: 117.9 | G112: 153.4 | H112: 167.4 | I112: 11 | J112: 16 | K112: 11
A113: S10 | B113: 239.4 | C113: 10 | D113: 19 | E113: 329.8 | F113: 116.9 | G113: 152.4 | H113: 157.4 | I113: 10 | J113: 15 | K113: 10
A114: S11 | B114: 233.9 | C114: 9 | D114: 18 | E114: 264.3 | F114: 115.9 | G114: 151.4 | H114: 156.4 | I114: 9 | J114: 14 | K114: 9
A115: S12 | B115: 232.9 | C115: 8 | D115: 17 | E115: 263.3 | F115: 114.9 | G115: 150.4 | H115: 90.9 | I115: 8 | J115: 13 | K115: 8
A116: S13 | B116: 231.9 | C116: 7 | D116: 16 | E116: 262.3 | F116: 113.9 | G116: 116.9 | H116: 89.9 | I116: 7 | J116: 12 | K116: 7
A117: S14 | B117: 230.9 | C117: 6 | D117: 15 | E117: 261.3 | F117: 112.9 | G117: 115.9 | H117: 88.9 | I117: 6 | J117: 11 | K117: 6
A118: S15 | B118: 229.9 | C118: 5 | D118: 14 | E118: 260.4 | F118: 111.9 | G118: 114.9 | H118: 87.9 | I118: 5 | J118: 10 | K118: 5
A119: S16 | B119: 228.9 | C119: 4 | D119: 13 | E119: 259.4 | F119: 110.9 | G119: 113.9 | H119: 86.5 | I119: 4 | J119: 9 | K119: 4
A120: S17 | B120: 3 | C120: 3 | D120: 12 | E120: 258.4 | F120: 109.9 | G120: 112.9 | H120: 85.5 | I120: 3 | J120: 3 | K120: 3
A121: S18 | B121: 2 | C121: 2 | D121: 11 | E121: 257.4 | F121: 108.9 | G121: 13 | H121: 2 | I121: 2 | J121: 2 | K121: 2
A122: S19 | B122: 1 | C122: 1 | D122: 10 | E122: 256.4 | F122: 49.5 | G122: 1 | H122: 1 | I122: 1 | J122: 1 | K122: 1
A123: S20 | B123: 0 | C123: 0 | D123: 0 | E123: 240.9 | F123: 0 | G123: 0 | H123: 0 | I123: 0 | J123: 0 | K123: 0
A125: COCO:Y0 | B125: X(A1) | C125: X(A2) | D125: X(A3) | E125: X(A4) | F125: X(A5) | G125: X(A6) | H125: X(A7) | I125: X(A8) | J125: X(A9) | K125: X(A10) | L125: Becsl�s | M125: T�ny+0 | N125: Delta | O125: Delta/T�ny
A126: O1 | B126: 233.9 | C126: 2 | D126: 28 | E126: 333.8 | F126: 125.9 | G126: 150.4 | H126: 90.9 | I126: 5 | J126: 11 | K126: 19 | L126: 999.9 | M126: 1000 | N126: 0.1 | O126: 0.01
A127: O2 | B127: 233.9 | C127: 6 | D127: 28 | E127: 260.4 | F127: 125.9 | G127: 114.9 | H127: 198.9 | I127: 10 | J127: 3 | K127: 19 | L127: 999.9 | M127: 1000 | N127: 0.1 | O127: 0.01
A128: O3 | B128: 2 | C128: 40 | D128: 28 | E128: 376.3 | F128: 125.9 | G128: 13 | H128: 358.8 | I128: 13 | J128: 24 | K128: 19 | L128: 999.9 | M128: 1000 | N128: 0.1 | O128: 0.01
A129: O4 | B129: 229.9 | C129: 33 | D129: 28 | E129: 259.4 | F129: 125.9 | G129: 0 | H129: 290.8 | I129: 0 | J129: 14 | K129: 19 | L129: 999.9 | M129: 1000 | N129: 0.1 | O129: 0.01
A130: O5 | B130: 256.9 | C130: 5 | D130: 12 | E130: 240.9 | F130: 125.9 | G130: 155.4 | H130: 167.4 | I130: 16 | J130: 2 | K130: 19 | L130: 1000.4 | M130: 1000 | N130: -0.4 | O130: -0.04
A131: O6 | B131: 1 | C131: 36 | D131: 28 | E131: 376.3 | F131: 125.9 | G131: 153.4 | H131: 197.9 | I131: 38.5 | J131: 24 | K131: 19 | L131: 999.9 | M131: 1000 | N131: 0.1 | O131: 0.01
A132: O7 | B132: 0 | C132: 7 | D132: 28 | E132: 376.3 | F132: 125.9 | G132: 112.9 | H132: 288.8 | I132: 8 | J132: 24 | K132: 19 | L132: 989.9 | M132: 1000 | N132: 10.1 | O132: 1.01
A133: O8 | B133: 290.3 | C133: 11 | D133: 28 | E133: 331.8 | F133: 0 | G133: 152.4 | H133: 157.4 | I133: 9 | J133: 17 | K133: 3 | L133: 999.9 | M133: 1000 | N133: 0.1 | O133: 0.01
A134: O9 | B134: 288.3 | C134: 4 | D134: 28 | E134: 257.4 | F134: 110.9 | G134: 207.4 | H134: 87.9 | I134: 14 | J134: 1 | K134: 1 | L134: 999.9 | M134: 1000 | N134: 0.1 | O134: 0.01
A135: O10 | B135: 239.4 | C135: 1 | D135: 11 | E135: 376.3 | F135: 125.9 | G135: 115.9 | H135: 86.5 | I135: 1 | J135: 24 | K135: 19 | L135: 999.9 | M135: 1000 | N135: 0.1 | O135: 0.01
A136: O11 | B136: 287.3 | C136: 0 | D136: 28 | E136: 330.8 | F136: 109.9 | G136: 154.4 | H136: 85.5 | I136: 4 | J136: 0 | K136: 0 | L136: 999.9 | M136: 1000 | N136: 0.1 | O136: 0.01
A137: O12 | B137: 231.9 | C137: 35 | D137: 28 | E137: 264.3 | F137: 125.9 | G137: 171.9 | H137: 89.9 | I137: 15 | J137: 19 | K137: 19 | L137: 999.9 | M137: 1000 | N137: 0.1 | O137: 0.01
A138: O13 | B138: 286.3 | C138: 26.5 | D138: 28 | E138: 262.3 | F138: 108.9 | G138: 170.9 | H138: 88.9 | I138: 11 | J138: 13 | K138: 4 | L138: 999.9 | M138: 1000 | N138: 0.1 | O138: 0.01
A139: O14 | B139: 278.8 | C139: 8 | D139: 28 | E139: 261.3 | F139: 49.5 | G139: 1 | H139: 357.8 | I139: 4 | J139: 10 | K139: 2 | L139: 1000.4 | M139: 1000 | N139: -0.4 | O139: -0.04
A140: O15 | B140: 3 | C140: 10 | D140: 28 | E140: 376.3 | F140: 125.9 | G140: 116.9 | H140: 289.8 | I140: 17 | J140: 24 | K140: 19 | L140: 1009.9 | M140: 1000 | N140: -9.9 | O140: -0.99
A141: O16 | B141: 228.9 | C141: 3 | D141: 0 | E141: 329.8 | F141: 125.9 | G141: 113.9 | H141: 168.4 | I141: 2 | J141: 9 | K141: 19 | L141: 999.9 | M141: 1000 | N141: 0.1 | O141: 0.01
A142: O17 | B142: 289.3 | C142: 34 | D142: 28 | E142: 263.3 | F142: 125.9 | G142: 208.4 | H142: 2 | I142: 12 | J142: 18 | K142: 19 | L142: 999.9 | M142: 1000 | N142: 0.1 | O142: 0.01
A143: O18 | B143: 230.9 | C143: 32 | D143: 10 | E143: 256.4 | F143: 125.9 | G143: 151.4 | H143: 156.4 | I143: 6 | J143: 12 | K143: 19 | L143: 999.9 | M143: 1000 | N143: 0.1 | O143: 0.01
A144: O19 | B144: 254.9 | C144: 9 | D144: 28 | E144: 332.8 | F144: 125.9 | G144: 206.4 | H144: 1 | I144: 7 | J144: 16 | K144: 19 | L144: 999.9 | M144: 1000 | N144: 0.1 | O144: 0.01
A145: O20 | B145: 255.9 | C145: 49.5 | D145: 28 | E145: 258.4 | F145: 125.9 | G145: 209.4 | H145: 0 | I145: 39.5 | J145: 15 | K145: 19 | L145: 1000.4 | M145: 1000 | N145: -0.4 | O145: -0.04
A147: S1 �sszeg: | B147: 1520.7
A148: S20 �sszeg: | B148: 240.9
A149: Becsl�s �sszeg: | B149: 19999.5
A150: T�ny �sszeg: | B150: 20000
A151: T�ny-becsl�s elt�r�s: | B151: -0.5
A152: T�ny n�gyzet�sszeg:
A153: Becsl�s n�gyzet�sszeg:
A154: N�gyzet�sszeg hiba: | B154: 0
A156: Open url
A158: Maxim�lis mem�ria haszn�lat: 1.46 Mb
A159: A futtat�s id�tartama: 0.11 mp (0 p)
B168: Azonos�t�: | C168: 1316403 | D168: Objektumok: | E168: 20 | F168: Attrib�tumok: | G168: 10 | H168: Lepcs�k: | I168: 20 | J168: Eltol�s: | K168: 0 | L168: Le�r�s: | M168: COCO Y0: 1316403
B170: Rangsor | C170: X(A1) | D170: X(A2) | E170: X(A3) | F170: X(A4) | G170: X(A5) | H170: X(A6) | I170: X(A7) | J170: X(A8) | K170: X(A9) | L170: X(A10) | M170: Y(A11)
B171: O1 | C171: 10 | D171: 3 | E171: 20 | F171: 15 | G171: 20 | H171: 9 | I171: 9 | J171: 6 | K171: 7 | L171: 20 | M171: 1000
B172: O2 | C172: 10 | D172: 7 | E172: 20 | F172: 6 | G172: 20 | H172: 6 | I172: 15 | J172: 11 | K172: 4 | L172: 20 | M172: 1000
B173: O3 | C173: 3 | D173: 19 | E173: 20 | F173: 20 | G173: 20 | H173: 3 | I173: 20 | J173: 14 | K173: 20 | L173: 20 | M173: 1000
B174: O4 | C174: 6 | D174: 15 | E174: 20 | F174: 5 | G174: 20 | H174: 1 | I174: 18 | J174: 1 | K174: 10 | L174: 20 | M174: 1000
B175: O5 | C175: 14 | D175: 6 | E175: 4 | F175: 1 | G175: 20 | H175: 14 | I175: 12 | J175: 17 | K175: 3 | L175: 20 | M175: 1000
B176: O6 | C176: 2 | D176: 18 | E176: 20 | F176: 20 | G176: 20 | H176: 12 | I176: 14 | J176: 19 | K176: 20 | L176: 20 | M176: 1000
B177: O7 | C177: 1 | D177: 8 | E177: 20 | F177: 20 | G177: 20 | H177: 4 | I177: 16 | J177: 9 | K177: 20 | L177: 20 | M177: 1000
B178: O8 | C178: 20 | D178: 12 | E178: 20 | F178: 13 | G178: 1 | H178: 11 | I178: 11 | J178: 10 | K178: 13 | L178: 4 | M178: 1000
B179: O9 | C179: 18 | D179: 5 | E179: 20 | F179: 3 | G179: 5 | H179: 18 | I179: 6 | J179: 15 | K179: 2 | L179: 2 | M179: 1000
B180: O10 | C180: 11 | D180: 2 | E180: 3 | F180: 20 | G180: 20 | H180: 7 | I180: 5 | J180: 2 | K180: 20 | L180: 20 | M180: 1000
B181: O11 | C181: 17 | D181: 1 | E181: 20 | F181: 12 | G181: 4 | H181: 13 | I181: 4 | J181: 5 | K181: 1 | L181: 1 | M181: 1000
B182: O12 | C182: 8 | D182: 17 | E182: 20 | F182: 10 | G182: 20 | H182: 16 | I182: 8 | J182: 16 | K182: 15 | L182: 20 | M182: 1000
B183: O13 | C183: 16 | D183: 13 | E183: 20 | F183: 8 | G183: 3 | H183: 15 | I183: 7 | J183: 12 | K183: 9 | L183: 5 | M183: 1000
B184: O14 | C184: 15 | D184: 9 | E184: 20 | F184: 7 | G184: 2 | H184: 2 | I184: 19 | J184: 5 | K184: 6 | L184: 3 | M184: 1000
B185: O15 | C185: 4 | D185: 11 | E185: 20 | F185: 20 | G185: 20 | H185: 8 | I185: 17 | J185: 18 | K185: 20 | L185: 20 | M185: 1000
B186: O16 | C186: 5 | D186: 4 | E186: 1 | F186: 11 | G186: 20 | H186: 5 | I186: 13 | J186: 3 | K186: 5 | L186: 20 | M186: 1000
B187: O17 | C187: 19 | D187: 16 | E187: 20 | F187: 9 | G187: 20 | H187: 19 | I187: 3 | J187: 13 | K187: 14 | L187: 20 | M187: 1000
B188: O18 | C188: 7 | D188: 14 | E188: 2 | F188: 2 | G188: 20 | H188: 10 | I188: 10 | J188: 7 | K188: 8 | L188: 20 | M188: 1000
B189: O19 | C189: 12 | D189: 10 | E189: 20 | F189: 14 | G189: 20 | H189: 17 | I189: 2 | J189: 8 | K189: 12 | L189: 20 | M189: 1000
B190: O20 | C190: 13 | D190: 20 | E190: 20 | F190: 4 | G190: 20 | H190: 20 | I190: 1 | J190: 20 | K190: 11 | L190: 20 | M190: 1000
B192: L�pcs�k(1) | C192: X(A1) | D192: X(A2) | E192: X(A3) | F192: X(A4) | G192: X(A5) | H192: X(A6) | I192: X(A7) | J192: X(A8) | K192: X(A9) | L192: X(A10)
B193: S1 | C193: (929.7+972.7)/(2)=951.2 | D193: (23+322.9)/(2)=172.95 | E193: (19+19)/(2)=19 | F193: (131+586.8)/(2)=358.9 | G193: (149+879.7)/(2)=514.35 | H193: (67+209.9)/(2)=138.45 | I193: (191.9+949.7)/(2)=570.85 | J193: (19+19)/(2)=19 | K193: (33+350.9)/(2)=191.95 | L193: (19+19)/(2)=19
B194: S2 | C194: (928.7+971.7)/(2)=950.2 | D194: (22+321.9)/(2)=171.95 | E194: (18+18)/(2)=18 | F194: (63+161)/(2)=111.95 | G194: (47+878.7)/(2)=462.85 | H194: (66+23)/(2)=44.5 | I194: (190.9+948.7)/(2)=569.85 | J194: (18+18)/(2)=18 | K194: (32+349.9)/(2)=190.95 | L194: (18+18)/(2)=18
B195: S3 | C195: (927.7+970.7)/(2)=949.2 | D195: (21+320.9)/(2)=170.95 | E195: (17+17)/(2)=17 | F195: (62+160)/(2)=110.95 | G195: (46+659.8)/(2)=352.9 | H195: (65+22)/(2)=43.5 | I195: (189.9+947.7)/(2)=568.85 | J195: (17+17)/(2)=17 | K195: (31+348.9)/(2)=189.95 | L195: (17+17)/(2)=17
B196: S4 | C196: (926.7+969.7)/(2)=948.2 | D196: (20+192.9)/(2)=106.45 | E196: (16+16)/(2)=16 | F196: (61+34)/(2)=47.5 | G196: (45+16)/(2)=30.5 | H196: (21+16)/(2)=18.5 | I196: (116+258.9)/(2)=187.45 | J196: (16+16)/(2)=16 | K196: (30+347.9)/(2)=188.95 | L196: (16+16)/(2)=16
B197: S5 | C197: (829.8+717.8)/(2)=773.75 | D197: (19+191.9)/(2)=105.45 | E197: (15+15)/(2)=15 | F197: (60+33)/(2)=46.5 | G197: (15+15)/(2)=15 | H197: (20+15)/(2)=17.5 | I197: (115+257.9)/(2)=186.45 | J197: (15+15)/(2)=15 | K197: (29+15)/(2)=22 | L197: (15+15)/(2)=15
B198: S6 | C198: (815.8+716.8)/(2)=766.25 | D198: (18+18)/(2)=18 | E198: (14+14)/(2)=14 | F198: (59+32)/(2)=45.5 | G198: (14+14)/(2)=14 | H198: (19+14)/(2)=16.5 | I198: (114+256.9)/(2)=185.45 | J198: (14+14)/(2)=14 | K198: (28+14)/(2)=21 | L198: (14+14)/(2)=14
B199: S7 | C199: (814.8+715.8)/(2)=765.25 | D199: (17+17)/(2)=17 | E199: (13+13)/(2)=13 | F199: (58+31)/(2)=44.5 | G199: (13+13)/(2)=13 | H199: (18+13)/(2)=15.5 | I199: (113+255.9)/(2)=184.45 | J199: (13+13)/(2)=13 | K199: (27+13)/(2)=20 | L199: (13+13)/(2)=13
B200: S8 | C200: (813.8+714.8)/(2)=764.25 | D200: (16+16)/(2)=16 | E200: (12+12)/(2)=12 | F200: (57+30)/(2)=43.5 | G200: (12+12)/(2)=12 | H200: (17+12)/(2)=14.5 | I200: (112+254.9)/(2)=183.45 | J200: (12+12)/(2)=12 | K200: (12+12)/(2)=12 | L200: (12+12)/(2)=12
B201: S9 | C201: (812.8+575.8)/(2)=694.3 | D201: (15+15)/(2)=15 | E201: (11+11)/(2)=11 | F201: (56+29)/(2)=42.5 | G201: (11+11)/(2)=11 | H201: (11+11)/(2)=11 | I201: (111+61)/(2)=85.95 | J201: (11+11)/(2)=11 | K201: (11+11)/(2)=11 | L201: (11+11)/(2)=11
B202: S10 | C202: (811.8+574.8)/(2)=693.3 | D202: (14+14)/(2)=14 | E202: (10+10)/(2)=10 | F202: (55+10)/(2)=32.5 | G202: (10+10)/(2)=10 | H202: (10+10)/(2)=10 | I202: (60+60)/(2)=60 | J202: (10+10)/(2)=10 | K202: (10+10)/(2)=10 | L202: (10+10)/(2)=10
B203: S11 | C203: (810.8+372.9)/(2)=591.8 | D203: (13+13)/(2)=13 | E203: (9+9)/(2)=9 | F203: (9+9)/(2)=9 | G203: (9+9)/(2)=9 | H203: (9+9)/(2)=9 | I203: (59+59)/(2)=59 | J203: (9+9)/(2)=9 | K203: (9+9)/(2)=9 | L203: (9+9)/(2)=9
B204: S12 | C204: (765.8+8)/(2)=386.9 | D204: (12+12)/(2)=12 | E204: (8+8)/(2)=8 | F204: (8+8)/(2)=8 | G204: (8+8)/(2)=8 | H204: (8+8)/(2)=8 | I204: (58+15)/(2)=36.5 | J204: (8+8)/(2)=8 | K204: (8+8)/(2)=8 | L204: (8+8)/(2)=8
B205: S13 | C205: (737.8+7)/(2)=372.4 | D205: (11+11)/(2)=11 | E205: (7+7)/(2)=7 | F205: (7+7)/(2)=7 | G205: (7+7)/(2)=7 | H205: (7+7)/(2)=7 | I205: (57+14)/(2)=35.5 | J205: (7+7)/(2)=7 | K205: (7+7)/(2)=7 | L205: (7+7)/(2)=7
B206: S14 | C206: (736.8+6)/(2)=371.4 | D206: (10+10)/(2)=10 | E206: (6+6)/(2)=6 | F206: (6+6)/(2)=6 | G206: (6+6)/(2)=6 | H206: (6+6)/(2)=6 | I206: (56+13)/(2)=34.5 | J206: (6+6)/(2)=6 | K206: (6+6)/(2)=6 | L206: (6+6)/(2)=6
B207: S15 | C207: (735.8+5)/(2)=370.4 | D207: (9+9)/(2)=9 | E207: (5+5)/(2)=5 | F207: (5+5)/(2)=5 | G207: (5+5)/(2)=5 | H207: (5+5)/(2)=5 | I207: (55+5)/(2)=30 | J207: (5+5)/(2)=5 | K207: (5+5)/(2)=5 | L207: (5+5)/(2)=5
B208: S16 | C208: (734.8+4)/(2)=369.4 | D208: (8+8)/(2)=8 | E208: (4+4)/(2)=4 | F208: (4+4)/(2)=4 | G208: (4+4)/(2)=4 | H208: (4+4)/(2)=4 | I208: (22+4)/(2)=13 | J208: (4+4)/(2)=4 | K208: (4+4)/(2)=4 | L208: (4+4)/(2)=4
B209: S17 | C209: (733.8+3)/(2)=368.4 | D209: (7+7)/(2)=7 | E209: (3+3)/(2)=3 | F209: (3+3)/(2)=3 | G209: (3+3)/(2)=3 | H209: (3+3)/(2)=3 | I209: (21+3)/(2)=12 | J209: (3+3)/(2)=3 | K209: (3+3)/(2)=3 | L209: (3+3)/(2)=3
B210: S18 | C210: (732.8+2)/(2)=367.4 | D210: (6+6)/(2)=6 | E210: (2+2)/(2)=2 | F210: (2+2)/(2)=2 | G210: (2+2)/(2)=2 | H210: (2+2)/(2)=2 | I210: (20+2)/(2)=11 | J210: (2+2)/(2)=2 | K210: (2+2)/(2)=2 | L210: (2+2)/(2)=2
B211: S19 | C211: (731.8+1)/(2)=366.4 | D211: (1+1)/(2)=1 | E211: (1+1)/(2)=1 | F211: (1+1)/(2)=1 | G211: (1+1)/(2)=1 | H211: (1+1)/(2)=1 | I211: (19+1)/(2)=10 | J211: (1+1)/(2)=1 | K211: (1+1)/(2)=1 | L211: (1+1)/(2)=1
B212: S20 | C212: (730.8+0)/(2)=365.4 | D212: (0+0)/(2)=0 | E212: (0+0)/(2)=0 | F212: (0+0)/(2)=0 | G212: (0+0)/(2)=0 | H212: (0+0)/(2)=0 | I212: (0+0)/(2)=0 | J212: (0+0)/(2)=0 | K212: (0+0)/(2)=0 | L212: (0+0)/(2)=0
B214: L�pcs�k(2) | C214: X(A1) | D214: X(A2) | E214: X(A3) | F214: X(A4) | G214: X(A5) | H214: X(A6) | I214: X(A7) | J214: X(A8) | K214: X(A9) | L214: X(A10)
B215: S1 | C215: 951.2 | D215: 172.9 | E215: 19 | F215: 358.9 | G215: 514.3 | H215: 138.5 | I215: 570.8 | J215: 19 | K215: 191.9 | L215: 19
B216: S2 | C216: 950.2 | D216: 171.9 | E216: 18 | F216: 112 | G216: 462.9 | H216: 44.5 | I216: 569.8 | J216: 18 | K216: 190.9 | L216: 18
B217: S3 | C217: 949.2 | D217: 170.9 | E217: 17 | F217: 111 | G217: 352.9 | H217: 43.5 | I217: 568.8 | J217: 17 | K217: 189.9 | L217: 17
B218: S4 | C218: 948.2 | D218: 106.5 | E218: 16 | F218: 47.5 | G218: 30.5 | H218: 18.5 | I218: 187.4 | J218: 16 | K218: 188.9 | L218: 16
B219: S5 | C219: 773.8 | D219: 105.5 | E219: 15 | F219: 46.5 | G219: 15 | H219: 17.5 | I219: 186.4 | J219: 15 | K219: 22 | L219: 15
B220: S6 | C220: 766.3 | D220: 18 | E220: 14 | F220: 45.5 | G220: 14 | H220: 16.5 | I220: 185.4 | J220: 14 | K220: 21 | L220: 14
B221: S7 | C221: 765.3 | D221: 17 | E221: 13 | F221: 44.5 | G221: 13 | H221: 15.5 | I221: 184.4 | J221: 13 | K221: 20 | L221: 13
B222: S8 | C222: 764.3 | D222: 16 | E222: 12 | F222: 43.5 | G222: 12 | H222: 14.5 | I222: 183.4 | J222: 12 | K222: 12 | L222: 12
B223: S9 | C223: 694.3 | D223: 15 | E223: 11 | F223: 42.5 | G223: 11 | H223: 11 | I223: 86 | J223: 11 | K223: 11 | L223: 11
B224: S10 | C224: 693.3 | D224: 14 | E224: 10 | F224: 32.5 | G224: 10 | H224: 10 | I224: 60 | J224: 10 | K224: 10 | L224: 10
B225: S11 | C225: 591.8 | D225: 13 | E225: 9 | F225: 9 | G225: 9 | H225: 9 | I225: 59 | J225: 9 | K225: 9 | L225: 9
B226: S12 | C226: 386.9 | D226: 12 | E226: 8 | F226: 8 | G226: 8 | H226: 8 | I226: 36.5 | J226: 8 | K226: 8 | L226: 8
B227: S13 | C227: 372.4 | D227: 11 | E227: 7 | F227: 7 | G227: 7 | H227: 7 | I227: 35.5 | J227: 7 | K227: 7 | L227: 7
... 39 more rows

Sheet Y0_2
A1: HM-nélkül | B1: egy életévre jutó meccsek száma | C1: egy meccsre jutó gólok száma | D1: egy meccsre jutó öngólok száma | E1: egy meccsre jutó sárgalapok száma | F1: egy meccsre jutó piroslapok száma | G1: hány százalékban kezdő? | H1: hány százalékban csere? | I1: hány százalékban kispad? | J1: egy gólra jutó sárgalapok száma? | K1: egy gólra jutó piroslapok száma? | L1: Ki a lejobb játékos? | M1: becslés | N1: <--egyenszilárd csapat
A2: GM | B2: 11 | C2: 18 | D2: 1 | E2: 6 | F2: 1 | G2: 12 | H2: 12 | I2: 15 | J2: 14 | K2: 1 | L2: 1000 | M2: =L96 -> 1001
A3: BE | B3: 11 | C3: 14 | D3: 1 | E3: 15 | F3: 1 | G3: 15 | H3: 6 | I3: 10 | J3: 17 | K3: 1 | L3: 1000 | M3: =L97 -> 1001
A4: BT | B4: 18 | C4: 2 | D4: 1 | E4: 1 | F4: 1 | G4: 18 | H4: 1 | I4: 7 | J4: 1 | K4: 1 | L4: 1000 | M4: 1000
A5: FK | B5: 15 | C5: 6 | D5: 1 | E5: 16 | F5: 1 | G5: 20 | H5: 3 | I5: 20 | J5: 11 | K5: 1 | L5: 1000 | M5: 1001
A6: FF | B6: 7 | C6: 15 | D6: 17 | E6: 20 | F6: 1 | G6: 7 | H6: 9 | I6: 4 | J6: 18 | K6: 1 | L6: 1000 | M6: 1001
A7: FI | B7: 19 | C7: 3 | D7: 1 | E7: 1 | F7: 1 | G7: 9 | H7: 7 | I7: 2 | J7: 1 | K7: 1 | L7: 1000 | M7: 1001
A8: JI | B8: 1 | C8: 9 | D8: 1 | E8: 8 | F8: 20 | G8: 10 | H8: 10 | I8: 11 | J8: 8 | K8: 17 | L8: 1000 | M8: 1001
A9: KK | B9: 3 | C9: 16 | D9: 1 | E9: 18 | F9: 16 | G9: 3 | H9: 15 | I9: 6 | J9: 19 | K9: 19 | L9: 1000 | M9: 1001
A10: KP | B10: 10 | C10: 19 | D10: 18 | E10: 1 | F10: 1 | G10: 14 | H10: 16 | I10: 19 | J10: 1 | K10: 1 | L10: 1000 | M10: 1001
A11: NN | B11: 4 | C11: 20 | D11: 1 | E11: 9 | F11: 17 | G11: 8 | H11: 17 | I11: 16 | J11: 20 | K11: 20 | L11: 1000 | M11: 1001
A12: PD | B12: 13 | C12: 4 | D12: 1 | E12: 11 | F12: 1 | G12: 5 | H12: 13 | I12: 5 | J12: 6 | K12: 1 | L12: 1000 | M12: 1001
A13: RD | B13: 5 | C13: 8 | D13: 1 | E13: 13 | F13: 18 | G13: 6 | H13: 14 | I13: 9 | J13: 12 | K13: 16 | L13: 1000 | M13: 1001
A14: RF | B14: 6 | C14: 12 | D14: 1 | E14: 14 | F14: 19 | G14: 19 | H14: 2 | I14: 16 | J14: 15 | K14: 18 | L14: 1000 | M14: 1001
A15: RB | B15: 17 | C15: 10 | D15: 1 | E15: 1 | F15: 1 | G15: 13 | H15: 4 | I15: 3 | J15: 1 | K15: 1 | L15: 1000 | M15: 1001
A16: RT | B16: 16 | C16: 17 | D16: 20 | E16: 10 | F16: 1 | G16: 16 | H16: 8 | I16: 18 | J16: 16 | K16: 1 | L16: 1000 | M16: 1001
A17: SB | B17: 2 | C17: 5 | D17: 1 | E17: 12 | F17: 1 | G17: 2 | H17: 18 | I17: 8 | J17: 7 | K17: 1 | L17: 1000 | M17: 1001
A18: SV | B18: 14 | C18: 7 | D18: 19 | E18: 19 | F18: 1 | G18: 11 | H18: 11 | I18: 14 | J18: 13 | K18: 1 | L18: 1000 | M18: 1001
A19: SZ | B19: 9 | C19: 11 | D19: 1 | E19: 7 | F19: 1 | G19: 4 | H19: 19 | I19: 13 | J19: 9 | K19: 1 | L19: 1000 | M19: 1001
A20: TK | B20: 8 | C20: 1 | D20: 1 | E20: 17 | F20: 1 | G20: 1 | H20: 20 | I20: 1 | J20: 10 | K20: 1 | L20: 1000 | M20: 1001
A28: Azonos�t�: | B28: 9792977 | C28: Objektumok: | D28: 19 | E28: Attrib�tumok: | F28: 10 | G28: Lepcs�k: | H28: 20 | I28: Eltol�s: | J28: 0 | K28: Le�r�s: | L28: COCO Y0: 9792977
A30: Rangsor | B30: X(A1) | C30: X(A2) | D30: X(A3) | E30: X(A4) | F30: X(A5) | G30: X(A6) | H30: X(A7) | I30: X(A8) | J30: X(A9) | K30: X(A10) | L30: Y(A11)
A31: O1 | B31: 11 | C31: 18 | D31: 1 | E31: 6 | F31: 1 | G31: 12 | H31: 12 | I31: 15 | J31: 14 | K31: 1 | L31: 1000
A32: O2 | B32: 11 | C32: 14 | D32: 1 | E32: 15 | F32: 1 | G32: 15 | H32: 6 | I32: 10 | J32: 17 | K32: 1 | L32: 1000
A33: O3 | B33: 18 | C33: 2 | D33: 1 | E33: 1 | F33: 1 | G33: 18 | H33: 1 | I33: 7 | J33: 1 | K33: 1 | L33: 1000
A34: O4 | B34: 15 | C34: 6 | D34: 1 | E34: 16 | F34: 1 | G34: 20 | H34: 3 | I34: 20 | J34: 11 | K34: 1 | L34: 1000
A35: O5 | B35: 7 | C35: 15 | D35: 17 | E35: 20 | F35: 1 | G35: 7 | H35: 9 | I35: 4 | J35: 18 | K35: 1 | L35: 1000
A36: O6 | B36: 19 | C36: 3 | D36: 1 | E36: 1 | F36: 1 | G36: 9 | H36: 7 | I36: 2 | J36: 1 | K36: 1 | L36: 1000
A37: O7 | B37: 1 | C37: 9 | D37: 1 | E37: 8 | F37: 20 | G37: 10 | H37: 10 | I37: 11 | J37: 8 | K37: 17 | L37: 1000
A38: O8 | B38: 3 | C38: 16 | D38: 1 | E38: 18 | F38: 16 | G38: 3 | H38: 15 | I38: 6 | J38: 19 | K38: 19 | L38: 1000
A39: O9 | B39: 10 | C39: 19 | D39: 18 | E39: 1 | F39: 1 | G39: 14 | H39: 16 | I39: 19 | J39: 1 | K39: 1 | L39: 1000
A40: O10 | B40: 4 | C40: 20 | D40: 1 | E40: 9 | F40: 17 | G40: 8 | H40: 17 | I40: 16 | J40: 20 | K40: 20 | L40: 1000
A41: O11 | B41: 13 | C41: 4 | D41: 1 | E41: 11 | F41: 1 | G41: 5 | H41: 13 | I41: 5 | J41: 6 | K41: 1 | L41: 1000
A42: O12 | B42: 5 | C42: 8 | D42: 1 | E42: 13 | F42: 18 | G42: 6 | H42: 14 | I42: 9 | J42: 12 | K42: 16 | L42: 1000
A43: O13 | B43: 6 | C43: 12 | D43: 1 | E43: 14 | F43: 19 | G43: 19 | H43: 2 | I43: 16 | J43: 15 | K43: 18 | L43: 1000
A44: O14 | B44: 17 | C44: 10 | D44: 1 | E44: 1 | F44: 1 | G44: 13 | H44: 4 | I44: 3 | J44: 1 | K44: 1 | L44: 1000
A45: O15 | B45: 16 | C45: 17 | D45: 20 | E45: 10 | F45: 1 | G45: 16 | H45: 8 | I45: 18 | J45: 16 | K45: 1 | L45: 1000
A46: O16 | B46: 2 | C46: 5 | D46: 1 | E46: 12 | F46: 1 | G46: 2 | H46: 18 | I46: 8 | J46: 7 | K46: 1 | L46: 1000
A47: O17 | B47: 14 | C47: 7 | D47: 19 | E47: 19 | F47: 1 | G47: 11 | H47: 11 | I47: 14 | J47: 13 | K47: 1 | L47: 1000
A48: O18 | B48: 9 | C48: 11 | D48: 1 | E48: 7 | F48: 1 | G48: 4 | H48: 19 | I48: 13 | J48: 9 | K48: 1 | L48: 1000
A49: O19 | B49: 8 | C49: 1 | D49: 1 | E49: 17 | F49: 1 | G49: 1 | H49: 20 | I49: 1 | J49: 10 | K49: 1 | L49: 1000
A51: L�pcs�k(1) | B51: X(A1) | C51: X(A2) | D51: X(A3) | E51: X(A4) | F51: X(A5) | G51: X(A6) | H51: X(A7) | I51: X(A8) | J51: X(A9) | K51: X(A10)
A52: S1 | B52: (0+485)/(1)=485 | C52: (0+30)/(1)=30 | D52: (0+19)/(1)=19 | E52: (0+124)/(1)=124 | F52: (0+106)/(1)=106 | G52: (0+313)/(1)=313 | H52: (0+667)/(1)=667 | I52: (0+74)/(1)=74 | J52: (0+19)/(1)=19 | K52: (0+19)/(1)=19
A53: S2 | B53: (0+484)/(1)=484 | C53: (0+29)/(1)=29 | D53: (0+18)/(1)=18 | E53: (0+123)/(1)=123 | F53: (0+105)/(1)=105 | G53: (0+312)/(1)=312 | H53: (0+475)/(1)=475 | I53: (0+73)/(1)=73 | J53: (0+18)/(1)=18 | K53: (0+18)/(1)=18
A54: S3 | B54: (0+483)/(1)=483 | C54: (0+28)/(1)=28 | D54: (0+17)/(1)=17 | E54: (0+122)/(1)=122 | F54: (0+104)/(1)=104 | G54: (0+311)/(1)=311 | H54: (0+399)/(1)=399 | I54: (0+72)/(1)=72 | J54: (0+17)/(1)=17 | K54: (0+17)/(1)=17
A55: S4 | B55: (0+482)/(1)=482 | C55: (0+27)/(1)=27 | D55: (0+16)/(1)=16 | E55: (0+121)/(1)=121 | F55: (0+103)/(1)=103 | G55: (0+294)/(1)=294 | H55: (0+398)/(1)=398 | I55: (0+16)/(1)=16 | J55: (0+16)/(1)=16 | K55: (0+16)/(1)=16
A56: S5 | B56: (0+481)/(1)=481 | C56: (0+26)/(1)=26 | D56: (0+15)/(1)=15 | E56: (0+120)/(1)=120 | F56: (0+102)/(1)=102 | G56: (0+293)/(1)=293 | H56: (0+325)/(1)=325 | I56: (0+15)/(1)=15 | J56: (0+15)/(1)=15 | K56: (0+15)/(1)=15
A57: S6 | B57: (0+480)/(1)=480 | C57: (0+25)/(1)=25 | D57: (0+14)/(1)=14 | E57: (0+110)/(1)=110 | F57: (0+101)/(1)=101 | G57: (0+292)/(1)=292 | H57: (0+324)/(1)=324 | I57: (0+14)/(1)=14 | J57: (0+14)/(1)=14 | K57: (0+14)/(1)=14
A58: S7 | B58: (0+428)/(1)=428 | C58: (0+24)/(1)=24 | D58: (0+13)/(1)=13 | E58: (0+109)/(1)=109 | F58: (0+100)/(1)=100 | G58: (0+291)/(1)=291 | H58: (0+323)/(1)=323 | I58: (0+13)/(1)=13 | J58: (0+13)/(1)=13 | K58: (0+13)/(1)=13
A59: S8 | B59: (0+427)/(1)=427 | C59: (0+14)/(1)=14 | D59: (0+12)/(1)=12 | E59: (0+44)/(1)=44 | F59: (0+99)/(1)=99 | G59: (0+290)/(1)=290 | H59: (0+322)/(1)=322 | I59: (0+12)/(1)=12 | J59: (0+12)/(1)=12 | K59: (0+12)/(1)=12
A60: S9 | B60: (0+426)/(1)=426 | C60: (0+11)/(1)=11 | D60: (0+11)/(1)=11 | E60: (0+43)/(1)=43 | F60: (0+98)/(1)=98 | G60: (0+289)/(1)=289 | H60: (0+131)/(1)=131 | I60: (0+11)/(1)=11 | J60: (0+11)/(1)=11 | K60: (0+11)/(1)=11
A61: S10 | B61: (0+425)/(1)=425 | C61: (0+10)/(1)=10 | D61: (0+10)/(1)=10 | E61: (0+42)/(1)=42 | F61: (0+97)/(1)=97 | G61: (0+288)/(1)=288 | H61: (0+130)/(1)=130 | I61: (0+10)/(1)=10 | J61: (0+10)/(1)=10 | K61: (0+10)/(1)=10
A62: S11 | B62: (0+424)/(1)=424 | C62: (0+9)/(1)=9 | D62: (0+9)/(1)=9 | E62: (0+9)/(1)=9 | F62: (0+96)/(1)=96 | G62: (0+287)/(1)=287 | H62: (0+129)/(1)=129 | I62: (0+9)/(1)=9 | J62: (0+9)/(1)=9 | K62: (0+9)/(1)=9
A63: S12 | B63: (0+423)/(1)=423 | C63: (0+8)/(1)=8 | D63: (0+8)/(1)=8 | E63: (0+8)/(1)=8 | F63: (0+95)/(1)=95 | G63: (0+232)/(1)=232 | H63: (0+78)/(1)=78 | I63: (0+8)/(1)=8 | J63: (0+8)/(1)=8 | K63: (0+8)/(1)=8
A64: S13 | B64: (0+422)/(1)=422 | C64: (0+7)/(1)=7 | D64: (0+7)/(1)=7 | E64: (0+7)/(1)=7 | F64: (0+94)/(1)=94 | G64: (0+231)/(1)=231 | H64: (0+77)/(1)=77 | I64: (0+7)/(1)=7 | J64: (0+7)/(1)=7 | K64: (0+7)/(1)=7
A65: S14 | B65: (0+421)/(1)=421 | C65: (0+6)/(1)=6 | D65: (0+6)/(1)=6 | E65: (0+6)/(1)=6 | F65: (0+93)/(1)=93 | G65: (0+230)/(1)=230 | H65: (0+76)/(1)=76 | I65: (0+6)/(1)=6 | J65: (0+6)/(1)=6 | K65: (0+6)/(1)=6
A66: S15 | B66: (0+420)/(1)=420 | C66: (0+5)/(1)=5 | D66: (0+5)/(1)=5 | E66: (0+5)/(1)=5 | F66: (0+92)/(1)=92 | G66: (0+85)/(1)=85 | H66: (0+75)/(1)=75 | I66: (0+5)/(1)=5 | J66: (0+5)/(1)=5 | K66: (0+5)/(1)=5
A67: S16 | B67: (0+419)/(1)=419 | C67: (0+4)/(1)=4 | D67: (0+4)/(1)=4 | E67: (0+4)/(1)=4 | F67: (0+91)/(1)=91 | G67: (0+84)/(1)=84 | H67: (0+74)/(1)=74 | I67: (0+4)/(1)=4 | J67: (0+4)/(1)=4 | K67: (0+4)/(1)=4
A68: S17 | B68: (0+3)/(1)=3 | C68: (0+3)/(1)=3 | D68: (0+3)/(1)=3 | E68: (0+3)/(1)=3 | F68: (0+90)/(1)=90 | G68: (0+3)/(1)=3 | H68: (0+73)/(1)=73 | I68: (0+3)/(1)=3 | J68: (0+3)/(1)=3 | K68: (0+3)/(1)=3
A69: S18 | B69: (0+2)/(1)=2 | C69: (0+2)/(1)=2 | D69: (0+2)/(1)=2 | E69: (0+2)/(1)=2 | F69: (0+89)/(1)=89 | G69: (0+2)/(1)=2 | H69: (0+2)/(1)=2 | I69: (0+2)/(1)=2 | J69: (0+2)/(1)=2 | K69: (0+2)/(1)=2
A70: S19 | B70: (0+1)/(1)=1 | C70: (0+1)/(1)=1 | D70: (0+1)/(1)=1 | E70: (0+1)/(1)=1 | F70: (0+1)/(1)=1 | G70: (0+1)/(1)=1 | H70: (0+1)/(1)=1 | I70: (0+1)/(1)=1 | J70: (0+1)/(1)=1 | K70: (0+1)/(1)=1
A71: S20 | B71: (0+0)/(1)=0 | C71: (0+0)/(1)=0 | D71: (0+0)/(1)=0 | E71: (0+0)/(1)=0 | F71: (0+0)/(1)=0 | G71: (0+0)/(1)=0 | H71: (0+0)/(1)=0 | I71: (0+0)/(1)=0 | J71: (0+0)/(1)=0 | K71: (0+0)/(1)=0
A73: L�pcs�k(2) | B73: X(A1) | C73: X(A2) | D73: X(A3) | E73: X(A4) | F73: X(A5) | G73: X(A6) | H73: X(A7) | I73: X(A8) | J73: X(A9) | K73: X(A10)
A74: S1 | B74: 485 | C74: 30 | D74: 19 | E74: 124 | F74: 106 | G74: 313 | H74: 667 | I74: 74 | J74: 19 | K74: 19
A75: S2 | B75: 484 | C75: 29 | D75: 18 | E75: 123 | F75: 105 | G75: 312 | H75: 475 | I75: 73 | J75: 18 | K75: 18
A76: S3 | B76: 483 | C76: 28 | D76: 17 | E76: 122 | F76: 104 | G76: 311 | H76: 399 | I76: 72 | J76: 17 | K76: 17
A77: S4 | B77: 482 | C77: 27 | D77: 16 | E77: 121 | F77: 103 | G77: 294 | H77: 398 | I77: 16 | J77: 16 | K77: 16
A78: S5 | B78: 481 | C78: 26 | D78: 15 | E78: 120 | F78: 102 | G78: 293 | H78: 325 | I78: 15 | J78: 15 | K78: 15
A79: S6 | B79: 480 | C79: 25 | D79: 14 | E79: 110 | F79: 101 | G79: 292 | H79: 324 | I79: 14 | J79: 14 | K79: 14
A80: S7 | B80: 428 | C80: 24 | D80: 13 | E80: 109 | F80: 100 | G80: 291 | H80: 323 | I80: 13 | J80: 13 | K80: 13
A81: S8 | B81: 427 | C81: 14 | D81: 12 | E81: 44 | F81: 99 | G81: 290 | H81: 322 | I81: 12 | J81: 12 | K81: 12
A82: S9 | B82: 426 | C82: 11 | D82: 11 | E82: 43 | F82: 98 | G82: 289 | H82: 131 | I82: 11 | J82: 11 | K82: 11
A83: S10 | B83: 425 | C83: 10 | D83: 10 | E83: 42 | F83: 97 | G83: 288 | H83: 130 | I83: 10 | J83: 10 | K83: 10
A84: S11 | B84: 424 | C84: 9 | D84: 9 | E84: 9 | F84: 96 | G84: 287 | H84: 129 | I84: 9 | J84: 9 | K84: 9
A85: S12 | B85: 423 | C85: 8 | D85: 8 | E85: 8 | F85: 95 | G85: 232 | H85: 78 | I85: 8 | J85: 8 | K85: 8
A86: S13 | B86: 422 | C86: 7 | D86: 7 | E86: 7 | F86: 94 | G86: 231 | H86: 77 | I86: 7 | J86: 7 | K86: 7
A87: S14 | B87: 421 | C87: 6 | D87: 6 | E87: 6 | F87: 93 | G87: 230 | H87: 76 | I87: 6 | J87: 6 | K87: 6
A88: S15 | B88: 420 | C88: 5 | D88: 5 | E88: 5 | F88: 92 | G88: 85 | H88: 75 | I88: 5 | J88: 5 | K88: 5
A89: S16 | B89: 419 | C89: 4 | D89: 4 | E89: 4 | F89: 91 | G89: 84 | H89: 74 | I89: 4 | J89: 4 | K89: 4
A90: S17 | B90: 3 | C90: 3 | D90: 3 | E90: 3 | F90: 90 | G90: 3 | H90: 73 | I90: 3 | J90: 3 | K90: 3
A91: S18 | B91: 2 | C91: 2 | D91: 2 | E91: 2 | F91: 89 | G91: 2 | H91: 2 | I91: 2 | J91: 2 | K91: 2
A92: S19 | B92: 1 | C92: 1 | D92: 1 | E92: 1 | F92: 1 | G92: 1 | H92: 1 | I92: 1 | J92: 1 | K92: 1
A93: S20 | B93: 0 | C93: 0 | D93: 0 | E93: 0 | F93: 0 | G93: 0 | H93: 0 | I93: 0 | J93: 0 | K93: 0
A95: COCO:Y0 | B95: X(A1) | C95: X(A2) | D95: X(A3) | E95: X(A4) | F95: X(A5) | G95: X(A6) | H95: X(A7) | I95: X(A8) | J95: X(A9) | K95: X(A10) | L95: Becsl�s | M95: T�ny+0 | N95: Delta | O95: Delta/T�ny
A96: O1 | B96: 424 | C96: 2 | D96: 19 | E96: 110 | F96: 106 | G96: 232 | H96: 78 | I96: 5 | J96: 6 | K96: 19 | L96: 1001 | M96: 1000 | N96: -1 | O96: -0.1
A97: O2 | B97: 424 | C97: 6 | D97: 19 | E97: 5 | F97: 106 | G97: 85 | H97: 324 | I97: 10 | J97: 3 | K97: 19 | L97: 1001 | M97: 1000 | N97: -1 | O97: -0.1
A98: O3 | B98: 2 | C98: 29 | D98: 19 | E98: 124 | F98: 106 | G98: 2 | H98: 667 | I98: 13 | J98: 19 | K98: 19 | L98: 1000 | M98: 1000 | N98: 0 | O98: 0
A99: O4 | B99: 420 | C99: 25 | D99: 19 | E99: 4 | F99: 106 | G99: 0 | H99: 399 | I99: 0 | J99: 9 | K99: 19 | L99: 1001 | M99: 1000 | N99: -1 | O99: -0.1
A100: O5 | B100: 428 | C100: 5 | D100: 3 | E100: 0 | F100: 106 | G100: 291 | H100: 131 | I100: 16 | J100: 2 | K100: 19 | L100: 1001 | M100: 1000 | N100: -1 | O100: -0.1
A101: O6 | B101: 1 | C101: 28 | D101: 19 | E101: 124 | F101: 106 | G101: 289 | H101: 323 | I101: 73 | J101: 19 | K101: 19 | L101: 1001 | M101: 1000 | N101: -1 | O101: -0.1
A102: O7 | B102: 485 | C102: 11 | D102: 19 | E102: 44 | F102: 0 | G102: 288 | H102: 130 | I102: 9 | J102: 12 | K102: 3 | L102: 1001 | M102: 1000 | N102: -1 | O102: -0.1
A103: O8 | B103: 483 | C103: 4 | D103: 19 | E103: 2 | F103: 91 | G103: 311 | H103: 75 | I103: 14 | J103: 1 | K103: 1 | L103: 1001 | M103: 1000 | N103: -1 | O103: -0.1
A104: O9 | B104: 425 | C104: 1 | D104: 2 | E104: 124 | F104: 106 | G104: 230 | H104: 74 | I104: 1 | J104: 19 | K104: 19 | L104: 1001 | M104: 1000 | N104: -1 | O104: -0.1
A105: O10 | B105: 482 | C105: 0 | D105: 19 | E105: 43 | F105: 90 | G105: 290 | H105: 73 | I105: 4 | J105: 0 | K105: 0 | L105: 1001 | M105: 1000 | N105: -1 | O105: -0.1
A106: O11 | B106: 422 | C106: 27 | D106: 19 | E106: 9 | F106: 106 | G106: 293 | H106: 77 | I106: 15 | J106: 14 | K106: 19 | L106: 1001 | M106: 1000 | N106: -1 | O106: -0.1
A107: O12 | B107: 481 | C107: 14 | D107: 19 | E107: 7 | F107: 89 | G107: 292 | H107: 76 | I107: 11 | J107: 8 | K107: 4 | L107: 1001 | M107: 1000 | N107: -1 | O107: -0.1
A108: O13 | B108: 480 | C108: 8 | D108: 19 | E108: 6 | F108: 1 | G108: 1 | H108: 475 | I108: 4 | J108: 5 | K108: 2 | L108: 1001 | M108: 1000 | N108: -1 | O108: -0.1
A109: O14 | B109: 3 | C109: 10 | D109: 19 | E109: 124 | F109: 106 | G109: 231 | H109: 398 | I109: 72 | J109: 19 | K109: 19 | L109: 1001 | M109: 1000 | N109: -1 | O109: -0.1
A110: O15 | B110: 419 | C110: 3 | D110: 0 | E110: 42 | F110: 106 | G110: 84 | H110: 322 | I110: 2 | J110: 4 | K110: 19 | L110: 1001 | M110: 1000 | N110: -1 | O110: -0.1
A111: O16 | B111: 484 | C111: 26 | D111: 19 | E111: 8 | F111: 106 | G111: 312 | H111: 2 | I111: 12 | J111: 13 | K111: 19 | L111: 1001 | M111: 1000 | N111: -1 | O111: -0.1
A112: O17 | B112: 421 | C112: 24 | D112: 1 | E112: 1 | F112: 106 | G112: 287 | H112: 129 | I112: 6 | J112: 7 | K112: 19 | L112: 1001 | M112: 1000 | N112: -1 | O112: -0.1
A113: O18 | B113: 426 | C113: 9 | D113: 19 | E113: 109 | F113: 106 | G113: 294 | H113: 1 | I113: 7 | J113: 11 | K113: 19 | L113: 1001 | M113: 1000 | N113: -1 | O113: -0.1
A114: O19 | B114: 427 | C114: 30 | D114: 19 | E114: 3 | F114: 106 | G114: 313 | H114: 0 | I114: 74 | J114: 10 | K114: 19 | L114: 1001 | M114: 1000 | N114: -1 | O114: -0.1
A116: S1 �sszeg: | B116: 1856
A117: S20 �sszeg: | B117: 0
A118: Becsl�s �sszeg: | B118: 19018
A119: T�ny �sszeg: | B119: 19000
A120: T�ny-becsl�s elt�r�s: | B120: 18
A121: T�ny n�gyzet�sszeg:
A122: Becsl�s n�gyzet�sszeg:
A123: N�gyzet�sszeg hiba: | B123: 0
A125: Open url
A127: Maxim�lis mem�ria haszn�lat: 1.46 Mb
A128: A futtat�s id�tartama: 0.05 mp (0 p)
